Workbook

Sheet Instructions
A1: Instructions
A2: Clique sur le « + » à gauche pour voir les descriptions concernant chaque thème.
A4: 1 Organisation et logique du tableau Excel :
A5: La planification pluriannuelle est répartie sur les cinq feuilles de calcul suivantes : - Instructions - Données personnelles - Planification Sport - Planification Formation - Récapitulatif Pour ne rien oublier, traite ces cinq feuilles de calcul de gauche à droite. Chaque feuille de calcul comprend une brève description (toujours en rouge) de ce que tu dois compléter. Tu trouveras d’autres informations sur chaque feuille de calcul aux points 1.1 - 1.5.
A7: 1.1 Feuille de calcul « Instructions » :
A8: Tu trouveras dans cette feuille une brève description du modèle de planification de carrière.
A10: 1.2 Feuille de calcul « Données personnelles » :
A11: Cette feuille sert à indiquer les données personnelles. Elles seront reprises sur la feuille récapitulative. Tu ne dois la remplir qu'une seule fois, l'année où tu commences la planification pluriannuelle !
A13: 1.3 Feuille de calcul « Planification Sport » :
A14: Cette feuille de calcul comprend trois colonnes : - Catégorie / cadre - Buts de la saison - Planification générale de l’entraînement Les années respectivement les saisons à compléter sont automatiquement surlignées en jaune et servent d’aide visuelle. Catégorie / cadre : Indique dans cette colonne ta catégorie ou ton cadre par année ou par saison. Par exemple « M16 » ou « Cadre A ». Buts de la saison : Indique dans cette colonne tes buts de la saison par année respectivement par saison. Pour cela, complète seulement la date (au format JJ/MM/AAAA) et la description du buts de la saison (par ex. « CM » ou « Jeux Olympiques »). Il y a en plus pour chaque année deux lignes supplémentaires « Service militaire ». Tu peux y insérer l’école de recrues (RS) ou le cours de répétition (CR). Si tu ne fais pas de service militaire, alors laisse ces lignes vides. Planification générale de l’entraînement : Dans cette colonne, tu peux insérer pour tes unités d’entraînement par semaine, ton volume d’entraînement (en heures par semaine) et les points principaux de ton entraînement pur chaque année respectivement saison.
A16: 1.4 Feuille de calcul « Planification Formation » :
A17: La logique et l’organisation de cette feuille correspondent à celles de la feuille de calcul « Planification Sport ». Cette feuille de calcul est composée de deux colonnes : - Formation - Echéances importantes Formation : Tu peux insérer dans cette colonne la formation que tu es en train de suivre ou que tu prévois de suivre par année respectivement par saison (par ex. « Apprentissage de commerce » ou « Gymnase »). Si tu changes de formation en cours d’année ou de saison (par ex. fin du gymnase ou début des études), tu peux l’indiquer comme suit : « Gymnase/études ». Echéances importantes : Le fonctionnement de cette colonne est analogue à celui des « Buts de la saison » de la feuille de calcul « Planification Sport ». Tu dois seulement indiquer la date (au format JJ/MM/AAAA) ainsi que la description (par ex. « Examens finaux » ou « Cours obligatoire »).
A19: 1.5 Feuille de calcul « Récapitulatif » :
A20: Cette feuille de calcul est complétée automatiquement avec les informations indiquées sur les feuilles de calcul précédentes (Données personnelles, Planification Sport et Planification Formation). Si tu remarques que des informations saisies sont fausses, modifie-les sur les feuilles de calcul correspondantes. Au milieu de la feuille récapitulative, tu trouveras la ligne de temps avec les buts de la saison/échéances pour les quatre prochaines années. Si deux objectifs de la saison/échéances ont lieu en même temps, tu as sûrement un conflit d’horaire. Si c’est le cas, tu devrais revoir ton planning et l’adapter si nécessaire.

Sheet Données personnelles
A1: Données personnelles
A2: Complète correctement les champs gris vides. Les données sont pertinentes pour les autres feuilles de calcul et sont reprises automatiquement.
A4: Nom
A5: Prénom
A6: Date de naissance
A8: Sport
A9: Fédération sportive
A12: Début Planification de carrière | B12: 2022

Sheet Planification Sport
A1: Planification Sport
A3: Catégorie / Cadre | J3: Buts de la saison | Q3: Planification générale de l’entraînement
A4: Indique ici ton cadre/ta catégorie selon les années/saisons. Utilise pour cela le champ blanc. Tu dois seulement remplir les champs colorés. | J4: Saisis dans les champs suivants les compétitions que tu vises et les compétitions principales ainsi que d’autres objectifs par année/saison. Les deux lignes en rouge sont prévues pour le service militaire (ER ou CR). Il suffit de saisir la date de l’objectif de la saison ainsi que sa description (par ex. Jeux Olympiques) par année/saison. Tu dois seulement remplir les champs colorés. Format de la date: JJ/MM/AAAA | Q4: Complète dans chacun des champs vides suivants tes unités d’entraînement par semaine, ton volume d’entraînement (en heures par semaine) ainsi que les points principaux de ton entraînement (par ex. endurance, force, etc.) pour chaque année/saison. Tu dois seulement remplir les champs colorés.
B6: ='Données personnelles'!$B$12 -> 2022 | G6: =TODAY() -> 2022-11-22 | K6: =B6 -> 2022 | R6: =$B6 -> 2022
A8: Catégorie / cadre | G8: =YEAR(G6) -> 2022 | K8: Date | L8: Buts de la saison | Q8: Unités d’entraînement par semaine
G9: =G8+1 -> 2023 | J9: But de la saison 1
G10: =G9+1 -> 2024 | J10: But de la saison 2 | Q10: Volume d’entraînement (h/semaine)
G11: =G10+1 -> 2025 | J11: But de la saison 3
J12: But de la saison 4 | Q12: Points principaux d’entraînement
J13: But de la saison 5
J14: Service militaire debut
J15: Service militaire fin
B16: =B6+1 -> 2023 | K16: =B16 -> 2023 | R16: =$B16 -> 2023
A18: Catégorie / cadre | K18: Date | L18: Buts de la saison | Q18: Unités d’entraînement par semaine
J19: But de la saison 1
J20: But de la saison 2 | Q20: Volume d’entraînement (h/semaine)
J21: But de la saison 3
J22: But de la saison 4 | Q22: Points principaux d’entraînement
J23: But de la saison 5
J24: Service militaire debut
J25: Service militaire fin
B26: =B16+1 -> 2024 | K26: =B26 -> 2024 | R26: =$B26 -> 2024
A28: Catégorie / cadre | K28: Date | L28: Buts de la saison | Q28: Unités d’entraînement par semaine
J29: But de la saison 1
J30: But de la saison 2 | Q30: Volume d’entraînement (h/semaine)
J31: But de la saison 3
J32: But de la saison 4 | Q32: Points principaux d’entraînement
J33: But de la saison 5
J34: Service militaire debut
J35: Service militaire fin
B36: =B26+1 -> 2025 | K36: =B36 -> 2025 | R36: =$B36 -> 2025
A38: Catégorie / cadre | K38: Date | L38: Buts de la saison | Q38: Unités d’entraînement par semaine
J39: But de la saison 1
J40: But de la saison 2 | Q40: Volume d’entraînement (h/semaine)
J41: But de la saison 3
J42: But de la saison 4 | Q42: Points principaux d’entraînement
J43: But de la saison 5
J44: Service militaire debut
J45: Service militaire fin
B46: =B36+1 -> 2026 | K46: =B46 -> 2026 | R46: =$B46 -> 2026
A48: Catégorie / cadre | K48: Date | L48: Buts de la saison | Q48: Unités d’entraînement par semaine
J49: But de la saison 1
J50: But de la saison 2 | Q50: Volume d’entraînement (h/semaine)
J51: But de la saison 3
J52: But de la saison 4 | Q52: Points principaux d’entraînement
J53: But de la saison 5
J54: Service militaire debut
J55: Service militaire fin
B56: =B46+1 -> 2027 | K56: =B56 -> 2027 | R56: =$B56 -> 2027
A58: Catégorie / cadre | K58: Date | L58: Buts de la saison | Q58: Unités d’entraînement par semaine
J59: But de la saison 1
J60: But de la saison 2 | Q60: Volume d’entraînement (h/semaine)
J61: But de la saison 3
J62: But de la saison 4 | Q62: Points principaux d’entraînement
J63: But de la saison 5
J64: Service militaire debut
J65: Service militaire fin
B66: =B56+1 -> 2028 | K66: =B66 -> 2028 | R66: =$B66 -> 2028
A68: Catégorie / cadre | K68: Date | L68: Buts de la saison | Q68: Unités d’entraînement par semaine
J69: But de la saison 1
J70: But de la saison 2 | Q70: Volume d’entraînement (h/semaine)
J71: But de la saison 3
J72: But de la saison 4 | Q72: Points principaux d’entraînement
J73: But de la saison 5
J74: Service militaire debut
J75: Service militaire fin
B76: =B66+1 -> 2029 | K76: =B76 -> 2029 | R76: =$B76 -> 2029
A78: Catégorie / cadre | K78: Date | L78: Buts de la saison | Q78: Unités d’entraînement par semaine
J79: But de la saison 1
J80: But de la saison 2 | Q80: Volume d’entraînement (h/semaine)
J81: But de la saison 3
J82: But de la saison 4 | Q82: Points principaux d’entraînement
J83: But de la saison 5
J84: Service militaire debut
J85: Service militaire fin
B86: =B76+1 -> 2030 | K86: =B86 -> 2030 | R86: =$B86 -> 2030
A88: Catégorie / cadre | K88: Date | L88: Buts de la saison | Q88: Unités d’entraînement par semaine
J89: But de la saison 1
J90: But de la saison 2 | Q90: Volume d’entraînement (h/semaine)
J91: But de la saison 3
J92: But de la saison 4 | Q92: Points principaux d’entraînement
J93: But de la saison 5
J94: Service militaire debut
J95: Service militaire fin
B96: =B86+1 -> 2031 | K96: =B96 -> 2031 | R96: =$B96 -> 2031
A98: Catégorie / cadre | K98: Date | L98: Buts de la saison | Q98: Unités d’entraînement par semaine
J99: But de la saison 1
J100: But de la saison 2 | Q100: Volume d’entraînement (h/semaine)
J101: But de la saison 3
J102: But de la saison 4 | Q102: Points principaux d’entraînement
J103: But de la saison 5
J104: Service militaire debut
J105: Service militaire fin
B106: =B96+1 -> 2032 | K106: =B106 -> 2032 | R106: =$B106 -> 2032
A108: Catégorie / cadre | K108: Date | L108: Buts de la saison | Q108: Unités d’entraînement par semaine
J109: But de la saison 1
J110: But de la saison 2 | Q110: Volume d’entraînement (h/semaine)
J111: But de la saison 3
J112: But de la saison 4 | Q112: Points principaux d’entraînement
J113: But de la saison 5
J114: Service militaire debut
J115: Service militaire fin

Sheet Planification Formation
A1: Planification Formation
A3: Formation | J3: Echéances importantes
A4: Saisis la formation correspondante par année/saison. Si tu changes de formation en cours d’année (par ex. fin du gymnase et début des études), tu peux l’indiquer comme suit : « Gymnase/études » Tu dois seulement remplir les champs colorés. | J4: Indique dans les champs suivants les échéances les plus importantes par année/saison. Il est important de saisir la date ainsi que la description (par ex. examen de fin d’apprentissage, cours obligatoires, examens de fin de semestre) par année. Tu dois seulement remplir les champs colorés. Format de la date: JJ/MM/AAAA
B6: ='Planification Sport'!B6 -> 2022 | I6: ='Planification Sport'!$G$6 -> 2022-11-22 | K6: =B6 -> 2022
A8: Formation | I8: =YEAR(I6) -> 2022 | K8: Date | L8: Echéances importantes
I9: =I8+1 -> 2023 | J9: Echéance 1
I10: =I9+1 -> 2024 | J10: Echéance 2
I11: =I10+1 -> 2025 | J11: Echéance 3
J12: Echéance 4
J13: Echéance 5
B14: =B6+1 -> 2023 | K14: =B14 -> 2023
A16: Formation | K16: Date | L16: Echéances importantes
J17: Echéance 1
J18: Echéance 2
J19: Echéance 3
J20: Echéance 4
J21: Echéance 5
B22: =B14+1 -> 2024 | K22: =B22 -> 2024
A24: Formation | K24: Date | L24: Echéances importantes
J25: Echéance 1
J26: Echéance 2
J27: Echéance 3
J28: Echéance 4
J29: Echéance 5
B30: =B22+1 -> 2025 | K30: =B30 -> 2025
A32: Formation | K32: Date | L32: Echéances importantes
J33: Echéance 1
J34: Echéance 2
J35: Echéance 3
J36: Echéance 4
J37: Echéance 5
B38: =B30+1 -> 2026 | K38: =B38 -> 2026
A40: Formation | K40: Date | L40: Echéances importantes
J41: Echéance 1
J42: Echéance 2
J43: Echéance 3
J44: Echéance 4
J45: Echéance 5
B46: =B38+1 -> 2027 | K46: =B46 -> 2027
A48: Formation | K48: Date | L48: Echéances importantes
J49: Echéance 1
J50: Echéance 2
J51: Echéance 3
J52: Echéance 4
J53: Echéance 5
B54: =B46+1 -> 2028 | K54: =B54 -> 2028
A56: Formation | K56: Date | L56: Echéances importantes
J57: Echéance 1
J58: Echéance 2
J59: Echéance 3
J60: Echéance 4
J61: Echéance 5
B62: =B54+1 -> 2029 | K62: =B62 -> 2029
A64: Formation | K64: Date | L64: Echéances importantes
J65: Echéance 1
J66: Echéance 2
J67: Echéance 3
J68: Echéance 4
J69: Echéance 5
B70: =B62+1 -> 2030 | K70: =B70 -> 2030
A72: Formation | K72: Date | L72: Echéances importantes
J73: Echéance 1
J74: Echéance 2
J75: Echéance 3
J76: Echéance 4
J77: Echéance 5
B78: =B70+1 -> 2031 | K78: =B78 -> 2031
A80: Formation | K80: Date | L80: Echéances importantes
J81: Echéance 1
J82: Echéance 2
J83: Echéance 3
J84: Echéance 4
J85: Echéance 5
B86: =B78+1 -> 2032 | K86: =B86 -> 2032
A88: Formation | K88: Date | L88: Echéances importantes
J89: Echéance 1
J90: Echéance 2
J91: Echéance 3
J92: Echéance 4
J93: Echéance 5

Sheet Récapitulatif
A1: Récapitulatif de : | C1: ='Données personnelles'!$B$5&" "&'Données personnelles'!$B$4 -> 
A2: Sport : | C2: ='Données personnelles'!$B$8 -> 0
A3: Fédération sportive : | C3: ='Données personnelles'!$B$9 -> 0
A5: Planification Sport
A6: Tous les champs sont complétés automatiquement. Pour cela tu dois remplir les feuilles de calcul « Données personnelles » et « Planification Sport » en entier.
C8: ='Planification Sport'!G8 -> 2022 | G8: ='Planification Sport'!G9 -> 2023 | K8: ='Planification Sport'!G10 -> 2024 | O8: ='Planification Sport'!G11 -> 2025
C9: =DATE(C8,1,1) -> 2022-01-01 | E9: =VLOOKUP($C$8,'Hilfstabelle Alter'!$A$1:$B$43,2,0) -> 2022-07-01 | G9: =DATE(G8,1,1) -> 2023-01-01 | I9: =VLOOKUP($G$8,'Hilfstabelle Alter'!$A$1:$B$43,2,0) -> 2023-07-01 | K9: =DATE(K8,1,1) -> 2024-01-01 | M9: =VLOOKUP($K$8,'Hilfstabelle Alter'!$A$1:$B$43,2,0) -> 2024-07-01 | O9: =DATE(O8,1,1) -> 2025-01-01 | Q9: =VLOOKUP($O$8,'Hilfstabelle Alter'!$A$1:$B$43,2,0) -> 2025-07-01
A11: Age | C11: =IF('Données personnelles'!$B$6="","",DATEDIF('Données personnelles'!$B$6,Récapitulatif!E$9,"Y")) ->  | G11: =IF('Données personnelles'!$B$6="","",DATEDIF('Données personnelles'!$B$6,Récapitulatif!I$9,"Y")) ->  | K11: =IF('Données personnelles'!$B$6="","",DATEDIF('Données personnelles'!$B$6,Récapitulatif!M$9,"Y")) ->  | O11: =IF('Données personnelles'!$B$6="","",DATEDIF('Données personnelles'!$B$6,Récapitulatif!Q$9,"Y")) -> 
A12: Catégorie / cadre | C12: =VLOOKUP(C$8,'Hilfstabelle Sport Kategorien'!$A$1:$B$22,2,0) -> 0 | G12: =VLOOKUP(G$8,'Hilfstabelle Sport Kategorien'!$A$1:$B$22,2,0) -> 0 | K12: =VLOOKUP(K$8,'Hilfstabelle Sport Kategorien'!$A$1:$B$22,2,0) -> 0 | O12: =VLOOKUP(O$8,'Hilfstabelle Sport Kategorien'!$A$1:$B$22,2,0) -> 0
A13: Buts de la saison
A14: But de la saison 1 | B14: =VLOOKUP(C$8&$A14,CHOOSE({1,2},'Hilfstabelle Sport Saisonziele'!$A$2:$A$294&'Hilfstabelle Sport Saisonziele'!$C$2:$C$294,'Hilfstabelle Sport Saisonziele'!$B$2:$B$294),2,0) -> 00:00:00 | C14: =IFERROR(IF(VLOOKUP(C$8&$A14,CHOOSE({1,2},'Hilfstabelle Sport Saisonziele'!$A$2:$A$148&'Hilfstabelle Sport Saisonziele'!$C$2:$C$148,'Hilfstabelle Sport Saisonziele'!$D$2:$D$148),2,FALSE)=0,"",VLOOKUP(C$8&$A14,CHOOSE({1,2},'Hilfstabelle Sport Saisonziele'!$A$2:$A$148&'Hilfstabelle Sport Saisonziele'!$C$2:$C$148,'Hilfstabelle Sport Saisonziele'!$D$2:$D$148),2,FALSE)),"") ->  | F14: =IFERROR(IF(VLOOKUP(G$8&$A14,CHOOSE({1,2},'Hilfstabelle Sport Saisonziele'!$A$2:$A$294&'Hilfstabelle Sport Saisonziele'!$C$2:$C$294,'Hilfstabelle Sport Saisonziele'!$B$2:$B$294),2,FALSE)=0,"",VLOOKUP(G$8&$A14,CHOOSE({1,2},'Hilfstabelle Sport Saisonziele'!$A$2:$A$294&'Hilfstabelle Sport Saisonziele'!$C$2:$C$294,'Hilfstabelle Sport Saisonziele'!$B$2:$B$294),2,FALSE)),"") ->  | G14: =IFERROR(IF(VLOOKUP(G$8&$A14,CHOOSE({1,2},'Hilfstabelle Sport Saisonziele'!$A$2:$A$148&'Hilfstabelle Sport Saisonziele'!$C$2:$C$148,'Hilfstabelle Sport Saisonziele'!$D$2:$D$148),2,FALSE)=0,"",VLOOKUP(G$8&$A14,CHOOSE({1,2},'Hilfstabelle Sport Saisonziele'!$A$2:$A$148&'Hilfstabelle Sport Saisonziele'!$C$2:$C$148,'Hilfstabelle Sport Saisonziele'!$D$2:$D$148),2,FALSE)),"") ->  | J14: =IFERROR(IF(VLOOKUP(K$8&$A14,CHOOSE({1,2},'Hilfstabelle Sport Saisonziele'!$A$2:$A$294&'Hilfstabelle Sport Saisonziele'!$C$2:$C$294,'Hilfstabelle Sport Saisonziele'!$B$2:$B$294),2,FALSE)=0,"",VLOOKUP(K$8&$A14,CHOOSE({1,2},'Hilfstabelle Sport Saisonziele'!$A$2:$A$294&'Hilfstabelle Sport Saisonziele'!$C$2:$C$294,'Hilfstabelle Sport Saisonziele'!$B$2:$B$294),2,FALSE)),"") ->  | K14: =IFERROR(IF(VLOOKUP(K$8&$A14,CHOOSE({1,2},'Hilfstabelle Sport Saisonziele'!$A$2:$A$148&'Hilfstabelle Sport Saisonziele'!$C$2:$C$148,'Hilfstabelle Sport Saisonziele'!$D$2:$D$148),2,FALSE)=0,"",VLOOKUP(K$8&$A14,CHOOSE({1,2},'Hilfstabelle Sport Saisonziele'!$A$2:$A$148&'Hilfstabelle Sport Saisonziele'!$C$2:$C$148,'Hilfstabelle Sport Saisonziele'!$D$2:$D$148),2,FALSE)),"") ->  | N14: =IFERROR(IF(VLOOKUP(O$8&$A14,CHOOSE({1,2},'Hilfstabelle Sport Saisonziele'!$A$2:$A$294&'Hilfstabelle Sport Saisonziele'!$C$2:$C$294,'Hilfstabelle Sport Saisonziele'!$B$2:$B$294),2,FALSE)=0,"",VLOOKUP(O$8&$A14,CHOOSE({1,2},'Hilfstabelle Sport Saisonziele'!$A$2:$A$294&'Hilfstabelle Sport Saisonziele'!$C$2:$C$294,'Hilfstabelle Sport Saisonziele'!$B$2:$B$294),2,FALSE)),"") ->  | O14: =IFERROR(IF(VLOOKUP(O$8&$A14,CHOOSE({1,2},'Hilfstabelle Sport Saisonziele'!$A$2:$A$148&'Hilfstabelle Sport Saisonziele'!$C$2:$C$148,'Hilfstabelle Sport Saisonziele'!$D$2:$D$148),2,FALSE)=0,"",VLOOKUP(O$8&$A14,CHOOSE({1,2},'Hilfstabelle Sport Saisonziele'!$A$2:$A$148&'Hilfstabelle Sport Saisonziele'!$C$2:$C$148,'Hilfstabelle Sport Saisonziele'!$D$2:$D$148),2,FALSE)),"") -> 
A15: But de la saison 2 | B15: =VLOOKUP(C$8&$A15,CHOOSE({1,2},'Hilfstabelle Sport Saisonziele'!$A$2:$A$294&'Hilfstabelle Sport Saisonziele'!$C$2:$C$294,'Hilfstabelle Sport Saisonziele'!$B$2:$B$294),2,0) -> 00:00:00 | C15: =IFERROR(IF(VLOOKUP(C$8&$A15,CHOOSE({1,2},'Hilfstabelle Sport Saisonziele'!$A$2:$A$148&'Hilfstabelle Sport Saisonziele'!$C$2:$C$148,'Hilfstabelle Sport Saisonziele'!$D$2:$D$148),2,FALSE)=0,"",VLOOKUP(C$8&$A15,CHOOSE({1,2},'Hilfstabelle Sport Saisonziele'!$A$2:$A$148&'Hilfstabelle Sport Saisonziele'!$C$2:$C$148,'Hilfstabelle Sport Saisonziele'!$D$2:$D$148),2,FALSE)),"") ->  | F15: =IFERROR(IF(VLOOKUP(G$8&$A15,CHOOSE({1,2},'Hilfstabelle Sport Saisonziele'!$A$2:$A$294&'Hilfstabelle Sport Saisonziele'!$C$2:$C$294,'Hilfstabelle Sport Saisonziele'!$B$2:$B$294),2,FALSE)=0,"",VLOOKUP(G$8&$A15,CHOOSE({1,2},'Hilfstabelle Sport Saisonziele'!$A$2:$A$294&'Hilfstabelle Sport Saisonziele'!$C$2:$C$294,'Hilfstabelle Sport Saisonziele'!$B$2:$B$294),2,FALSE)),"") ->  | G15: =IFERROR(IF(VLOOKUP(G$8&$A15,CHOOSE({1,2},'Hilfstabelle Sport Saisonziele'!$A$2:$A$148&'Hilfstabelle Sport Saisonziele'!$C$2:$C$148,'Hilfstabelle Sport Saisonziele'!$D$2:$D$148),2,FALSE)=0,"",VLOOKUP(G$8&$A15,CHOOSE({1,2},'Hilfstabelle Sport Saisonziele'!$A$2:$A$148&'Hilfstabelle Sport Saisonziele'!$C$2:$C$148,'Hilfstabelle Sport Saisonziele'!$D$2:$D$148),2,FALSE)),"") ->  | J15: =IFERROR(IF(VLOOKUP(K$8&$A15,CHOOSE({1,2},'Hilfstabelle Sport Saisonziele'!$A$2:$A$294&'Hilfstabelle Sport Saisonziele'!$C$2:$C$294,'Hilfstabelle Sport Saisonziele'!$B$2:$B$294),2,FALSE)=0,"",VLOOKUP(K$8&$A15,CHOOSE({1,2},'Hilfstabelle Sport Saisonziele'!$A$2:$A$294&'Hilfstabelle Sport Saisonziele'!$C$2:$C$294,'Hilfstabelle Sport Saisonziele'!$B$2:$B$294),2,FALSE)),"") ->  | K15: =IFERROR(IF(VLOOKUP(K$8&$A15,CHOOSE({1,2},'Hilfstabelle Sport Saisonziele'!$A$2:$A$148&'Hilfstabelle Sport Saisonziele'!$C$2:$C$148,'Hilfstabelle Sport Saisonziele'!$D$2:$D$148),2,FALSE)=0,"",VLOOKUP(K$8&$A15,CHOOSE({1,2},'Hilfstabelle Sport Saisonziele'!$A$2:$A$148&'Hilfstabelle Sport Saisonziele'!$C$2:$C$148,'Hilfstabelle Sport Saisonziele'!$D$2:$D$148),2,FALSE)),"") ->  | N15: =IFERROR(IF(VLOOKUP(O$8&$A15,CHOOSE({1,2},'Hilfstabelle Sport Saisonziele'!$A$2:$A$294&'Hilfstabelle Sport Saisonziele'!$C$2:$C$294,'Hilfstabelle Sport Saisonziele'!$B$2:$B$294),2,FALSE)=0,"",VLOOKUP(O$8&$A15,CHOOSE({1,2},'Hilfstabelle Sport Saisonziele'!$A$2:$A$294&'Hilfstabelle Sport Saisonziele'!$C$2:$C$294,'Hilfstabelle Sport Saisonziele'!$B$2:$B$294),2,FALSE)),"") ->  | O15: =IFERROR(IF(VLOOKUP(O$8&$A15,CHOOSE({1,2},'Hilfstabelle Sport Saisonziele'!$A$2:$A$148&'Hilfstabelle Sport Saisonziele'!$C$2:$C$148,'Hilfstabelle Sport Saisonziele'!$D$2:$D$148),2,FALSE)=0,"",VLOOKUP(O$8&$A15,CHOOSE({1,2},'Hilfstabelle Sport Saisonziele'!$A$2:$A$148&'Hilfstabelle Sport Saisonziele'!$C$2:$C$148,'Hilfstabelle Sport Saisonziele'!$D$2:$D$148),2,FALSE)),"") -> 
A16: But de la saison 3 | B16: =VLOOKUP(C$8&$A16,CHOOSE({1,2},'Hilfstabelle Sport Saisonziele'!$A$2:$A$294&'Hilfstabelle Sport Saisonziele'!$C$2:$C$294,'Hilfstabelle Sport Saisonziele'!$B$2:$B$294),2,0) -> 00:00:00 | C16: =IFERROR(IF(VLOOKUP(C$8&$A16,CHOOSE({1,2},'Hilfstabelle Sport Saisonziele'!$A$2:$A$148&'Hilfstabelle Sport Saisonziele'!$C$2:$C$148,'Hilfstabelle Sport Saisonziele'!$D$2:$D$148),2,FALSE)=0,"",VLOOKUP(C$8&$A16,CHOOSE({1,2},'Hilfstabelle Sport Saisonziele'!$A$2:$A$148&'Hilfstabelle Sport Saisonziele'!$C$2:$C$148,'Hilfstabelle Sport Saisonziele'!$D$2:$D$148),2,FALSE)),"") ->  | F16: =IFERROR(IF(VLOOKUP(G$8&$A16,CHOOSE({1,2},'Hilfstabelle Sport Saisonziele'!$A$2:$A$294&'Hilfstabelle Sport Saisonziele'!$C$2:$C$294,'Hilfstabelle Sport Saisonziele'!$B$2:$B$294),2,FALSE)=0,"",VLOOKUP(G$8&$A16,CHOOSE({1,2},'Hilfstabelle Sport Saisonziele'!$A$2:$A$294&'Hilfstabelle Sport Saisonziele'!$C$2:$C$294,'Hilfstabelle Sport Saisonziele'!$B$2:$B$294),2,FALSE)),"") ->  | G16: =IFERROR(IF(VLOOKUP(G$8&$A16,CHOOSE({1,2},'Hilfstabelle Sport Saisonziele'!$A$2:$A$148&'Hilfstabelle Sport Saisonziele'!$C$2:$C$148,'Hilfstabelle Sport Saisonziele'!$D$2:$D$148),2,FALSE)=0,"",VLOOKUP(G$8&$A16,CHOOSE({1,2},'Hilfstabelle Sport Saisonziele'!$A$2:$A$148&'Hilfstabelle Sport Saisonziele'!$C$2:$C$148,'Hilfstabelle Sport Saisonziele'!$D$2:$D$148),2,FALSE)),"") ->  | J16: =IFERROR(IF(VLOOKUP(K$8&$A16,CHOOSE({1,2},'Hilfstabelle Sport Saisonziele'!$A$2:$A$294&'Hilfstabelle Sport Saisonziele'!$C$2:$C$294,'Hilfstabelle Sport Saisonziele'!$B$2:$B$294),2,FALSE)=0,"",VLOOKUP(K$8&$A16,CHOOSE({1,2},'Hilfstabelle Sport Saisonziele'!$A$2:$A$294&'Hilfstabelle Sport Saisonziele'!$C$2:$C$294,'Hilfstabelle Sport Saisonziele'!$B$2:$B$294),2,FALSE)),"") ->  | K16: =IFERROR(IF(VLOOKUP(K$8&$A16,CHOOSE({1,2},'Hilfstabelle Sport Saisonziele'!$A$2:$A$148&'Hilfstabelle Sport Saisonziele'!$C$2:$C$148,'Hilfstabelle Sport Saisonziele'!$D$2:$D$148),2,FALSE)=0,"",VLOOKUP(K$8&$A16,CHOOSE({1,2},'Hilfstabelle Sport Saisonziele'!$A$2:$A$148&'Hilfstabelle Sport Saisonziele'!$C$2:$C$148,'Hilfstabelle Sport Saisonziele'!$D$2:$D$148),2,FALSE)),"") ->  | N16: =IFERROR(IF(VLOOKUP(O$8&$A16,CHOOSE({1,2},'Hilfstabelle Sport Saisonziele'!$A$2:$A$294&'Hilfstabelle Sport Saisonziele'!$C$2:$C$294,'Hilfstabelle Sport Saisonziele'!$B$2:$B$294),2,FALSE)=0,"",VLOOKUP(O$8&$A16,CHOOSE({1,2},'Hilfstabelle Sport Saisonziele'!$A$2:$A$294&'Hilfstabelle Sport Saisonziele'!$C$2:$C$294,'Hilfstabelle Sport Saisonziele'!$B$2:$B$294),2,FALSE)),"") ->  | O16: =IFERROR(IF(VLOOKUP(O$8&$A16,CHOOSE({1,2},'Hilfstabelle Sport Saisonziele'!$A$2:$A$148&'Hilfstabelle Sport Saisonziele'!$C$2:$C$148,'Hilfstabelle Sport Saisonziele'!$D$2:$D$148),2,FALSE)=0,"",VLOOKUP(O$8&$A16,CHOOSE({1,2},'Hilfstabelle Sport Saisonziele'!$A$2:$A$148&'Hilfstabelle Sport Saisonziele'!$C$2:$C$148,'Hilfstabelle Sport Saisonziele'!$D$2:$D$148),2,FALSE)),"") -> 
A17: But de la saison 4 | B17: =IFERROR(IF(VLOOKUP(C$8&$A17,CHOOSE({1,2},'Hilfstabelle Sport Saisonziele'!$A$2:$A$294&'Hilfstabelle Sport Saisonziele'!$C$2:$C$294,'Hilfstabelle Sport Saisonziele'!$B$2:$B$294),2,FALSE)=0,"",VLOOKUP(C$8&$A17,CHOOSE({1,2},'Hilfstabelle Sport Saisonziele'!$A$2:$A$294&'Hilfstabelle Sport Saisonziele'!$C$2:$C$294,'Hilfstabelle Sport Saisonziele'!$B$2:$B$294),2,FALSE)),"") ->  | C17: =IFERROR(IF(VLOOKUP(C$8&$A17,CHOOSE({1,2},'Hilfstabelle Sport Saisonziele'!$A$2:$A$148&'Hilfstabelle Sport Saisonziele'!$C$2:$C$148,'Hilfstabelle Sport Saisonziele'!$D$2:$D$148),2,FALSE)=0,"",VLOOKUP(C$8&$A17,CHOOSE({1,2},'Hilfstabelle Sport Saisonziele'!$A$2:$A$148&'Hilfstabelle Sport Saisonziele'!$C$2:$C$148,'Hilfstabelle Sport Saisonziele'!$D$2:$D$148),2,FALSE)),"") ->  | F17: =IFERROR(IF(VLOOKUP(G$8&$A17,CHOOSE({1,2},'Hilfstabelle Sport Saisonziele'!$A$2:$A$294&'Hilfstabelle Sport Saisonziele'!$C$2:$C$294,'Hilfstabelle Sport Saisonziele'!$B$2:$B$294),2,FALSE)=0,"",VLOOKUP(G$8&$A17,CHOOSE({1,2},'Hilfstabelle Sport Saisonziele'!$A$2:$A$294&'Hilfstabelle Sport Saisonziele'!$C$2:$C$294,'Hilfstabelle Sport Saisonziele'!$B$2:$B$294),2,FALSE)),"") ->  | G17: =IFERROR(IF(VLOOKUP(G$8&$A17,CHOOSE({1,2},'Hilfstabelle Sport Saisonziele'!$A$2:$A$148&'Hilfstabelle Sport Saisonziele'!$C$2:$C$148,'Hilfstabelle Sport Saisonziele'!$D$2:$D$148),2,FALSE)=0,"",VLOOKUP(G$8&$A17,CHOOSE({1,2},'Hilfstabelle Sport Saisonziele'!$A$2:$A$148&'Hilfstabelle Sport Saisonziele'!$C$2:$C$148,'Hilfstabelle Sport Saisonziele'!$D$2:$D$148),2,FALSE)),"") ->  | J17: =IFERROR(IF(VLOOKUP(K$8&$A17,CHOOSE({1,2},'Hilfstabelle Sport Saisonziele'!$A$2:$A$294&'Hilfstabelle Sport Saisonziele'!$C$2:$C$294,'Hilfstabelle Sport Saisonziele'!$B$2:$B$294),2,FALSE)=0,"",VLOOKUP(K$8&$A17,CHOOSE({1,2},'Hilfstabelle Sport Saisonziele'!$A$2:$A$294&'Hilfstabelle Sport Saisonziele'!$C$2:$C$294,'Hilfstabelle Sport Saisonziele'!$B$2:$B$294),2,FALSE)),"") ->  | K17: =IFERROR(IF(VLOOKUP(K$8&$A17,CHOOSE({1,2},'Hilfstabelle Sport Saisonziele'!$A$2:$A$148&'Hilfstabelle Sport Saisonziele'!$C$2:$C$148,'Hilfstabelle Sport Saisonziele'!$D$2:$D$148),2,FALSE)=0,"",VLOOKUP(K$8&$A17,CHOOSE({1,2},'Hilfstabelle Sport Saisonziele'!$A$2:$A$148&'Hilfstabelle Sport Saisonziele'!$C$2:$C$148,'Hilfstabelle Sport Saisonziele'!$D$2:$D$148),2,FALSE)),"") ->  | N17: =IFERROR(IF(VLOOKUP(O$8&$A17,CHOOSE({1,2},'Hilfstabelle Sport Saisonziele'!$A$2:$A$294&'Hilfstabelle Sport Saisonziele'!$C$2:$C$294,'Hilfstabelle Sport Saisonziele'!$B$2:$B$294),2,FALSE)=0,"",VLOOKUP(O$8&$A17,CHOOSE({1,2},'Hilfstabelle Sport Saisonziele'!$A$2:$A$294&'Hilfstabelle Sport Saisonziele'!$C$2:$C$294,'Hilfstabelle Sport Saisonziele'!$B$2:$B$294),2,FALSE)),"") ->  | O17: =IFERROR(IF(VLOOKUP(O$8&$A17,CHOOSE({1,2},'Hilfstabelle Sport Saisonziele'!$A$2:$A$148&'Hilfstabelle Sport Saisonziele'!$C$2:$C$148,'Hilfstabelle Sport Saisonziele'!$D$2:$D$148),2,FALSE)=0,"",VLOOKUP(O$8&$A17,CHOOSE({1,2},'Hilfstabelle Sport Saisonziele'!$A$2:$A$148&'Hilfstabelle Sport Saisonziele'!$C$2:$C$148,'Hilfstabelle Sport Saisonziele'!$D$2:$D$148),2,FALSE)),"") -> 
A18: But de la saison 5 | B18: =IFERROR(IF(VLOOKUP(C$8&$A18,CHOOSE({1,2},'Hilfstabelle Sport Saisonziele'!$A$2:$A$294&'Hilfstabelle Sport Saisonziele'!$C$2:$C$294,'Hilfstabelle Sport Saisonziele'!$B$2:$B$294),2,FALSE)=0,"",VLOOKUP(C$8&$A18,CHOOSE({1,2},'Hilfstabelle Sport Saisonziele'!$A$2:$A$294&'Hilfstabelle Sport Saisonziele'!$C$2:$C$294,'Hilfstabelle Sport Saisonziele'!$B$2:$B$294),2,FALSE)),"") ->  | C18: =IFERROR(IF(VLOOKUP(C$8&$A18,CHOOSE({1,2},'Hilfstabelle Sport Saisonziele'!$A$2:$A$148&'Hilfstabelle Sport Saisonziele'!$C$2:$C$148,'Hilfstabelle Sport Saisonziele'!$D$2:$D$148),2,FALSE)=0,"",VLOOKUP(C$8&$A18,CHOOSE({1,2},'Hilfstabelle Sport Saisonziele'!$A$2:$A$148&'Hilfstabelle Sport Saisonziele'!$C$2:$C$148,'Hilfstabelle Sport Saisonziele'!$D$2:$D$148),2,FALSE)),"") ->  | F18: =IFERROR(IF(VLOOKUP(G$8&$A18,CHOOSE({1,2},'Hilfstabelle Sport Saisonziele'!$A$2:$A$294&'Hilfstabelle Sport Saisonziele'!$C$2:$C$294,'Hilfstabelle Sport Saisonziele'!$B$2:$B$294),2,FALSE)=0,"",VLOOKUP(G$8&$A18,CHOOSE({1,2},'Hilfstabelle Sport Saisonziele'!$A$2:$A$294&'Hilfstabelle Sport Saisonziele'!$C$2:$C$294,'Hilfstabelle Sport Saisonziele'!$B$2:$B$294),2,FALSE)),"") ->  | G18: =IFERROR(IF(VLOOKUP(G$8&$A18,CHOOSE({1,2},'Hilfstabelle Sport Saisonziele'!$A$2:$A$148&'Hilfstabelle Sport Saisonziele'!$C$2:$C$148,'Hilfstabelle Sport Saisonziele'!$D$2:$D$148),2,FALSE)=0,"",VLOOKUP(G$8&$A18,CHOOSE({1,2},'Hilfstabelle Sport Saisonziele'!$A$2:$A$148&'Hilfstabelle Sport Saisonziele'!$C$2:$C$148,'Hilfstabelle Sport Saisonziele'!$D$2:$D$148),2,FALSE)),"") ->  | J18: =IFERROR(IF(VLOOKUP(K$8&$A18,CHOOSE({1,2},'Hilfstabelle Sport Saisonziele'!$A$2:$A$294&'Hilfstabelle Sport Saisonziele'!$C$2:$C$294,'Hilfstabelle Sport Saisonziele'!$B$2:$B$294),2,FALSE)=0,"",VLOOKUP(K$8&$A18,CHOOSE({1,2},'Hilfstabelle Sport Saisonziele'!$A$2:$A$294&'Hilfstabelle Sport Saisonziele'!$C$2:$C$294,'Hilfstabelle Sport Saisonziele'!$B$2:$B$294),2,FALSE)),"") ->  | K18: =IFERROR(IF(VLOOKUP(K$8&$A18,CHOOSE({1,2},'Hilfstabelle Sport Saisonziele'!$A$2:$A$148&'Hilfstabelle Sport Saisonziele'!$C$2:$C$148,'Hilfstabelle Sport Saisonziele'!$D$2:$D$148),2,FALSE)=0,"",VLOOKUP(K$8&$A18,CHOOSE({1,2},'Hilfstabelle Sport Saisonziele'!$A$2:$A$148&'Hilfstabelle Sport Saisonziele'!$C$2:$C$148,'Hilfstabelle Sport Saisonziele'!$D$2:$D$148),2,FALSE)),"") ->  | N18: =IFERROR(IF(VLOOKUP(O$8&$A18,CHOOSE({1,2},'Hilfstabelle Sport Saisonziele'!$A$2:$A$294&'Hilfstabelle Sport Saisonziele'!$C$2:$C$294,'Hilfstabelle Sport Saisonziele'!$B$2:$B$294),2,FALSE)=0,"",VLOOKUP(O$8&$A18,CHOOSE({1,2},'Hilfstabelle Sport Saisonziele'!$A$2:$A$294&'Hilfstabelle Sport Saisonziele'!$C$2:$C$294,'Hilfstabelle Sport Saisonziele'!$B$2:$B$294),2,FALSE)),"") ->  | O18: =IFERROR(IF(VLOOKUP(O$8&$A18,CHOOSE({1,2},'Hilfstabelle Sport Saisonziele'!$A$2:$A$148&'Hilfstabelle Sport Saisonziele'!$C$2:$C$148,'Hilfstabelle Sport Saisonziele'!$D$2:$D$148),2,FALSE)=0,"",VLOOKUP(O$8&$A18,CHOOSE({1,2},'Hilfstabelle Sport Saisonziele'!$A$2:$A$148&'Hilfstabelle Sport Saisonziele'!$C$2:$C$148,'Hilfstabelle Sport Saisonziele'!$D$2:$D$148),2,FALSE)),"") -> 
A19: Unités d’entraînement par semaine | C19: =VLOOKUP(C$8&$A19,CHOOSE({1,2},'Hilfstabelle Sport Grobplan'!$A$2:$A$64&'Hilfstabelle Sport Grobplan'!$B$2:$B$64,'Hilfstabelle Sport Grobplan'!$C$2:$C$64),2,0) -> 0 | G19: =VLOOKUP(G$8&$A19,CHOOSE({1,2},'Hilfstabelle Sport Grobplan'!$A$2:$A$64&'Hilfstabelle Sport Grobplan'!$B$2:$B$64,'Hilfstabelle Sport Grobplan'!$C$2:$C$64),2,0) -> 0 | K19: =VLOOKUP(K$8&$A19,CHOOSE({1,2},'Hilfstabelle Sport Grobplan'!$A$2:$A$64&'Hilfstabelle Sport Grobplan'!$B$2:$B$64,'Hilfstabelle Sport Grobplan'!$C$2:$C$64),2,0) -> 0 | O19: =VLOOKUP(O$8&$A19,CHOOSE({1,2},'Hilfstabelle Sport Grobplan'!$A$2:$A$64&'Hilfstabelle Sport Grobplan'!$B$2:$B$64,'Hilfstabelle Sport Grobplan'!$C$2:$C$64),2,0) -> 0
A20: Volume d’entraînement (h/semaine) | C20: =(VLOOKUP(C$8&$A20,CHOOSE({1,2},'Hilfstabelle Sport Grobplan'!$A$2:$A$64&'Hilfstabelle Sport Grobplan'!$B$2:$B$64,'Hilfstabelle Sport Grobplan'!$C$2:$C$64),2,0)) -> 0 | G20: =VLOOKUP(G$8&$A20,CHOOSE({1,2},'Hilfstabelle Sport Grobplan'!$A:$A&'Hilfstabelle Sport Grobplan'!$B:$B,'Hilfstabelle Sport Grobplan'!$C:$C),2,0) -> 0 | K20: =VLOOKUP(K$8&$A20,CHOOSE({1,2},'Hilfstabelle Sport Grobplan'!$A$2:$A$64&'Hilfstabelle Sport Grobplan'!$B$2:$B$64,'Hilfstabelle Sport Grobplan'!$C$2:$C$64),2,0) -> 0 | O20: =VLOOKUP(O$8&$A20,CHOOSE({1,2},'Hilfstabelle Sport Grobplan'!$A$2:$A$64&'Hilfstabelle Sport Grobplan'!$B$2:$B$64,'Hilfstabelle Sport Grobplan'!$C$2:$C$64),2,0) -> 0
A21: Points principaux d’entraînement | C21: =VLOOKUP(C$8&$A21,CHOOSE({1,2},'Hilfstabelle Sport Grobplan'!$A$2:$A$64&'Hilfstabelle Sport Grobplan'!$B$2:$B$64,'Hilfstabelle Sport Grobplan'!$C$2:$C$64),2,0) -> 0 | G21: =VLOOKUP(G$8&$A21,CHOOSE({1,2},'Hilfstabelle Sport Grobplan'!$A$2:$A$64&'Hilfstabelle Sport Grobplan'!$B$2:$B$64,'Hilfstabelle Sport Grobplan'!$C$2:$C$64),2,0) -> 0 | K21: =VLOOKUP(K$8&$A21,CHOOSE({1,2},'Hilfstabelle Sport Grobplan'!$A$2:$A$64&'Hilfstabelle Sport Grobplan'!$B$2:$B$64,'Hilfstabelle Sport Grobplan'!$C$2:$C$64),2,0) -> 0 | O21: =VLOOKUP(O$8&$A21,CHOOSE({1,2},'Hilfstabelle Sport Grobplan'!$A$2:$A$64&'Hilfstabelle Sport Grobplan'!$B$2:$B$64,'Hilfstabelle Sport Grobplan'!$C$2:$C$64),2,0) -> 0
A22: Service militaire
A23: Service militaire debut | B23: =IFERROR(IF(VLOOKUP(C$8&$A23,CHOOSE({1,2},'Hilfstabelle Sport Saisonziele'!$A$2:$A$294&'Hilfstabelle Sport Saisonziele'!$C$2:$C$294,'Hilfstabelle Sport Saisonziele'!$B$2:$B$294),2,FALSE)=0,"",VLOOKUP(C$8&$A23,CHOOSE({1,2},'Hilfstabelle Sport Saisonziele'!$A$2:$A$294&'Hilfstabelle Sport Saisonziele'!$C$2:$C$294,'Hilfstabelle Sport Saisonziele'!$B$2:$B$294),2,FALSE)),"") ->  | C23: =IFERROR(IF(VLOOKUP(C$8&$A23,CHOOSE({1,2},'Hilfstabelle Sport Saisonziele'!$A$2:$A$148&'Hilfstabelle Sport Saisonziele'!$C$2:$C$148,'Hilfstabelle Sport Saisonziele'!$D$2:$D$148),2,FALSE)=0,"",VLOOKUP(C$8&$A23,CHOOSE({1,2},'Hilfstabelle Sport Saisonziele'!$A$2:$A$148&'Hilfstabelle Sport Saisonziele'!$C$2:$C$148,'Hilfstabelle Sport Saisonziele'!$D$2:$D$148),2,FALSE)),"") ->  | F23: =IFERROR(IF(VLOOKUP(G$8&$A23,CHOOSE({1,2},'Hilfstabelle Sport Saisonziele'!$A$2:$A$294&'Hilfstabelle Sport Saisonziele'!$C$2:$C$294,'Hilfstabelle Sport Saisonziele'!$B$2:$B$294),2,FALSE)=0,"",VLOOKUP(G$8&$A23,CHOOSE({1,2},'Hilfstabelle Sport Saisonziele'!$A$2:$A$294&'Hilfstabelle Sport Saisonziele'!$C$2:$C$294,'Hilfstabelle Sport Saisonziele'!$B$2:$B$294),2,FALSE)),"") ->  | G23: =IFERROR(IF(VLOOKUP(G$8&$A23,CHOOSE({1,2},'Hilfstabelle Sport Saisonziele'!$A$2:$A$148&'Hilfstabelle Sport Saisonziele'!$C$2:$C$148,'Hilfstabelle Sport Saisonziele'!$D$2:$D$148),2,FALSE)=0,"",VLOOKUP(G$8&$A23,CHOOSE({1,2},'Hilfstabelle Sport Saisonziele'!$A$2:$A$148&'Hilfstabelle Sport Saisonziele'!$C$2:$C$148,'Hilfstabelle Sport Saisonziele'!$D$2:$D$148),2,FALSE)),"") ->  | J23: =IFERROR(IF(VLOOKUP(K$8&$A23,CHOOSE({1,2},'Hilfstabelle Sport Saisonziele'!$A$2:$A$294&'Hilfstabelle Sport Saisonziele'!$C$2:$C$294,'Hilfstabelle Sport Saisonziele'!$B$2:$B$294),2,FALSE)=0,"",VLOOKUP(K$8&$A23,CHOOSE({1,2},'Hilfstabelle Sport Saisonziele'!$A$2:$A$294&'Hilfstabelle Sport Saisonziele'!$C$2:$C$294,'Hilfstabelle Sport Saisonziele'!$B$2:$B$294),2,FALSE)),"") ->  | K23: =IFERROR(IF(VLOOKUP(K$8&$A23,CHOOSE({1,2},'Hilfstabelle Sport Saisonziele'!$A$2:$A$148&'Hilfstabelle Sport Saisonziele'!$C$2:$C$148,'Hilfstabelle Sport Saisonziele'!$D$2:$D$148),2,FALSE)=0,"",VLOOKUP(K$8&$A23,CHOOSE({1,2},'Hilfstabelle Sport Saisonziele'!$A$2:$A$148&'Hilfstabelle Sport Saisonziele'!$C$2:$C$148,'Hilfstabelle Sport Saisonziele'!$D$2:$D$148),2,FALSE)),"") ->  | N23: =IFERROR(IF(VLOOKUP(O$8&$A23,CHOOSE({1,2},'Hilfstabelle Sport Saisonziele'!$A$2:$A$294&'Hilfstabelle Sport Saisonziele'!$C$2:$C$294,'Hilfstabelle Sport Saisonziele'!$B$2:$B$294),2,FALSE)=0,"",VLOOKUP(O$8&$A23,CHOOSE({1,2},'Hilfstabelle Sport Saisonziele'!$A$2:$A$294&'Hilfstabelle Sport Saisonziele'!$C$2:$C$294,'Hilfstabelle Sport Saisonziele'!$B$2:$B$294),2,FALSE)),"") ->  | O23: =IFERROR(IF(VLOOKUP(O$8&$A23,CHOOSE({1,2},'Hilfstabelle Sport Saisonziele'!$A$2:$A$148&'Hilfstabelle Sport Saisonziele'!$C$2:$C$148,'Hilfstabelle Sport Saisonziele'!$D$2:$D$148),2,FALSE)=0,"",VLOOKUP(O$8&$A23,CHOOSE({1,2},'Hilfstabelle Sport Saisonziele'!$A$2:$A$148&'Hilfstabelle Sport Saisonziele'!$C$2:$C$148,'Hilfstabelle Sport Saisonziele'!$D$2:$D$148),2,FALSE)),"") -> 
A24: Service militaire fin | B24: =IFERROR(IF(VLOOKUP(C$8&$A24,CHOOSE({1,2},'Hilfstabelle Sport Saisonziele'!$A$2:$A$294&'Hilfstabelle Sport Saisonziele'!$C$2:$C$294,'Hilfstabelle Sport Saisonziele'!$B$2:$B$294),2,FALSE)=0,"",VLOOKUP(C$8&$A24,CHOOSE({1,2},'Hilfstabelle Sport Saisonziele'!$A$2:$A$294&'Hilfstabelle Sport Saisonziele'!$C$2:$C$294,'Hilfstabelle Sport Saisonziele'!$B$2:$B$294),2,FALSE)),"") ->  | C24: =IFERROR(IF(VLOOKUP(C$8&$A24,CHOOSE({1,2},'Hilfstabelle Sport Saisonziele'!$A$2:$A$148&'Hilfstabelle Sport Saisonziele'!$C$2:$C$148,'Hilfstabelle Sport Saisonziele'!$D$2:$D$148),2,FALSE)=0,"",VLOOKUP(C$8&$A24,CHOOSE({1,2},'Hilfstabelle Sport Saisonziele'!$A$2:$A$148&'Hilfstabelle Sport Saisonziele'!$C$2:$C$148,'Hilfstabelle Sport Saisonziele'!$D$2:$D$148),2,FALSE)),"") ->  | F24: =IFERROR(IF(VLOOKUP(G$8&$A24,CHOOSE({1,2},'Hilfstabelle Sport Saisonziele'!$A$2:$A$294&'Hilfstabelle Sport Saisonziele'!$C$2:$C$294,'Hilfstabelle Sport Saisonziele'!$B$2:$B$294),2,FALSE)=0,"",VLOOKUP(G$8&$A24,CHOOSE({1,2},'Hilfstabelle Sport Saisonziele'!$A$2:$A$294&'Hilfstabelle Sport Saisonziele'!$C$2:$C$294,'Hilfstabelle Sport Saisonziele'!$B$2:$B$294),2,FALSE)),"") ->  | G24: =IFERROR(IF(VLOOKUP(G$8&$A24,CHOOSE({1,2},'Hilfstabelle Sport Saisonziele'!$A$2:$A$148&'Hilfstabelle Sport Saisonziele'!$C$2:$C$148,'Hilfstabelle Sport Saisonziele'!$D$2:$D$148),2,FALSE)=0,"",VLOOKUP(G$8&$A24,CHOOSE({1,2},'Hilfstabelle Sport Saisonziele'!$A$2:$A$148&'Hilfstabelle Sport Saisonziele'!$C$2:$C$148,'Hilfstabelle Sport Saisonziele'!$D$2:$D$148),2,FALSE)),"") ->  | J24: =IFERROR(IF(VLOOKUP(K$8&$A24,CHOOSE({1,2},'Hilfstabelle Sport Saisonziele'!$A$2:$A$294&'Hilfstabelle Sport Saisonziele'!$C$2:$C$294,'Hilfstabelle Sport Saisonziele'!$B$2:$B$294),2,FALSE)=0,"",VLOOKUP(K$8&$A24,CHOOSE({1,2},'Hilfstabelle Sport Saisonziele'!$A$2:$A$294&'Hilfstabelle Sport Saisonziele'!$C$2:$C$294,'Hilfstabelle Sport Saisonziele'!$B$2:$B$294),2,FALSE)),"") ->  | K24: =IFERROR(IF(VLOOKUP(K$8&$A24,CHOOSE({1,2},'Hilfstabelle Sport Saisonziele'!$A$2:$A$148&'Hilfstabelle Sport Saisonziele'!$C$2:$C$148,'Hilfstabelle Sport Saisonziele'!$D$2:$D$148),2,FALSE)=0,"",VLOOKUP(K$8&$A24,CHOOSE({1,2},'Hilfstabelle Sport Saisonziele'!$A$2:$A$148&'Hilfstabelle Sport Saisonziele'!$C$2:$C$148,'Hilfstabelle Sport Saisonziele'!$D$2:$D$148),2,FALSE)),"") ->  | N24: =IFERROR(IF(VLOOKUP(O$8&$A24,CHOOSE({1,2},'Hilfstabelle Sport Saisonziele'!$A$2:$A$294&'Hilfstabelle Sport Saisonziele'!$C$2:$C$294,'Hilfstabelle Sport Saisonziele'!$B$2:$B$294),2,FALSE)=0,"",VLOOKUP(O$8&$A24,CHOOSE({1,2},'Hilfstabelle Sport Saisonziele'!$A$2:$A$294&'Hilfstabelle Sport Saisonziele'!$C$2:$C$294,'Hilfstabelle Sport Saisonziele'!$B$2:$B$294),2,FALSE)),"") ->  | O24: =IFERROR(IF(VLOOKUP(O$8&$A24,CHOOSE({1,2},'Hilfstabelle Sport Saisonziele'!$A$2:$A$148&'Hilfstabelle Sport Saisonziele'!$C$2:$C$148,'Hilfstabelle Sport Saisonziele'!$D$2:$D$148),2,FALSE)=0,"",VLOOKUP(O$8&$A24,CHOOSE({1,2},'Hilfstabelle Sport Saisonziele'!$A$2:$A$148&'Hilfstabelle Sport Saisonziele'!$C$2:$C$148,'Hilfstabelle Sport Saisonziele'!$D$2:$D$148),2,FALSE)),"") -> 
A56: Planification Formation
A57: Tous les champs sont complétés automatiquement. Pour cela tu dois remplir les feuilles de calcul « Données personnelles » et « Planification Formation » en entier.
C59: ='Planification Formation'!I8 -> 2022 | G59: ='Planification Formation'!I9 -> 2023 | K59: ='Planification Formation'!I10 -> 2024 | O59: ='Planification Formation'!I11 -> 2025
C60: =DATE(C59,1,1) -> 2022-01-01 | G60: =DATE(G59,1,1) -> 2023-01-01 | K60: =DATE(K59,1,1) -> 2024-01-01 | O60: =DATE(O59,1,1) -> 2025-01-01
A62: Formation | C62: =VLOOKUP(C$59,'Hilfstabelle Schule Ausbildung'!$A$1:$B$22,2,0) -> 0 | G62: =VLOOKUP(G$59,'Hilfstabelle Schule Ausbildung'!$A$1:$B$22,2,0) -> 0 | K62: =VLOOKUP(K$59,'Hilfstabelle Schule Ausbildung'!$A$1:$B$22,2,0) -> 0 | O62: =VLOOKUP(O$59,'Hilfstabelle Schule Ausbildung'!$A$1:$B$22,2,0) -> 0
A63: Etapes
A64: Echéance 1 | B64: =IFERROR(IF(VLOOKUP(C$59&$A64,CHOOSE({1,2},'Hilfstabelle Schule Meilenstein'!$A$2:$A$210&'Hilfstabelle Schule Meilenstein'!$C$2:$C$210,'Hilfstabelle Schule Meilenstein'!$B$2:$B$210),2,FALSE)=0,"",VLOOKUP(C$59&$A64,CHOOSE({1,2},'Hilfstabelle Schule Meilenstein'!$A$2:$A$210&'Hilfstabelle Schule Meilenstein'!$C$2:$C$210,'Hilfstabelle Schule Meilenstein'!$B$2:$B$210),2,FALSE)),"") ->  | C64: =IFERROR(IF(VLOOKUP(C$59&$A64,CHOOSE({1,2},'Hilfstabelle Schule Meilenstein'!$A$2:$A$106&'Hilfstabelle Schule Meilenstein'!$C$2:$C$106,'Hilfstabelle Schule Meilenstein'!$D$2:$D$106),2,FALSE)=0,"",VLOOKUP(C$59&$A64,CHOOSE({1,2},'Hilfstabelle Schule Meilenstein'!$A$2:$A$106&'Hilfstabelle Schule Meilenstein'!$C$2:$C$106,'Hilfstabelle Schule Meilenstein'!$D$2:$D$106),2,FALSE)),"") ->  | F64: =IFERROR(IF(VLOOKUP(G$59&$A64,CHOOSE({1,2},'Hilfstabelle Schule Meilenstein'!$A$2:$A$210&'Hilfstabelle Schule Meilenstein'!$C$2:$C$210,'Hilfstabelle Schule Meilenstein'!$B$2:$B$210),2,FALSE)=0,"",VLOOKUP(G$59&$A64,CHOOSE({1,2},'Hilfstabelle Schule Meilenstein'!$A$2:$A$210&'Hilfstabelle Schule Meilenstein'!$C$2:$C$210,'Hilfstabelle Schule Meilenstein'!$B$2:$B$210),2,FALSE)),"") ->  | G64: =IFERROR(IF(VLOOKUP(G$59&$A64,CHOOSE({1,2},'Hilfstabelle Schule Meilenstein'!$A$2:$A$106&'Hilfstabelle Schule Meilenstein'!$C$2:$C$106,'Hilfstabelle Schule Meilenstein'!$D$2:$D$106),2,FALSE)=0,"",VLOOKUP(G$59&$A64,CHOOSE({1,2},'Hilfstabelle Schule Meilenstein'!$A$2:$A$106&'Hilfstabelle Schule Meilenstein'!$C$2:$C$106,'Hilfstabelle Schule Meilenstein'!$D$2:$D$106),2,FALSE)),"") ->  | J64: =IFERROR(IF(VLOOKUP(K$59&$A64,CHOOSE({1,2},'Hilfstabelle Schule Meilenstein'!$A$2:$A$210&'Hilfstabelle Schule Meilenstein'!$C$2:$C$210,'Hilfstabelle Schule Meilenstein'!$B$2:$B$210),2,FALSE)=0,"",VLOOKUP(K$59&$A64,CHOOSE({1,2},'Hilfstabelle Schule Meilenstein'!$A$2:$A$210&'Hilfstabelle Schule Meilenstein'!$C$2:$C$210,'Hilfstabelle Schule Meilenstein'!$B$2:$B$210),2,FALSE)),"") ->  | K64: =IFERROR(IF(VLOOKUP(K$59&$A64,CHOOSE({1,2},'Hilfstabelle Schule Meilenstein'!$A$2:$A$106&'Hilfstabelle Schule Meilenstein'!$C$2:$C$106,'Hilfstabelle Schule Meilenstein'!$D$2:$D$106),2,FALSE)=0,"",VLOOKUP(K$59&$A64,CHOOSE({1,2},'Hilfstabelle Schule Meilenstein'!$A$2:$A$106&'Hilfstabelle Schule Meilenstein'!$C$2:$C$106,'Hilfstabelle Schule Meilenstein'!$D$2:$D$106),2,FALSE)),"") ->  | N64: =IFERROR(IF(VLOOKUP(O$59&$A64,CHOOSE({1,2},'Hilfstabelle Schule Meilenstein'!$A$2:$A$210&'Hilfstabelle Schule Meilenstein'!$C$2:$C$210,'Hilfstabelle Schule Meilenstein'!$B$2:$B$210),2,FALSE)=0,"",VLOOKUP(O$59&$A64,CHOOSE({1,2},'Hilfstabelle Schule Meilenstein'!$A$2:$A$210&'Hilfstabelle Schule Meilenstein'!$C$2:$C$210,'Hilfstabelle Schule Meilenstein'!$B$2:$B$210),2,FALSE)),"") ->  | O64: =IFERROR(IF(VLOOKUP(O$59&$A64,CHOOSE({1,2},'Hilfstabelle Schule Meilenstein'!$A$2:$A$106&'Hilfstabelle Schule Meilenstein'!$C$2:$C$106,'Hilfstabelle Schule Meilenstein'!$D$2:$D$106),2,FALSE)=0,"",VLOOKUP(O$59&$A64,CHOOSE({1,2},'Hilfstabelle Schule Meilenstein'!$A$2:$A$106&'Hilfstabelle Schule Meilenstein'!$C$2:$C$106,'Hilfstabelle Schule Meilenstein'!$D$2:$D$106),2,FALSE)),"") -> 
A65: Echéance 2 | B65: =IFERROR(IF(VLOOKUP(C$59&$A65,CHOOSE({1,2},'Hilfstabelle Schule Meilenstein'!$A$2:$A$210&'Hilfstabelle Schule Meilenstein'!$C$2:$C$210,'Hilfstabelle Schule Meilenstein'!$B$2:$B$210),2,FALSE)=0,"",VLOOKUP(C$59&$A65,CHOOSE({1,2},'Hilfstabelle Schule Meilenstein'!$A$2:$A$210&'Hilfstabelle Schule Meilenstein'!$C$2:$C$210,'Hilfstabelle Schule Meilenstein'!$B$2:$B$210),2,FALSE)),"") ->  | C65: =IFERROR(IF(VLOOKUP(C$59&$A65,CHOOSE({1,2},'Hilfstabelle Schule Meilenstein'!$A$2:$A$106&'Hilfstabelle Schule Meilenstein'!$C$2:$C$106,'Hilfstabelle Schule Meilenstein'!$D$2:$D$106),2,FALSE)=0,"",VLOOKUP(C$59&$A65,CHOOSE({1,2},'Hilfstabelle Schule Meilenstein'!$A$2:$A$106&'Hilfstabelle Schule Meilenstein'!$C$2:$C$106,'Hilfstabelle Schule Meilenstein'!$D$2:$D$106),2,FALSE)),"") ->  | F65: =IFERROR(IF(VLOOKUP(G$59&$A65,CHOOSE({1,2},'Hilfstabelle Schule Meilenstein'!$A$2:$A$210&'Hilfstabelle Schule Meilenstein'!$C$2:$C$210,'Hilfstabelle Schule Meilenstein'!$B$2:$B$210),2,FALSE)=0,"",VLOOKUP(G$59&$A65,CHOOSE({1,2},'Hilfstabelle Schule Meilenstein'!$A$2:$A$210&'Hilfstabelle Schule Meilenstein'!$C$2:$C$210,'Hilfstabelle Schule Meilenstein'!$B$2:$B$210),2,FALSE)),"") ->  | G65: =IFERROR(IF(VLOOKUP(G$59&$A65,CHOOSE({1,2},'Hilfstabelle Schule Meilenstein'!$A$2:$A$106&'Hilfstabelle Schule Meilenstein'!$C$2:$C$106,'Hilfstabelle Schule Meilenstein'!$D$2:$D$106),2,FALSE)=0,"",VLOOKUP(G$59&$A65,CHOOSE({1,2},'Hilfstabelle Schule Meilenstein'!$A$2:$A$106&'Hilfstabelle Schule Meilenstein'!$C$2:$C$106,'Hilfstabelle Schule Meilenstein'!$D$2:$D$106),2,FALSE)),"") ->  | J65: =IFERROR(IF(VLOOKUP(K$59&$A65,CHOOSE({1,2},'Hilfstabelle Schule Meilenstein'!$A$2:$A$210&'Hilfstabelle Schule Meilenstein'!$C$2:$C$210,'Hilfstabelle Schule Meilenstein'!$B$2:$B$210),2,FALSE)=0,"",VLOOKUP(K$59&$A65,CHOOSE({1,2},'Hilfstabelle Schule Meilenstein'!$A$2:$A$210&'Hilfstabelle Schule Meilenstein'!$C$2:$C$210,'Hilfstabelle Schule Meilenstein'!$B$2:$B$210),2,FALSE)),"") ->  | K65: =IFERROR(IF(VLOOKUP(K$59&$A65,CHOOSE({1,2},'Hilfstabelle Schule Meilenstein'!$A$2:$A$106&'Hilfstabelle Schule Meilenstein'!$C$2:$C$106,'Hilfstabelle Schule Meilenstein'!$D$2:$D$106),2,FALSE)=0,"",VLOOKUP(K$59&$A65,CHOOSE({1,2},'Hilfstabelle Schule Meilenstein'!$A$2:$A$106&'Hilfstabelle Schule Meilenstein'!$C$2:$C$106,'Hilfstabelle Schule Meilenstein'!$D$2:$D$106),2,FALSE)),"") ->  | N65: =IFERROR(IF(VLOOKUP(O$59&$A65,CHOOSE({1,2},'Hilfstabelle Schule Meilenstein'!$A$2:$A$210&'Hilfstabelle Schule Meilenstein'!$C$2:$C$210,'Hilfstabelle Schule Meilenstein'!$B$2:$B$210),2,FALSE)=0,"",VLOOKUP(O$59&$A65,CHOOSE({1,2},'Hilfstabelle Schule Meilenstein'!$A$2:$A$210&'Hilfstabelle Schule Meilenstein'!$C$2:$C$210,'Hilfstabelle Schule Meilenstein'!$B$2:$B$210),2,FALSE)),"") ->  | O65: =IFERROR(IF(VLOOKUP(O$59&$A65,CHOOSE({1,2},'Hilfstabelle Schule Meilenstein'!$A$2:$A$106&'Hilfstabelle Schule Meilenstein'!$C$2:$C$106,'Hilfstabelle Schule Meilenstein'!$D$2:$D$106),2,FALSE)=0,"",VLOOKUP(O$59&$A65,CHOOSE({1,2},'Hilfstabelle Schule Meilenstein'!$A$2:$A$106&'Hilfstabelle Schule Meilenstein'!$C$2:$C$106,'Hilfstabelle Schule Meilenstein'!$D$2:$D$106),2,FALSE)),"") -> 
A66: Echéance 3 | B66: =IFERROR(IF(VLOOKUP(C$59&$A66,CHOOSE({1,2},'Hilfstabelle Schule Meilenstein'!$A$2:$A$210&'Hilfstabelle Schule Meilenstein'!$C$2:$C$210,'Hilfstabelle Schule Meilenstein'!$B$2:$B$210),2,FALSE)=0,"",VLOOKUP(C$59&$A66,CHOOSE({1,2},'Hilfstabelle Schule Meilenstein'!$A$2:$A$210&'Hilfstabelle Schule Meilenstein'!$C$2:$C$210,'Hilfstabelle Schule Meilenstein'!$B$2:$B$210),2,FALSE)),"") ->  | C66: =IFERROR(IF(VLOOKUP(C$59&$A66,CHOOSE({1,2},'Hilfstabelle Schule Meilenstein'!$A$2:$A$106&'Hilfstabelle Schule Meilenstein'!$C$2:$C$106,'Hilfstabelle Schule Meilenstein'!$D$2:$D$106),2,FALSE)=0,"",VLOOKUP(C$59&$A66,CHOOSE({1,2},'Hilfstabelle Schule Meilenstein'!$A$2:$A$106&'Hilfstabelle Schule Meilenstein'!$C$2:$C$106,'Hilfstabelle Schule Meilenstein'!$D$2:$D$106),2,FALSE)),"") ->  | F66: =IFERROR(IF(VLOOKUP(G$59&$A66,CHOOSE({1,2},'Hilfstabelle Schule Meilenstein'!$A$2:$A$210&'Hilfstabelle Schule Meilenstein'!$C$2:$C$210,'Hilfstabelle Schule Meilenstein'!$B$2:$B$210),2,FALSE)=0,"",VLOOKUP(G$59&$A66,CHOOSE({1,2},'Hilfstabelle Schule Meilenstein'!$A$2:$A$210&'Hilfstabelle Schule Meilenstein'!$C$2:$C$210,'Hilfstabelle Schule Meilenstein'!$B$2:$B$210),2,FALSE)),"") ->  | G66: =IFERROR(IF(VLOOKUP(G$59&$A66,CHOOSE({1,2},'Hilfstabelle Schule Meilenstein'!$A$2:$A$106&'Hilfstabelle Schule Meilenstein'!$C$2:$C$106,'Hilfstabelle Schule Meilenstein'!$D$2:$D$106),2,FALSE)=0,"",VLOOKUP(G$59&$A66,CHOOSE({1,2},'Hilfstabelle Schule Meilenstein'!$A$2:$A$106&'Hilfstabelle Schule Meilenstein'!$C$2:$C$106,'Hilfstabelle Schule Meilenstein'!$D$2:$D$106),2,FALSE)),"") ->  | J66: =IFERROR(IF(VLOOKUP(K$59&$A66,CHOOSE({1,2},'Hilfstabelle Schule Meilenstein'!$A$2:$A$210&'Hilfstabelle Schule Meilenstein'!$C$2:$C$210,'Hilfstabelle Schule Meilenstein'!$B$2:$B$210),2,FALSE)=0,"",VLOOKUP(K$59&$A66,CHOOSE({1,2},'Hilfstabelle Schule Meilenstein'!$A$2:$A$210&'Hilfstabelle Schule Meilenstein'!$C$2:$C$210,'Hilfstabelle Schule Meilenstein'!$B$2:$B$210),2,FALSE)),"") ->  | K66: =IFERROR(IF(VLOOKUP(K$59&$A66,CHOOSE({1,2},'Hilfstabelle Schule Meilenstein'!$A$2:$A$106&'Hilfstabelle Schule Meilenstein'!$C$2:$C$106,'Hilfstabelle Schule Meilenstein'!$D$2:$D$106),2,FALSE)=0,"",VLOOKUP(K$59&$A66,CHOOSE({1,2},'Hilfstabelle Schule Meilenstein'!$A$2:$A$106&'Hilfstabelle Schule Meilenstein'!$C$2:$C$106,'Hilfstabelle Schule Meilenstein'!$D$2:$D$106),2,FALSE)),"") ->  | N66: =IFERROR(IF(VLOOKUP(O$59&$A66,CHOOSE({1,2},'Hilfstabelle Schule Meilenstein'!$A$2:$A$210&'Hilfstabelle Schule Meilenstein'!$C$2:$C$210,'Hilfstabelle Schule Meilenstein'!$B$2:$B$210),2,FALSE)=0,"",VLOOKUP(O$59&$A66,CHOOSE({1,2},'Hilfstabelle Schule Meilenstein'!$A$2:$A$210&'Hilfstabelle Schule Meilenstein'!$C$2:$C$210,'Hilfstabelle Schule Meilenstein'!$B$2:$B$210),2,FALSE)),"") ->  | O66: =IFERROR(IF(VLOOKUP(O$59&$A66,CHOOSE({1,2},'Hilfstabelle Schule Meilenstein'!$A$2:$A$106&'Hilfstabelle Schule Meilenstein'!$C$2:$C$106,'Hilfstabelle Schule Meilenstein'!$D$2:$D$106),2,FALSE)=0,"",VLOOKUP(O$59&$A66,CHOOSE({1,2},'Hilfstabelle Schule Meilenstein'!$A$2:$A$106&'Hilfstabelle Schule Meilenstein'!$C$2:$C$106,'Hilfstabelle Schule Meilenstein'!$D$2:$D$106),2,FALSE)),"") -> 
A67: Echéance 4 | B67: =IFERROR(IF(VLOOKUP(C$59&$A67,CHOOSE({1,2},'Hilfstabelle Schule Meilenstein'!$A$2:$A$210&'Hilfstabelle Schule Meilenstein'!$C$2:$C$210,'Hilfstabelle Schule Meilenstein'!$B$2:$B$210),2,FALSE)=0,"",VLOOKUP(C$59&$A67,CHOOSE({1,2},'Hilfstabelle Schule Meilenstein'!$A$2:$A$210&'Hilfstabelle Schule Meilenstein'!$C$2:$C$210,'Hilfstabelle Schule Meilenstein'!$B$2:$B$210),2,FALSE)),"") ->  | C67: =IFERROR(IF(VLOOKUP(C$59&$A67,CHOOSE({1,2},'Hilfstabelle Schule Meilenstein'!$A$2:$A$106&'Hilfstabelle Schule Meilenstein'!$C$2:$C$106,'Hilfstabelle Schule Meilenstein'!$D$2:$D$106),2,FALSE)=0,"",VLOOKUP(C$59&$A67,CHOOSE({1,2},'Hilfstabelle Schule Meilenstein'!$A$2:$A$106&'Hilfstabelle Schule Meilenstein'!$C$2:$C$106,'Hilfstabelle Schule Meilenstein'!$D$2:$D$106),2,FALSE)),"") ->  | F67: =IFERROR(IF(VLOOKUP(G$59&$A67,CHOOSE({1,2},'Hilfstabelle Schule Meilenstein'!$A$2:$A$210&'Hilfstabelle Schule Meilenstein'!$C$2:$C$210,'Hilfstabelle Schule Meilenstein'!$B$2:$B$210),2,FALSE)=0,"",VLOOKUP(G$59&$A67,CHOOSE({1,2},'Hilfstabelle Schule Meilenstein'!$A$2:$A$210&'Hilfstabelle Schule Meilenstein'!$C$2:$C$210,'Hilfstabelle Schule Meilenstein'!$B$2:$B$210),2,FALSE)),"") ->  | G67: =IFERROR(IF(VLOOKUP(G$59&$A67,CHOOSE({1,2},'Hilfstabelle Schule Meilenstein'!$A$2:$A$106&'Hilfstabelle Schule Meilenstein'!$C$2:$C$106,'Hilfstabelle Schule Meilenstein'!$D$2:$D$106),2,FALSE)=0,"",VLOOKUP(G$59&$A67,CHOOSE({1,2},'Hilfstabelle Schule Meilenstein'!$A$2:$A$106&'Hilfstabelle Schule Meilenstein'!$C$2:$C$106,'Hilfstabelle Schule Meilenstein'!$D$2:$D$106),2,FALSE)),"") ->  | J67: =IFERROR(IF(VLOOKUP(K$59&$A67,CHOOSE({1,2},'Hilfstabelle Schule Meilenstein'!$A$2:$A$210&'Hilfstabelle Schule Meilenstein'!$C$2:$C$210,'Hilfstabelle Schule Meilenstein'!$B$2:$B$210),2,FALSE)=0,"",VLOOKUP(K$59&$A67,CHOOSE({1,2},'Hilfstabelle Schule Meilenstein'!$A$2:$A$210&'Hilfstabelle Schule Meilenstein'!$C$2:$C$210,'Hilfstabelle Schule Meilenstein'!$B$2:$B$210),2,FALSE)),"") ->  | K67: =IFERROR(IF(VLOOKUP(K$59&$A67,CHOOSE({1,2},'Hilfstabelle Schule Meilenstein'!$A$2:$A$106&'Hilfstabelle Schule Meilenstein'!$C$2:$C$106,'Hilfstabelle Schule Meilenstein'!$D$2:$D$106),2,FALSE)=0,"",VLOOKUP(K$59&$A67,CHOOSE({1,2},'Hilfstabelle Schule Meilenstein'!$A$2:$A$106&'Hilfstabelle Schule Meilenstein'!$C$2:$C$106,'Hilfstabelle Schule Meilenstein'!$D$2:$D$106),2,FALSE)),"") ->  | N67: =IFERROR(IF(VLOOKUP(O$59&$A67,CHOOSE({1,2},'Hilfstabelle Schule Meilenstein'!$A$2:$A$210&'Hilfstabelle Schule Meilenstein'!$C$2:$C$210,'Hilfstabelle Schule Meilenstein'!$B$2:$B$210),2,FALSE)=0,"",VLOOKUP(O$59&$A67,CHOOSE({1,2},'Hilfstabelle Schule Meilenstein'!$A$2:$A$210&'Hilfstabelle Schule Meilenstein'!$C$2:$C$210,'Hilfstabelle Schule Meilenstein'!$B$2:$B$210),2,FALSE)),"") ->  | O67: =IFERROR(IF(VLOOKUP(O$59&$A67,CHOOSE({1,2},'Hilfstabelle Schule Meilenstein'!$A$2:$A$106&'Hilfstabelle Schule Meilenstein'!$C$2:$C$106,'Hilfstabelle Schule Meilenstein'!$D$2:$D$106),2,FALSE)=0,"",VLOOKUP(O$59&$A67,CHOOSE({1,2},'Hilfstabelle Schule Meilenstein'!$A$2:$A$106&'Hilfstabelle Schule Meilenstein'!$C$2:$C$106,'Hilfstabelle Schule Meilenstein'!$D$2:$D$106),2,FALSE)),"") -> 
A68: Echéance 5 | B68: =IFERROR(IF(VLOOKUP(C$59&$A68,CHOOSE({1,2},'Hilfstabelle Schule Meilenstein'!$A$2:$A$210&'Hilfstabelle Schule Meilenstein'!$C$2:$C$210,'Hilfstabelle Schule Meilenstein'!$B$2:$B$210),2,FALSE)=0,"",VLOOKUP(C$59&$A68,CHOOSE({1,2},'Hilfstabelle Schule Meilenstein'!$A$2:$A$210&'Hilfstabelle Schule Meilenstein'!$C$2:$C$210,'Hilfstabelle Schule Meilenstein'!$B$2:$B$210),2,FALSE)),"") ->  | C68: =IFERROR(IF(VLOOKUP(C$59&$A68,CHOOSE({1,2},'Hilfstabelle Schule Meilenstein'!$A$2:$A$106&'Hilfstabelle Schule Meilenstein'!$C$2:$C$106,'Hilfstabelle Schule Meilenstein'!$D$2:$D$106),2,FALSE)=0,"",VLOOKUP(C$59&$A68,CHOOSE({1,2},'Hilfstabelle Schule Meilenstein'!$A$2:$A$106&'Hilfstabelle Schule Meilenstein'!$C$2:$C$106,'Hilfstabelle Schule Meilenstein'!$D$2:$D$106),2,FALSE)),"") ->  | F68: =IFERROR(IF(VLOOKUP(G$59&$A68,CHOOSE({1,2},'Hilfstabelle Schule Meilenstein'!$A$2:$A$210&'Hilfstabelle Schule Meilenstein'!$C$2:$C$210,'Hilfstabelle Schule Meilenstein'!$B$2:$B$210),2,FALSE)=0,"",VLOOKUP(G$59&$A68,CHOOSE({1,2},'Hilfstabelle Schule Meilenstein'!$A$2:$A$210&'Hilfstabelle Schule Meilenstein'!$C$2:$C$210,'Hilfstabelle Schule Meilenstein'!$B$2:$B$210),2,FALSE)),"") ->  | G68: =IFERROR(IF(VLOOKUP(G$59&$A68,CHOOSE({1,2},'Hilfstabelle Schule Meilenstein'!$A$2:$A$106&'Hilfstabelle Schule Meilenstein'!$C$2:$C$106,'Hilfstabelle Schule Meilenstein'!$D$2:$D$106),2,FALSE)=0,"",VLOOKUP(G$59&$A68,CHOOSE({1,2},'Hilfstabelle Schule Meilenstein'!$A$2:$A$106&'Hilfstabelle Schule Meilenstein'!$C$2:$C$106,'Hilfstabelle Schule Meilenstein'!$D$2:$D$106),2,FALSE)),"") ->  | J68: =IFERROR(IF(VLOOKUP(K$59&$A68,CHOOSE({1,2},'Hilfstabelle Schule Meilenstein'!$A$2:$A$210&'Hilfstabelle Schule Meilenstein'!$C$2:$C$210,'Hilfstabelle Schule Meilenstein'!$B$2:$B$210),2,FALSE)=0,"",VLOOKUP(K$59&$A68,CHOOSE({1,2},'Hilfstabelle Schule Meilenstein'!$A$2:$A$210&'Hilfstabelle Schule Meilenstein'!$C$2:$C$210,'Hilfstabelle Schule Meilenstein'!$B$2:$B$210),2,FALSE)),"") ->  | K68: =IFERROR(IF(VLOOKUP(K$59&$A68,CHOOSE({1,2},'Hilfstabelle Schule Meilenstein'!$A$2:$A$106&'Hilfstabelle Schule Meilenstein'!$C$2:$C$106,'Hilfstabelle Schule Meilenstein'!$D$2:$D$106),2,FALSE)=0,"",VLOOKUP(K$59&$A68,CHOOSE({1,2},'Hilfstabelle Schule Meilenstein'!$A$2:$A$106&'Hilfstabelle Schule Meilenstein'!$C$2:$C$106,'Hilfstabelle Schule Meilenstein'!$D$2:$D$106),2,FALSE)),"") ->  | N68: =IFERROR(IF(VLOOKUP(O$59&$A68,CHOOSE({1,2},'Hilfstabelle Schule Meilenstein'!$A$2:$A$210&'Hilfstabelle Schule Meilenstein'!$C$2:$C$210,'Hilfstabelle Schule Meilenstein'!$B$2:$B$210),2,FALSE)=0,"",VLOOKUP(O$59&$A68,CHOOSE({1,2},'Hilfstabelle Schule Meilenstein'!$A$2:$A$210&'Hilfstabelle Schule Meilenstein'!$C$2:$C$210,'Hilfstabelle Schule Meilenstein'!$B$2:$B$210),2,FALSE)),"") ->  | O68: =IFERROR(IF(VLOOKUP(O$59&$A68,CHOOSE({1,2},'Hilfstabelle Schule Meilenstein'!$A$2:$A$106&'Hilfstabelle Schule Meilenstein'!$C$2:$C$106,'Hilfstabelle Schule Meilenstein'!$D$2:$D$106),2,FALSE)=0,"",VLOOKUP(O$59&$A68,CHOOSE({1,2},'Hilfstabelle Schule Meilenstein'!$A$2:$A$106&'Hilfstabelle Schule Meilenstein'!$C$2:$C$106,'Hilfstabelle Schule Meilenstein'!$D$2:$D$106),2,FALSE)),"") -> 

Sheet Hilfsblatt Zeitstrahl (hidden)
A1: Jahr | B1: Datum | C1: Meilenstein | D1: Hilfspalte 2 | E1: Hilfspalte 1 | G1: Jahr | H1: Datum | I1: Meilenstein | J1: Hilfspalte 2 | K1: Hilfspalte 1
A2: ='Planification Formation'!$I$8 -> 2022 | B2: =DATE(A2,1,1) -> 2022-01-01 | C2: =IFERROR(IF(VLOOKUP($B2,Récapitulatif!$B$64:$E$68,2,FALSE)=0,"",VLOOKUP($B2,Récapitulatif!$B$64:$E$68,2,FALSE)),"") ->  | D2: =IF($C2="",0,$E2) -> 0 | E2: -3.5 | G2: ='Planification Sport'!$G$8 -> 2022 | H2: =DATE(G2,1,1) -> 2022-01-01 | I2: =IFERROR(IF(VLOOKUP($H2,Récapitulatif!$B$14:$E$24,2,FALSE)=0,"",VLOOKUP(H2,Récapitulatif!$B$14:$E$24,2,FALSE)),"") ->  | J2: =IF($I2="",0,$K2) -> 0 | K2: 3.5
A3: =YEAR(B3) -> 2022 | B3: =B2+1 -> 2022-01-02 | C3: =IFERROR(IF(VLOOKUP($B3,Récapitulatif!$B$64:$E$68,2,FALSE)=0,"",VLOOKUP($B3,Récapitulatif!$B$64:$E$68,2,FALSE)),"") ->  | D3: =IF($C3="",0,$E3) -> 0 | E3: -3.5 | G3: =YEAR(H3) -> 2022 | H3: =H2+1 -> 2022-01-02 | I3: =IFERROR(IF(VLOOKUP($H3,Récapitulatif!$B$14:$E$24,2,FALSE)=0,"",VLOOKUP(H3,Récapitulatif!$B$14:$E$24,2,FALSE)),"") ->  | J3: =IF($I3="",0,$K3) -> 0 | K3: 3.5
A4: =YEAR(B4) -> 2022 | B4: =B3+1 -> 2022-01-03 | C4: =IFERROR(IF(VLOOKUP($B4,Récapitulatif!$B$64:$E$68,2,FALSE)=0,"",VLOOKUP($B4,Récapitulatif!$B$64:$E$68,2,FALSE)),"") ->  | D4: 0 | E4: -3.5 | G4: =YEAR(H4) -> 2022 | H4: =H3+1 -> 2022-01-03 | I4: =IFERROR(IF(VLOOKUP($H4,Récapitulatif!$B$14:$E$24,2,FALSE)=0,"",VLOOKUP(H4,Récapitulatif!$B$14:$E$24,2,FALSE)),"") ->  | J4: 0 | K4: 3.5
A5: 2022 | B5: 2022-01-04 | C5: =IFERROR(IF(VLOOKUP($B5,Récapitulatif!$B$64:$E$68,2,FALSE)=0,"",VLOOKUP($B5,Récapitulatif!$B$64:$E$68,2,FALSE)),"") ->  | D5: 0 | E5: -3.5 | G5: 2022 | H5: 2022-01-04 | I5: =IFERROR(IF(VLOOKUP($H5,Récapitulatif!$B$14:$E$24,2,FALSE)=0,"",VLOOKUP(H5,Récapitulatif!$B$14:$E$24,2,FALSE)),"") ->  | J5: 0 | K5: 3.5
A6: 2022 | B6: 2022-01-05 | C6: =IFERROR(IF(VLOOKUP($B6,Récapitulatif!$B$64:$E$68,2,FALSE)=0,"",VLOOKUP($B6,Récapitulatif!$B$64:$E$68,2,FALSE)),"") ->  | D6: 0 | E6: -3.5 | G6: 2022 | H6: 2022-01-05 | I6: =IFERROR(IF(VLOOKUP($H6,Récapitulatif!$B$14:$E$24,2,FALSE)=0,"",VLOOKUP(H6,Récapitulatif!$B$14:$E$24,2,FALSE)),"") ->  | J6: 0 | K6: 3.5
A7: 2022 | B7: 2022-01-06 | C7: =IFERROR(IF(VLOOKUP($B7,Récapitulatif!$B$64:$E$68,2,FALSE)=0,"",VLOOKUP($B7,Récapitulatif!$B$64:$E$68,2,FALSE)),"") ->  | D7: 0 | E7: -3.5 | G7: 2022 | H7: 2022-01-06 | I7: =IFERROR(IF(VLOOKUP($H7,Récapitulatif!$B$14:$E$24,2,FALSE)=0,"",VLOOKUP(H7,Récapitulatif!$B$14:$E$24,2,FALSE)),"") ->  | J7: 0 | K7: 3.5
A8: 2022 | B8: 2022-01-07 | C8: =IFERROR(IF(VLOOKUP($B8,Récapitulatif!$B$64:$E$68,2,FALSE)=0,"",VLOOKUP($B8,Récapitulatif!$B$64:$E$68,2,FALSE)),"") ->  | D8: 0 | E8: -3.5 | G8: 2022 | H8: 2022-01-07 | I8: =IFERROR(IF(VLOOKUP($H8,Récapitulatif!$B$14:$E$24,2,FALSE)=0,"",VLOOKUP(H8,Récapitulatif!$B$14:$E$24,2,FALSE)),"") ->  | J8: 0 | K8: 3.5
A9: 2022 | B9: 2022-01-08 | C9: =IFERROR(IF(VLOOKUP($B9,Récapitulatif!$B$64:$E$68,2,FALSE)=0,"",VLOOKUP($B9,Récapitulatif!$B$64:$E$68,2,FALSE)),"") ->  | D9: 0 | E9: -3.5 | G9: 2022 | H9: 2022-01-08 | I9: =IFERROR(IF(VLOOKUP($H9,Récapitulatif!$B$14:$E$24,2,FALSE)=0,"",VLOOKUP(H9,Récapitulatif!$B$14:$E$24,2,FALSE)),"") ->  | J9: 0 | K9: 3.5
A10: 2022 | B10: 2022-01-09 | C10: =IFERROR(IF(VLOOKUP($B10,Récapitulatif!$B$64:$E$68,2,FALSE)=0,"",VLOOKUP($B10,Récapitulatif!$B$64:$E$68,2,FALSE)),"") ->  | D10: 0 | E10: -3.5 | G10: 2022 | H10: 2022-01-09 | I10: =IFERROR(IF(VLOOKUP($H10,Récapitulatif!$B$14:$E$24,2,FALSE)=0,"",VLOOKUP(H10,Récapitulatif!$B$14:$E$24,2,FALSE)),"") ->  | J10: 0 | K10: 3.5
A11: 2022 | B11: 2022-01-10 | C11: =IFERROR(IF(VLOOKUP($B11,Récapitulatif!$B$64:$E$68,2,FALSE)=0,"",VLOOKUP($B11,Récapitulatif!$B$64:$E$68,2,FALSE)),"") ->  | D11: 0 | E11: -3.5 | G11: 2022 | H11: 2022-01-10 | I11: =IFERROR(IF(VLOOKUP($H11,Récapitulatif!$B$14:$E$24,2,FALSE)=0,"",VLOOKUP(H11,Récapitulatif!$B$14:$E$24,2,FALSE)),"") ->  | J11: 0 | K11: 3.5
A12: 2022 | B12: 2022-01-11 | C12: =IFERROR(IF(VLOOKUP($B12,Récapitulatif!$B$64:$E$68,2,FALSE)=0,"",VLOOKUP($B12,Récapitulatif!$B$64:$E$68,2,FALSE)),"") ->  | D12: 0 | E12: -3.5 | G12: 2022 | H12: 2022-01-11 | I12: =IFERROR(IF(VLOOKUP($H12,Récapitulatif!$B$14:$E$24,2,FALSE)=0,"",VLOOKUP(H12,Récapitulatif!$B$14:$E$24,2,FALSE)),"") ->  | J12: 0 | K12: 3.5
A13: 2022 | B13: 2022-01-12 | C13: =IFERROR(IF(VLOOKUP($B13,Récapitulatif!$B$64:$E$68,2,FALSE)=0,"",VLOOKUP($B13,Récapitulatif!$B$64:$E$68,2,FALSE)),"") ->  | D13: 0 | E13: -3.5 | G13: 2022 | H13: 2022-01-12 | I13: =IFERROR(IF(VLOOKUP($H13,Récapitulatif!$B$14:$E$24,2,FALSE)=0,"",VLOOKUP(H13,Récapitulatif!$B$14:$E$24,2,FALSE)),"") ->  | J13: 0 | K13: 3.5
A14: 2022 | B14: 2022-01-13 | C14: =IFERROR(IF(VLOOKUP($B14,Récapitulatif!$B$64:$E$68,2,FALSE)=0,"",VLOOKUP($B14,Récapitulatif!$B$64:$E$68,2,FALSE)),"") ->  | D14: 0 | E14: -3.5 | G14: 2022 | H14: 2022-01-13 | I14: =IFERROR(IF(VLOOKUP($H14,Récapitulatif!$B$14:$E$24,2,FALSE)=0,"",VLOOKUP(H14,Récapitulatif!$B$14:$E$24,2,FALSE)),"") ->  | J14: 0 | K14: 3.5
A15: 2022 | B15: 2022-01-14 | C15: =IFERROR(IF(VLOOKUP($B15,Récapitulatif!$B$64:$E$68,2,FALSE)=0,"",VLOOKUP($B15,Récapitulatif!$B$64:$E$68,2,FALSE)),"") ->  | D15: 0 | E15: -3.5 | G15: 2022 | H15: 2022-01-14 | I15: =IFERROR(IF(VLOOKUP($H15,Récapitulatif!$B$14:$E$24,2,FALSE)=0,"",VLOOKUP(H15,Récapitulatif!$B$14:$E$24,2,FALSE)),"") ->  | J15: 0 | K15: 3.5
A16: 2022 | B16: 2022-01-15 | C16: =IFERROR(IF(VLOOKUP($B16,Récapitulatif!$B$64:$E$68,2,FALSE)=0,"",VLOOKUP($B16,Récapitulatif!$B$64:$E$68,2,FALSE)),"") ->  | D16: 0 | E16: -3.5 | G16: 2022 | H16: 2022-01-15 | I16: =IFERROR(IF(VLOOKUP($H16,Récapitulatif!$B$14:$E$24,2,FALSE)=0,"",VLOOKUP(H16,Récapitulatif!$B$14:$E$24,2,FALSE)),"") ->  | J16: 0 | K16: 3.5
A17: 2022 | B17: 2022-01-16 | C17: =IFERROR(IF(VLOOKUP($B17,Récapitulatif!$B$64:$E$68,2,FALSE)=0,"",VLOOKUP($B17,Récapitulatif!$B$64:$E$68,2,FALSE)),"") ->  | D17: 0 | E17: -3.5 | G17: 2022 | H17: 2022-01-16 | I17: =IFERROR(IF(VLOOKUP($H17,Récapitulatif!$B$14:$E$24,2,FALSE)=0,"",VLOOKUP(H17,Récapitulatif!$B$14:$E$24,2,FALSE)),"") ->  | J17: 0 | K17: 3.5
A18: 2022 | B18: 2022-01-17 | C18: =IFERROR(IF(VLOOKUP($B18,Récapitulatif!$B$64:$E$68,2,FALSE)=0,"",VLOOKUP($B18,Récapitulatif!$B$64:$E$68,2,FALSE)),"") ->  | D18: 0 | E18: -3.5 | G18: 2022 | H18: 2022-01-17 | I18: =IFERROR(IF(VLOOKUP($H18,Récapitulatif!$B$14:$E$24,2,FALSE)=0,"",VLOOKUP(H18,Récapitulatif!$B$14:$E$24,2,FALSE)),"") ->  | J18: 0 | K18: 3.5
A19: 2022 | B19: 2022-01-18 | C19: =IFERROR(IF(VLOOKUP($B19,Récapitulatif!$B$64:$E$68,2,FALSE)=0,"",VLOOKUP($B19,Récapitulatif!$B$64:$E$68,2,FALSE)),"") ->  | D19: 0 | E19: -3.5 | G19: 2022 | H19: 2022-01-18 | I19: =IFERROR(IF(VLOOKUP($H19,Récapitulatif!$B$14:$E$24,2,FALSE)=0,"",VLOOKUP(H19,Récapitulatif!$B$14:$E$24,2,FALSE)),"") ->  | J19: 0 | K19: 3.5
A20: 2022 | B20: 2022-01-19 | C20: =IFERROR(IF(VLOOKUP($B20,Récapitulatif!$B$64:$E$68,2,FALSE)=0,"",VLOOKUP($B20,Récapitulatif!$B$64:$E$68,2,FALSE)),"") ->  | D20: 0 | E20: -3.5 | G20: 2022 | H20: 2022-01-19 | I20: =IFERROR(IF(VLOOKUP($H20,Récapitulatif!$B$14:$E$24,2,FALSE)=0,"",VLOOKUP(H20,Récapitulatif!$B$14:$E$24,2,FALSE)),"") ->  | J20: 0 | K20: 3.5
A21: 2022 | B21: 2022-01-20 | C21: =IFERROR(IF(VLOOKUP($B21,Récapitulatif!$B$64:$E$68,2,FALSE)=0,"",VLOOKUP($B21,Récapitulatif!$B$64:$E$68,2,FALSE)),"") ->  | D21: 0 | E21: -3.5 | G21: 2022 | H21: 2022-01-20 | I21: =IFERROR(IF(VLOOKUP($H21,Récapitulatif!$B$14:$E$24,2,FALSE)=0,"",VLOOKUP(H21,Récapitulatif!$B$14:$E$24,2,FALSE)),"") ->  | J21: 0 | K21: 3.5
A22: 2022 | B22: 2022-01-21 | C22: =IFERROR(IF(VLOOKUP($B22,Récapitulatif!$B$64:$E$68,2,FALSE)=0,"",VLOOKUP($B22,Récapitulatif!$B$64:$E$68,2,FALSE)),"") ->  | D22: 0 | E22: -3.5 | G22: 2022 | H22: 2022-01-21 | I22: =IFERROR(IF(VLOOKUP($H22,Récapitulatif!$B$14:$E$24,2,FALSE)=0,"",VLOOKUP(H22,Récapitulatif!$B$14:$E$24,2,FALSE)),"") ->  | J22: 0 | K22: 3.5
A23: 2022 | B23: 2022-01-22 | C23: =IFERROR(IF(VLOOKUP($B23,Récapitulatif!$B$64:$E$68,2,FALSE)=0,"",VLOOKUP($B23,Récapitulatif!$B$64:$E$68,2,FALSE)),"") ->  | D23: 0 | E23: -3.5 | G23: 2022 | H23: 2022-01-22 | I23: =IFERROR(IF(VLOOKUP($H23,Récapitulatif!$B$14:$E$24,2,FALSE)=0,"",VLOOKUP(H23,Récapitulatif!$B$14:$E$24,2,FALSE)),"") ->  | J23: 0 | K23: 3.5
A24: 2022 | B24: 2022-01-23 | C24: =IFERROR(IF(VLOOKUP($B24,Récapitulatif!$B$64:$E$68,2,FALSE)=0,"",VLOOKUP($B24,Récapitulatif!$B$64:$E$68,2,FALSE)),"") ->  | D24: 0 | E24: -3.5 | G24: 2022 | H24: 2022-01-23 | I24: =IFERROR(IF(VLOOKUP($H24,Récapitulatif!$B$14:$E$24,2,FALSE)=0,"",VLOOKUP(H24,Récapitulatif!$B$14:$E$24,2,FALSE)),"") ->  | J24: 0 | K24: 3.5
A25: 2022 | B25: 2022-01-24 | C25: =IFERROR(IF(VLOOKUP($B25,Récapitulatif!$B$64:$E$68,2,FALSE)=0,"",VLOOKUP($B25,Récapitulatif!$B$64:$E$68,2,FALSE)),"") ->  | D25: 0 | E25: -3.5 | G25: 2022 | H25: 2022-01-24 | I25: =IFERROR(IF(VLOOKUP($H25,Récapitulatif!$B$14:$E$24,2,FALSE)=0,"",VLOOKUP(H25,Récapitulatif!$B$14:$E$24,2,FALSE)),"") ->  | J25: 0 | K25: 3.5
A26: 2022 | B26: 2022-01-25 | C26: =IFERROR(IF(VLOOKUP($B26,Récapitulatif!$B$64:$E$68,2,FALSE)=0,"",VLOOKUP($B26,Récapitulatif!$B$64:$E$68,2,FALSE)),"") ->  | D26: 0 | E26: -3.5 | G26: 2022 | H26: 2022-01-25 | I26: =IFERROR(IF(VLOOKUP($H26,Récapitulatif!$B$14:$E$24,2,FALSE)=0,"",VLOOKUP(H26,Récapitulatif!$B$14:$E$24,2,FALSE)),"") ->  | J26: 0 | K26: 3.5
A27: 2022 | B27: 2022-01-26 | C27: =IFERROR(IF(VLOOKUP($B27,Récapitulatif!$B$64:$E$68,2,FALSE)=0,"",VLOOKUP($B27,Récapitulatif!$B$64:$E$68,2,FALSE)),"") ->  | D27: 0 | E27: -3.5 | G27: 2022 | H27: 2022-01-26 | I27: =IFERROR(IF(VLOOKUP($H27,Récapitulatif!$B$14:$E$24,2,FALSE)=0,"",VLOOKUP(H27,Récapitulatif!$B$14:$E$24,2,FALSE)),"") ->  | J27: 0 | K27: 3.5
A28: 2022 | B28: 2022-01-27 | C28: =IFERROR(IF(VLOOKUP($B28,Récapitulatif!$B$64:$E$68,2,FALSE)=0,"",VLOOKUP($B28,Récapitulatif!$B$64:$E$68,2,FALSE)),"") ->  | D28: 0 | E28: -3.5 | G28: 2022 | H28: 2022-01-27 | I28: =IFERROR(IF(VLOOKUP($H28,Récapitulatif!$B$14:$E$24,2,FALSE)=0,"",VLOOKUP(H28,Récapitulatif!$B$14:$E$24,2,FALSE)),"") ->  | J28: 0 | K28: 3.5
A29: 2022 | B29: 2022-01-28 | C29: =IFERROR(IF(VLOOKUP($B29,Récapitulatif!$B$64:$E$68,2,FALSE)=0,"",VLOOKUP($B29,Récapitulatif!$B$64:$E$68,2,FALSE)),"") ->  | D29: 0 | E29: -3.5 | G29: 2022 | H29: 2022-01-28 | I29: =IFERROR(IF(VLOOKUP($H29,Récapitulatif!$B$14:$E$24,2,FALSE)=0,"",VLOOKUP(H29,Récapitulatif!$B$14:$E$24,2,FALSE)),"") ->  | J29: 0 | K29: 3.5
A30: 2022 | B30: 2022-01-29 | C30: =IFERROR(IF(VLOOKUP($B30,Récapitulatif!$B$64:$E$68,2,FALSE)=0,"",VLOOKUP($B30,Récapitulatif!$B$64:$E$68,2,FALSE)),"") ->  | D30: 0 | E30: -3.5 | G30: 2022 | H30: 2022-01-29 | I30: =IFERROR(IF(VLOOKUP($H30,Récapitulatif!$B$14:$E$24,2,FALSE)=0,"",VLOOKUP(H30,Récapitulatif!$B$14:$E$24,2,FALSE)),"") ->  | J30: 0 | K30: 3.5
A31: 2022 | B31: 2022-01-30 | C31: =IFERROR(IF(VLOOKUP($B31,Récapitulatif!$B$64:$E$68,2,FALSE)=0,"",VLOOKUP($B31,Récapitulatif!$B$64:$E$68,2,FALSE)),"") ->  | D31: 0 | E31: -3.5 | G31: 2022 | H31: 2022-01-30 | I31: =IFERROR(IF(VLOOKUP($H31,Récapitulatif!$B$14:$E$24,2,FALSE)=0,"",VLOOKUP(H31,Récapitulatif!$B$14:$E$24,2,FALSE)),"") ->  | J31: 0 | K31: 3.5
A32: 2022 | B32: 2022-01-31 | C32: =IFERROR(IF(VLOOKUP($B32,Récapitulatif!$B$64:$E$68,2,FALSE)=0,"",VLOOKUP($B32,Récapitulatif!$B$64:$E$68,2,FALSE)),"") ->  | D32: 0 | E32: -3.5 | G32: 2022 | H32: 2022-01-31 | I32: =IFERROR(IF(VLOOKUP($H32,Récapitulatif!$B$14:$E$24,2,FALSE)=0,"",VLOOKUP(H32,Récapitulatif!$B$14:$E$24,2,FALSE)),"") ->  | J32: 0 | K32: 3.5
A33: 2022 | B33: 2022-02-01 | C33: =IFERROR(IF(VLOOKUP($B33,Récapitulatif!$B$64:$E$68,2,FALSE)=0,"",VLOOKUP($B33,Récapitulatif!$B$64:$E$68,2,FALSE)),"") ->  | D33: 0 | E33: -12.5 | G33: 2022 | H33: 2022-02-01 | I33: =IFERROR(IF(VLOOKUP($H33,Récapitulatif!$B$14:$E$24,2,FALSE)=0,"",VLOOKUP(H33,Récapitulatif!$B$14:$E$24,2,FALSE)),"") ->  | J33: 0 | K33: 12.5
A34: 2022 | B34: 2022-02-02 | C34: =IFERROR(IF(VLOOKUP($B34,Récapitulatif!$B$64:$E$68,2,FALSE)=0,"",VLOOKUP($B34,Récapitulatif!$B$64:$E$68,2,FALSE)),"") ->  | D34: 0 | E34: -12.5 | G34: 2022 | H34: 2022-02-02 | I34: =IFERROR(IF(VLOOKUP($H34,Récapitulatif!$B$14:$E$24,2,FALSE)=0,"",VLOOKUP(H34,Récapitulatif!$B$14:$E$24,2,FALSE)),"") ->  | J34: 0 | K34: 12.5
A35: 2022 | B35: 2022-02-03 | C35: =IFERROR(IF(VLOOKUP($B35,Récapitulatif!$B$64:$E$68,2,FALSE)=0,"",VLOOKUP($B35,Récapitulatif!$B$64:$E$68,2,FALSE)),"") ->  | D35: 0 | E35: -12.5 | G35: 2022 | H35: 2022-02-03 | I35: =IFERROR(IF(VLOOKUP($H35,Récapitulatif!$B$14:$E$24,2,FALSE)=0,"",VLOOKUP(H35,Récapitulatif!$B$14:$E$24,2,FALSE)),"") ->  | J35: 0 | K35: 12.5
A36: 2022 | B36: 2022-02-04 | C36: =IFERROR(IF(VLOOKUP($B36,Récapitulatif!$B$64:$E$68,2,FALSE)=0,"",VLOOKUP($B36,Récapitulatif!$B$64:$E$68,2,FALSE)),"") ->  | D36: 0 | E36: -12.5 | G36: 2022 | H36: 2022-02-04 | I36: =IFERROR(IF(VLOOKUP($H36,Récapitulatif!$B$14:$E$24,2,FALSE)=0,"",VLOOKUP(H36,Récapitulatif!$B$14:$E$24,2,FALSE)),"") ->  | J36: 0 | K36: 12.5
A37: 2022 | B37: 2022-02-05 | C37: =IFERROR(IF(VLOOKUP($B37,Récapitulatif!$B$64:$E$68,2,FALSE)=0,"",VLOOKUP($B37,Récapitulatif!$B$64:$E$68,2,FALSE)),"") ->  | D37: 0 | E37: -12.5 | G37: 2022 | H37: 2022-02-05 | I37: =IFERROR(IF(VLOOKUP($H37,Récapitulatif!$B$14:$E$24,2,FALSE)=0,"",VLOOKUP(H37,Récapitulatif!$B$14:$E$24,2,FALSE)),"") ->  | J37: 0 | K37: 12.5
A38: 2022 | B38: 2022-02-06 | C38: =IFERROR(IF(VLOOKUP($B38,Récapitulatif!$B$64:$E$68,2,FALSE)=0,"",VLOOKUP($B38,Récapitulatif!$B$64:$E$68,2,FALSE)),"") ->  | D38: 0 | E38: -12.5 | G38: 2022 | H38: 2022-02-06 | I38: =IFERROR(IF(VLOOKUP($H38,Récapitulatif!$B$14:$E$24,2,FALSE)=0,"",VLOOKUP(H38,Récapitulatif!$B$14:$E$24,2,FALSE)),"") ->  | J38: 0 | K38: 12.5
A39: 2022 | B39: 2022-02-07 | C39: =IFERROR(IF(VLOOKUP($B39,Récapitulatif!$B$64:$E$68,2,FALSE)=0,"",VLOOKUP($B39,Récapitulatif!$B$64:$E$68,2,FALSE)),"") ->  | D39: 0 | E39: -12.5 | G39: 2022 | H39: 2022-02-07 | I39: =IFERROR(IF(VLOOKUP($H39,Récapitulatif!$B$14:$E$24,2,FALSE)=0,"",VLOOKUP(H39,Récapitulatif!$B$14:$E$24,2,FALSE)),"") ->  | J39: 0 | K39: 12.5
A40: 2022 | B40: 2022-02-08 | C40: =IFERROR(IF(VLOOKUP($B40,Récapitulatif!$B$64:$E$68,2,FALSE)=0,"",VLOOKUP($B40,Récapitulatif!$B$64:$E$68,2,FALSE)),"") ->  | D40: 0 | E40: -12.5 | G40: 2022 | H40: 2022-02-08 | I40: =IFERROR(IF(VLOOKUP($H40,Récapitulatif!$B$14:$E$24,2,FALSE)=0,"",VLOOKUP(H40,Récapitulatif!$B$14:$E$24,2,FALSE)),"") ->  | J40: 0 | K40: 12.5
A41: 2022 | B41: 2022-02-09 | C41: =IFERROR(IF(VLOOKUP($B41,Récapitulatif!$B$64:$E$68,2,FALSE)=0,"",VLOOKUP($B41,Récapitulatif!$B$64:$E$68,2,FALSE)),"") ->  | D41: 0 | E41: -12.5 | G41: 2022 | H41: 2022-02-09 | I41: =IFERROR(IF(VLOOKUP($H41,Récapitulatif!$B$14:$E$24,2,FALSE)=0,"",VLOOKUP(H41,Récapitulatif!$B$14:$E$24,2,FALSE)),"") ->  | J41: 0 | K41: 12.5
A42: 2022 | B42: 2022-02-10 | C42: =IFERROR(IF(VLOOKUP($B42,Récapitulatif!$B$64:$E$68,2,FALSE)=0,"",VLOOKUP($B42,Récapitulatif!$B$64:$E$68,2,FALSE)),"") ->  | D42: 0 | E42: -12.5 | G42: 2022 | H42: 2022-02-10 | I42: =IFERROR(IF(VLOOKUP($H42,Récapitulatif!$B$14:$E$24,2,FALSE)=0,"",VLOOKUP(H42,Récapitulatif!$B$14:$E$24,2,FALSE)),"") ->  | J42: 0 | K42: 12.5
A43: 2022 | B43: 2022-02-11 | C43: =IFERROR(IF(VLOOKUP($B43,Récapitulatif!$B$64:$E$68,2,FALSE)=0,"",VLOOKUP($B43,Récapitulatif!$B$64:$E$68,2,FALSE)),"") ->  | D43: 0 | E43: -12.5 | G43: 2022 | H43: 2022-02-11 | I43: =IFERROR(IF(VLOOKUP($H43,Récapitulatif!$B$14:$E$24,2,FALSE)=0,"",VLOOKUP(H43,Récapitulatif!$B$14:$E$24,2,FALSE)),"") ->  | J43: 0 | K43: 12.5
A44: 2022 | B44: 2022-02-12 | C44: =IFERROR(IF(VLOOKUP($B44,Récapitulatif!$B$64:$E$68,2,FALSE)=0,"",VLOOKUP($B44,Récapitulatif!$B$64:$E$68,2,FALSE)),"") ->  | D44: 0 | E44: -12.5 | G44: 2022 | H44: 2022-02-12 | I44: =IFERROR(IF(VLOOKUP($H44,Récapitulatif!$B$14:$E$24,2,FALSE)=0,"",VLOOKUP(H44,Récapitulatif!$B$14:$E$24,2,FALSE)),"") ->  | J44: 0 | K44: 12.5
A45: 2022 | B45: 2022-02-13 | C45: =IFERROR(IF(VLOOKUP($B45,Récapitulatif!$B$64:$E$68,2,FALSE)=0,"",VLOOKUP($B45,Récapitulatif!$B$64:$E$68,2,FALSE)),"") ->  | D45: 0 | E45: -12.5 | G45: 2022 | H45: 2022-02-13 | I45: =IFERROR(IF(VLOOKUP($H45,Récapitulatif!$B$14:$E$24,2,FALSE)=0,"",VLOOKUP(H45,Récapitulatif!$B$14:$E$24,2,FALSE)),"") ->  | J45: 0 | K45: 12.5
A46: 2022 | B46: 2022-02-14 | C46: =IFERROR(IF(VLOOKUP($B46,Récapitulatif!$B$64:$E$68,2,FALSE)=0,"",VLOOKUP($B46,Récapitulatif!$B$64:$E$68,2,FALSE)),"") ->  | D46: 0 | E46: -12.5 | G46: 2022 | H46: 2022-02-14 | I46: =IFERROR(IF(VLOOKUP($H46,Récapitulatif!$B$14:$E$24,2,FALSE)=0,"",VLOOKUP(H46,Récapitulatif!$B$14:$E$24,2,FALSE)),"") ->  | J46: 0 | K46: 12.5
A47: 2022 | B47: 2022-02-15 | C47: =IFERROR(IF(VLOOKUP($B47,Récapitulatif!$B$64:$E$68,2,FALSE)=0,"",VLOOKUP($B47,Récapitulatif!$B$64:$E$68,2,FALSE)),"") ->  | D47: 0 | E47: -12.5 | G47: 2022 | H47: 2022-02-15 | I47: =IFERROR(IF(VLOOKUP($H47,Récapitulatif!$B$14:$E$24,2,FALSE)=0,"",VLOOKUP(H47,Récapitulatif!$B$14:$E$24,2,FALSE)),"") ->  | J47: 0 | K47: 12.5
A48: 2022 | B48: 2022-02-16 | C48: =IFERROR(IF(VLOOKUP($B48,Récapitulatif!$B$64:$E$68,2,FALSE)=0,"",VLOOKUP($B48,Récapitulatif!$B$64:$E$68,2,FALSE)),"") ->  | D48: 0 | E48: -12.5 | G48: 2022 | H48: 2022-02-16 | I48: =IFERROR(IF(VLOOKUP($H48,Récapitulatif!$B$14:$E$24,2,FALSE)=0,"",VLOOKUP(H48,Récapitulatif!$B$14:$E$24,2,FALSE)),"") ->  | J48: 0 | K48: 12.5
A49: 2022 | B49: 2022-02-17 | C49: =IFERROR(IF(VLOOKUP($B49,Récapitulatif!$B$64:$E$68,2,FALSE)=0,"",VLOOKUP($B49,Récapitulatif!$B$64:$E$68,2,FALSE)),"") ->  | D49: 0 | E49: -12.5 | G49: 2022 | H49: 2022-02-17 | I49: =IFERROR(IF(VLOOKUP($H49,Récapitulatif!$B$14:$E$24,2,FALSE)=0,"",VLOOKUP(H49,Récapitulatif!$B$14:$E$24,2,FALSE)),"") ->  | J49: 0 | K49: 12.5
A50: 2022 | B50: 2022-02-18 | C50: =IFERROR(IF(VLOOKUP($B50,Récapitulatif!$B$64:$E$68,2,FALSE)=0,"",VLOOKUP($B50,Récapitulatif!$B$64:$E$68,2,FALSE)),"") ->  | D50: 0 | E50: -12.5 | G50: 2022 | H50: 2022-02-18 | I50: =IFERROR(IF(VLOOKUP($H50,Récapitulatif!$B$14:$E$24,2,FALSE)=0,"",VLOOKUP(H50,Récapitulatif!$B$14:$E$24,2,FALSE)),"") ->  | J50: 0 | K50: 12.5
A51: 2022 | B51: 2022-02-19 | C51: =IFERROR(IF(VLOOKUP($B51,Récapitulatif!$B$64:$E$68,2,FALSE)=0,"",VLOOKUP($B51,Récapitulatif!$B$64:$E$68,2,FALSE)),"") ->  | D51: 0 | E51: -12.5 | G51: 2022 | H51: 2022-02-19 | I51: =IFERROR(IF(VLOOKUP($H51,Récapitulatif!$B$14:$E$24,2,FALSE)=0,"",VLOOKUP(H51,Récapitulatif!$B$14:$E$24,2,FALSE)),"") ->  | J51: 0 | K51: 12.5
A52: 2022 | B52: 2022-02-20 | C52: =IFERROR(IF(VLOOKUP($B52,Récapitulatif!$B$64:$E$68,2,FALSE)=0,"",VLOOKUP($B52,Récapitulatif!$B$64:$E$68,2,FALSE)),"") ->  | D52: 0 | E52: -12.5 | G52: 2022 | H52: 2022-02-20 | I52: =IFERROR(IF(VLOOKUP($H52,Récapitulatif!$B$14:$E$24,2,FALSE)=0,"",VLOOKUP(H52,Récapitulatif!$B$14:$E$24,2,FALSE)),"") ->  | J52: 0 | K52: 12.5
A53: 2022 | B53: 2022-02-21 | C53: =IFERROR(IF(VLOOKUP($B53,Récapitulatif!$B$64:$E$68,2,FALSE)=0,"",VLOOKUP($B53,Récapitulatif!$B$64:$E$68,2,FALSE)),"") ->  | D53: 0 | E53: -12.5 | G53: 2022 | H53: 2022-02-21 | I53: =IFERROR(IF(VLOOKUP($H53,Récapitulatif!$B$14:$E$24,2,FALSE)=0,"",VLOOKUP(H53,Récapitulatif!$B$14:$E$24,2,FALSE)),"") ->  | J53: 0 | K53: 12.5
A54: 2022 | B54: 2022-02-22 | C54: =IFERROR(IF(VLOOKUP($B54,Récapitulatif!$B$64:$E$68,2,FALSE)=0,"",VLOOKUP($B54,Récapitulatif!$B$64:$E$68,2,FALSE)),"") ->  | D54: 0 | E54: -12.5 | G54: 2022 | H54: 2022-02-22 | I54: =IFERROR(IF(VLOOKUP($H54,Récapitulatif!$B$14:$E$24,2,FALSE)=0,"",VLOOKUP(H54,Récapitulatif!$B$14:$E$24,2,FALSE)),"") ->  | J54: 0 | K54: 12.5
A55: 2022 | B55: 2022-02-23 | C55: =IFERROR(IF(VLOOKUP($B55,Récapitulatif!$B$64:$E$68,2,FALSE)=0,"",VLOOKUP($B55,Récapitulatif!$B$64:$E$68,2,FALSE)),"") ->  | D55: 0 | E55: -12.5 | G55: 2022 | H55: 2022-02-23 | I55: =IFERROR(IF(VLOOKUP($H55,Récapitulatif!$B$14:$E$24,2,FALSE)=0,"",VLOOKUP(H55,Récapitulatif!$B$14:$E$24,2,FALSE)),"") ->  | J55: 0 | K55: 12.5
A56: 2022 | B56: 2022-02-24 | C56: =IFERROR(IF(VLOOKUP($B56,Récapitulatif!$B$64:$E$68,2,FALSE)=0,"",VLOOKUP($B56,Récapitulatif!$B$64:$E$68,2,FALSE)),"") ->  | D56: 0 | E56: -12.5 | G56: 2022 | H56: 2022-02-24 | I56: =IFERROR(IF(VLOOKUP($H56,Récapitulatif!$B$14:$E$24,2,FALSE)=0,"",VLOOKUP(H56,Récapitulatif!$B$14:$E$24,2,FALSE)),"") ->  | J56: 0 | K56: 12.5
A57: 2022 | B57: 2022-02-25 | C57: =IFERROR(IF(VLOOKUP($B57,Récapitulatif!$B$64:$E$68,2,FALSE)=0,"",VLOOKUP($B57,Récapitulatif!$B$64:$E$68,2,FALSE)),"") ->  | D57: 0 | E57: -12.5 | G57: 2022 | H57: 2022-02-25 | I57: =IFERROR(IF(VLOOKUP($H57,Récapitulatif!$B$14:$E$24,2,FALSE)=0,"",VLOOKUP(H57,Récapitulatif!$B$14:$E$24,2,FALSE)),"") ->  | J57: 0 | K57: 12.5
A58: 2022 | B58: 2022-02-26 | C58: =IFERROR(IF(VLOOKUP($B58,Récapitulatif!$B$64:$E$68,2,FALSE)=0,"",VLOOKUP($B58,Récapitulatif!$B$64:$E$68,2,FALSE)),"") ->  | D58: 0 | E58: -12.5 | G58: 2022 | H58: 2022-02-26 | I58: =IFERROR(IF(VLOOKUP($H58,Récapitulatif!$B$14:$E$24,2,FALSE)=0,"",VLOOKUP(H58,Récapitulatif!$B$14:$E$24,2,FALSE)),"") ->  | J58: 0 | K58: 12.5
A59: 2022 | B59: 2022-02-27 | C59: =IFERROR(IF(VLOOKUP($B59,Récapitulatif!$B$64:$E$68,2,FALSE)=0,"",VLOOKUP($B59,Récapitulatif!$B$64:$E$68,2,FALSE)),"") ->  | D59: 0 | E59: -12.5 | G59: 2022 | H59: 2022-02-27 | I59: =IFERROR(IF(VLOOKUP($H59,Récapitulatif!$B$14:$E$24,2,FALSE)=0,"",VLOOKUP(H59,Récapitulatif!$B$14:$E$24,2,FALSE)),"") ->  | J59: 0 | K59: 12.5
A60: 2022 | B60: 2022-02-28 | C60: =IFERROR(IF(VLOOKUP($B60,Récapitulatif!$B$64:$E$68,2,FALSE)=0,"",VLOOKUP($B60,Récapitulatif!$B$64:$E$68,2,FALSE)),"") ->  | D60: 0 | E60: -12.5 | G60: 2022 | H60: 2022-02-28 | I60: =IFERROR(IF(VLOOKUP($H60,Récapitulatif!$B$14:$E$24,2,FALSE)=0,"",VLOOKUP(H60,Récapitulatif!$B$14:$E$24,2,FALSE)),"") ->  | J60: 0 | K60: 12.5
A61: 2022 | B61: 2022-03-01 | C61: =IFERROR(IF(VLOOKUP($B61,Récapitulatif!$B$64:$E$68,2,FALSE)=0,"",VLOOKUP($B61,Récapitulatif!$B$64:$E$68,2,FALSE)),"") ->  | D61: 0 | E61: -12.5 | G61: 2022 | H61: 2022-03-01 | I61: =IFERROR(IF(VLOOKUP($H61,Récapitulatif!$B$14:$E$24,2,FALSE)=0,"",VLOOKUP(H61,Récapitulatif!$B$14:$E$24,2,FALSE)),"") ->  | J61: 0 | K61: 12.5
A62: 2022 | B62: =DATE(A2,3,1) -> 2022-03-01 | C62: =IFERROR(IF(VLOOKUP($B62,Récapitulatif!$B$64:$E$68,2,FALSE)=0,"",VLOOKUP($B62,Récapitulatif!$B$64:$E$68,2,FALSE)),"") ->  | D62: 0 | E62: -6.5 | G62: 2022 | H62: =DATE(G2,3,1) -> 2022-03-01 | I62: =IFERROR(IF(VLOOKUP($H62,Récapitulatif!$B$14:$E$24,2,FALSE)=0,"",VLOOKUP(H62,Récapitulatif!$B$14:$E$24,2,FALSE)),"") ->  | J62: 0 | K62: 6.5
A63: 2022 | B63: 2022-03-02 | C63: =IFERROR(IF(VLOOKUP($B63,Récapitulatif!$B$64:$E$68,2,FALSE)=0,"",VLOOKUP($B63,Récapitulatif!$B$64:$E$68,2,FALSE)),"") ->  | D63: 0 | E63: -6.5 | G63: 2022 | H63: 2022-03-02 | I63: =IFERROR(IF(VLOOKUP($H63,Récapitulatif!$B$14:$E$24,2,FALSE)=0,"",VLOOKUP(H63,Récapitulatif!$B$14:$E$24,2,FALSE)),"") ->  | J63: 0 | K63: 6.5
A64: 2022 | B64: 2022-03-03 | C64: =IFERROR(IF(VLOOKUP($B64,Récapitulatif!$B$64:$E$68,2,FALSE)=0,"",VLOOKUP($B64,Récapitulatif!$B$64:$E$68,2,FALSE)),"") ->  | D64: 0 | E64: -6.5 | G64: 2022 | H64: 2022-03-03 | I64: =IFERROR(IF(VLOOKUP($H64,Récapitulatif!$B$14:$E$24,2,FALSE)=0,"",VLOOKUP(H64,Récapitulatif!$B$14:$E$24,2,FALSE)),"") ->  | J64: 0 | K64: 6.5
A65: 2022 | B65: 2022-03-04 | C65: =IFERROR(IF(VLOOKUP($B65,Récapitulatif!$B$64:$E$68,2,FALSE)=0,"",VLOOKUP($B65,Récapitulatif!$B$64:$E$68,2,FALSE)),"") ->  | D65: 0 | E65: -6.5 | G65: 2022 | H65: 2022-03-04 | I65: =IFERROR(IF(VLOOKUP($H65,Récapitulatif!$B$14:$E$24,2,FALSE)=0,"",VLOOKUP(H65,Récapitulatif!$B$14:$E$24,2,FALSE)),"") ->  | J65: 0 | K65: 6.5
A66: 2022 | B66: 2022-03-05 | C66: =IFERROR(IF(VLOOKUP($B66,Récapitulatif!$B$64:$E$68,2,FALSE)=0,"",VLOOKUP($B66,Récapitulatif!$B$64:$E$68,2,FALSE)),"") ->  | D66: 0 | E66: -6.5 | G66: 2022 | H66: 2022-03-05 | I66: =IFERROR(IF(VLOOKUP($H66,Récapitulatif!$B$14:$E$24,2,FALSE)=0,"",VLOOKUP(H66,Récapitulatif!$B$14:$E$24,2,FALSE)),"") ->  | J66: 0 | K66: 6.5
A67: 2022 | B67: 2022-03-06 | C67: =IFERROR(IF(VLOOKUP($B67,Récapitulatif!$B$64:$E$68,2,FALSE)=0,"",VLOOKUP($B67,Récapitulatif!$B$64:$E$68,2,FALSE)),"") ->  | D67: 0 | E67: -6.5 | G67: 2022 | H67: 2022-03-06 | I67: =IFERROR(IF(VLOOKUP($H67,Récapitulatif!$B$14:$E$24,2,FALSE)=0,"",VLOOKUP(H67,Récapitulatif!$B$14:$E$24,2,FALSE)),"") ->  | J67: 0 | K67: 6.5
A68: 2022 | B68: 2022-03-07 | C68: =IFERROR(IF(VLOOKUP($B68,Récapitulatif!$B$64:$E$68,2,FALSE)=0,"",VLOOKUP($B68,Récapitulatif!$B$64:$E$68,2,FALSE)),"") ->  | D68: =IF($C68="",0,$E68) -> 0 | E68: -6.5 | G68: 2022 | H68: 2022-03-07 | I68: =IFERROR(IF(VLOOKUP($H68,Récapitulatif!$B$14:$E$24,2,FALSE)=0,"",VLOOKUP(H68,Récapitulatif!$B$14:$E$24,2,FALSE)),"") ->  | J68: =IF($I68="",0,$K68) -> 0 | K68: 6.5
A69: =YEAR(B69) -> 2022 | B69: =B68+1 -> 2022-03-08 | C69: =IFERROR(IF(VLOOKUP($B69,Récapitulatif!$B$64:$E$68,2,FALSE)=0,"",VLOOKUP($B69,Récapitulatif!$B$64:$E$68,2,FALSE)),"") ->  | D69: 0 | E69: -6.5 | G69: =YEAR(H69) -> 2022 | H69: =H68+1 -> 2022-03-08 | I69: =IFERROR(IF(VLOOKUP($H69,Récapitulatif!$B$14:$E$24,2,FALSE)=0,"",VLOOKUP(H69,Récapitulatif!$B$14:$E$24,2,FALSE)),"") ->  | J69: 0 | K69: 6.5
A70: 2022 | B70: 2022-03-09 | C70: =IFERROR(IF(VLOOKUP($B70,Récapitulatif!$B$64:$E$68,2,FALSE)=0,"",VLOOKUP($B70,Récapitulatif!$B$64:$E$68,2,FALSE)),"") ->  | D70: 0 | E70: -6.5 | G70: 2022 | H70: 2022-03-09 | I70: =IFERROR(IF(VLOOKUP($H70,Récapitulatif!$B$14:$E$24,2,FALSE)=0,"",VLOOKUP(H70,Récapitulatif!$B$14:$E$24,2,FALSE)),"") ->  | J70: 0 | K70: 6.5
A71: 2022 | B71: 2022-03-10 | C71: =IFERROR(IF(VLOOKUP($B71,Récapitulatif!$B$64:$E$68,2,FALSE)=0,"",VLOOKUP($B71,Récapitulatif!$B$64:$E$68,2,FALSE)),"") ->  | D71: 0 | E71: -6.5 | G71: 2022 | H71: 2022-03-10 | I71: =IFERROR(IF(VLOOKUP($H71,Récapitulatif!$B$14:$E$24,2,FALSE)=0,"",VLOOKUP(H71,Récapitulatif!$B$14:$E$24,2,FALSE)),"") ->  | J71: 0 | K71: 6.5
A72: 2022 | B72: 2022-03-11 | C72: =IFERROR(IF(VLOOKUP($B72,Récapitulatif!$B$64:$E$68,2,FALSE)=0,"",VLOOKUP($B72,Récapitulatif!$B$64:$E$68,2,FALSE)),"") ->  | D72: 0 | E72: -6.5 | G72: 2022 | H72: 2022-03-11 | I72: =IFERROR(IF(VLOOKUP($H72,Récapitulatif!$B$14:$E$24,2,FALSE)=0,"",VLOOKUP(H72,Récapitulatif!$B$14:$E$24,2,FALSE)),"") ->  | J72: 0 | K72: 6.5
A73: 2022 | B73: 2022-03-12 | C73: =IFERROR(IF(VLOOKUP($B73,Récapitulatif!$B$64:$E$68,2,FALSE)=0,"",VLOOKUP($B73,Récapitulatif!$B$64:$E$68,2,FALSE)),"") ->  | D73: 0 | E73: -6.5 | G73: 2022 | H73: 2022-03-12 | I73: =IFERROR(IF(VLOOKUP($H73,Récapitulatif!$B$14:$E$24,2,FALSE)=0,"",VLOOKUP(H73,Récapitulatif!$B$14:$E$24,2,FALSE)),"") ->  | J73: 0 | K73: 6.5
A74: 2022 | B74: 2022-03-13 | C74: =IFERROR(IF(VLOOKUP($B74,Récapitulatif!$B$64:$E$68,2,FALSE)=0,"",VLOOKUP($B74,Récapitulatif!$B$64:$E$68,2,FALSE)),"") ->  | D74: 0 | E74: -6.5 | G74: 2022 | H74: 2022-03-13 | I74: =IFERROR(IF(VLOOKUP($H74,Récapitulatif!$B$14:$E$24,2,FALSE)=0,"",VLOOKUP(H74,Récapitulatif!$B$14:$E$24,2,FALSE)),"") ->  | J74: 0 | K74: 6.5
A75: 2022 | B75: 2022-03-14 | C75: =IFERROR(IF(VLOOKUP($B75,Récapitulatif!$B$64:$E$68,2,FALSE)=0,"",VLOOKUP($B75,Récapitulatif!$B$64:$E$68,2,FALSE)),"") ->  | D75: 0 | E75: -6.5 | G75: 2022 | H75: 2022-03-14 | I75: =IFERROR(IF(VLOOKUP($H75,Récapitulatif!$B$14:$E$24,2,FALSE)=0,"",VLOOKUP(H75,Récapitulatif!$B$14:$E$24,2,FALSE)),"") ->  | J75: 0 | K75: 6.5
A76: 2022 | B76: 2022-03-15 | C76: =IFERROR(IF(VLOOKUP($B76,Récapitulatif!$B$64:$E$68,2,FALSE)=0,"",VLOOKUP($B76,Récapitulatif!$B$64:$E$68,2,FALSE)),"") ->  | D76: 0 | E76: -6.5 | G76: 2022 | H76: 2022-03-15 | I76: =IFERROR(IF(VLOOKUP($H76,Récapitulatif!$B$14:$E$24,2,FALSE)=0,"",VLOOKUP(H76,Récapitulatif!$B$14:$E$24,2,FALSE)),"") ->  | J76: 0 | K76: 6.5
A77: 2022 | B77: 2022-03-16 | C77: =IFERROR(IF(VLOOKUP($B77,Récapitulatif!$B$64:$E$68,2,FALSE)=0,"",VLOOKUP($B77,Récapitulatif!$B$64:$E$68,2,FALSE)),"") ->  | D77: 0 | E77: -6.5 | G77: 2022 | H77: 2022-03-16 | I77: =IFERROR(IF(VLOOKUP($H77,Récapitulatif!$B$14:$E$24,2,FALSE)=0,"",VLOOKUP(H77,Récapitulatif!$B$14:$E$24,2,FALSE)),"") ->  | J77: 0 | K77: 6.5
A78: 2022 | B78: 2022-03-17 | C78: =IFERROR(IF(VLOOKUP($B78,Récapitulatif!$B$64:$E$68,2,FALSE)=0,"",VLOOKUP($B78,Récapitulatif!$B$64:$E$68,2,FALSE)),"") ->  | D78: 0 | E78: -6.5 | G78: 2022 | H78: 2022-03-17 | I78: =IFERROR(IF(VLOOKUP($H78,Récapitulatif!$B$14:$E$24,2,FALSE)=0,"",VLOOKUP(H78,Récapitulatif!$B$14:$E$24,2,FALSE)),"") ->  | J78: 0 | K78: 6.5
A79: 2022 | B79: 2022-03-18 | C79: =IFERROR(IF(VLOOKUP($B79,Récapitulatif!$B$64:$E$68,2,FALSE)=0,"",VLOOKUP($B79,Récapitulatif!$B$64:$E$68,2,FALSE)),"") ->  | D79: 0 | E79: -6.5 | G79: 2022 | H79: 2022-03-18 | I79: =IFERROR(IF(VLOOKUP($H79,Récapitulatif!$B$14:$E$24,2,FALSE)=0,"",VLOOKUP(H79,Récapitulatif!$B$14:$E$24,2,FALSE)),"") ->  | J79: 0 | K79: 6.5
A80: 2022 | B80: 2022-03-19 | C80: =IFERROR(IF(VLOOKUP($B80,Récapitulatif!$B$64:$E$68,2,FALSE)=0,"",VLOOKUP($B80,Récapitulatif!$B$64:$E$68,2,FALSE)),"") ->  | D80: 0 | E80: -6.5 | G80: 2022 | H80: 2022-03-19 | I80: =IFERROR(IF(VLOOKUP($H80,Récapitulatif!$B$14:$E$24,2,FALSE)=0,"",VLOOKUP(H80,Récapitulatif!$B$14:$E$24,2,FALSE)),"") ->  | J80: 0 | K80: 6.5
A81: 2022 | B81: 2022-03-20 | C81: =IFERROR(IF(VLOOKUP($B81,Récapitulatif!$B$64:$E$68,2,FALSE)=0,"",VLOOKUP($B81,Récapitulatif!$B$64:$E$68,2,FALSE)),"") ->  | D81: 0 | E81: -6.5 | G81: 2022 | H81: 2022-03-20 | I81: =IFERROR(IF(VLOOKUP($H81,Récapitulatif!$B$14:$E$24,2,FALSE)=0,"",VLOOKUP(H81,Récapitulatif!$B$14:$E$24,2,FALSE)),"") ->  | J81: 0 | K81: 6.5
A82: 2022 | B82: 2022-03-21 | C82: =IFERROR(IF(VLOOKUP($B82,Récapitulatif!$B$64:$E$68,2,FALSE)=0,"",VLOOKUP($B82,Récapitulatif!$B$64:$E$68,2,FALSE)),"") ->  | D82: 0 | E82: -6.5 | G82: 2022 | H82: 2022-03-21 | I82: =IFERROR(IF(VLOOKUP($H82,Récapitulatif!$B$14:$E$24,2,FALSE)=0,"",VLOOKUP(H82,Récapitulatif!$B$14:$E$24,2,FALSE)),"") ->  | J82: 0 | K82: 6.5
A83: 2022 | B83: 2022-03-22 | C83: =IFERROR(IF(VLOOKUP($B83,Récapitulatif!$B$64:$E$68,2,FALSE)=0,"",VLOOKUP($B83,Récapitulatif!$B$64:$E$68,2,FALSE)),"") ->  | D83: 0 | E83: -6.5 | G83: 2022 | H83: 2022-03-22 | I83: =IFERROR(IF(VLOOKUP($H83,Récapitulatif!$B$14:$E$24,2,FALSE)=0,"",VLOOKUP(H83,Récapitulatif!$B$14:$E$24,2,FALSE)),"") ->  | J83: 0 | K83: 6.5
A84: 2022 | B84: 2022-03-23 | C84: =IFERROR(IF(VLOOKUP($B84,Récapitulatif!$B$64:$E$68,2,FALSE)=0,"",VLOOKUP($B84,Récapitulatif!$B$64:$E$68,2,FALSE)),"") ->  | D84: 0 | E84: -6.5 | G84: 2022 | H84: 2022-03-23 | I84: =IFERROR(IF(VLOOKUP($H84,Récapitulatif!$B$14:$E$24,2,FALSE)=0,"",VLOOKUP(H84,Récapitulatif!$B$14:$E$24,2,FALSE)),"") ->  | J84: 0 | K84: 6.5
A85: 2022 | B85: 2022-03-24 | C85: =IFERROR(IF(VLOOKUP($B85,Récapitulatif!$B$64:$E$68,2,FALSE)=0,"",VLOOKUP($B85,Récapitulatif!$B$64:$E$68,2,FALSE)),"") ->  | D85: 0 | E85: -6.5 | G85: 2022 | H85: 2022-03-24 | I85: =IFERROR(IF(VLOOKUP($H85,Récapitulatif!$B$14:$E$24,2,FALSE)=0,"",VLOOKUP(H85,Récapitulatif!$B$14:$E$24,2,FALSE)),"") ->  | J85: 0 | K85: 6.5
A86: 2022 | B86: 2022-03-25 | C86: =IFERROR(IF(VLOOKUP($B86,Récapitulatif!$B$64:$E$68,2,FALSE)=0,"",VLOOKUP($B86,Récapitulatif!$B$64:$E$68,2,FALSE)),"") ->  | D86: 0 | E86: -6.5 | G86: 2022 | H86: 2022-03-25 | I86: =IFERROR(IF(VLOOKUP($H86,Récapitulatif!$B$14:$E$24,2,FALSE)=0,"",VLOOKUP(H86,Récapitulatif!$B$14:$E$24,2,FALSE)),"") ->  | J86: 0 | K86: 6.5
A87: 2022 | B87: 2022-03-26 | C87: =IFERROR(IF(VLOOKUP($B87,Récapitulatif!$B$64:$E$68,2,FALSE)=0,"",VLOOKUP($B87,Récapitulatif!$B$64:$E$68,2,FALSE)),"") ->  | D87: 0 | E87: -6.5 | G87: 2022 | H87: 2022-03-26 | I87: =IFERROR(IF(VLOOKUP($H87,Récapitulatif!$B$14:$E$24,2,FALSE)=0,"",VLOOKUP(H87,Récapitulatif!$B$14:$E$24,2,FALSE)),"") ->  | J87: 0 | K87: 6.5
A88: 2022 | B88: 2022-03-27 | C88: =IFERROR(IF(VLOOKUP($B88,Récapitulatif!$B$64:$E$68,2,FALSE)=0,"",VLOOKUP($B88,Récapitulatif!$B$64:$E$68,2,FALSE)),"") ->  | D88: 0 | E88: -6.5 | G88: 2022 | H88: 2022-03-27 | I88: =IFERROR(IF(VLOOKUP($H88,Récapitulatif!$B$14:$E$24,2,FALSE)=0,"",VLOOKUP(H88,Récapitulatif!$B$14:$E$24,2,FALSE)),"") ->  | J88: 0 | K88: 6.5
A89: 2022 | B89: 2022-03-28 | C89: =IFERROR(IF(VLOOKUP($B89,Récapitulatif!$B$64:$E$68,2,FALSE)=0,"",VLOOKUP($B89,Récapitulatif!$B$64:$E$68,2,FALSE)),"") ->  | D89: 0 | E89: -6.5 | G89: 2022 | H89: 2022-03-28 | I89: =IFERROR(IF(VLOOKUP($H89,Récapitulatif!$B$14:$E$24,2,FALSE)=0,"",VLOOKUP(H89,Récapitulatif!$B$14:$E$24,2,FALSE)),"") ->  | J89: 0 | K89: 6.5
A90: 2022 | B90: 2022-03-29 | C90: =IFERROR(IF(VLOOKUP($B90,Récapitulatif!$B$64:$E$68,2,FALSE)=0,"",VLOOKUP($B90,Récapitulatif!$B$64:$E$68,2,FALSE)),"") ->  | D90: 0 | E90: -6.5 | G90: 2022 | H90: 2022-03-29 | I90: =IFERROR(IF(VLOOKUP($H90,Récapitulatif!$B$14:$E$24,2,FALSE)=0,"",VLOOKUP(H90,Récapitulatif!$B$14:$E$24,2,FALSE)),"") ->  | J90: 0 | K90: 6.5
A91: 2022 | B91: 2022-03-30 | C91: =IFERROR(IF(VLOOKUP($B91,Récapitulatif!$B$64:$E$68,2,FALSE)=0,"",VLOOKUP($B91,Récapitulatif!$B$64:$E$68,2,FALSE)),"") ->  | D91: 0 | E91: -6.5 | G91: 2022 | H91: 2022-03-30 | I91: =IFERROR(IF(VLOOKUP($H91,Récapitulatif!$B$14:$E$24,2,FALSE)=0,"",VLOOKUP(H91,Récapitulatif!$B$14:$E$24,2,FALSE)),"") ->  | J91: 0 | K91: 6.5
A92: 2022 | B92: 2022-03-31 | C92: =IFERROR(IF(VLOOKUP($B92,Récapitulatif!$B$64:$E$68,2,FALSE)=0,"",VLOOKUP($B92,Récapitulatif!$B$64:$E$68,2,FALSE)),"") ->  | D92: 0 | E92: -6.5 | G92: 2022 | H92: 2022-03-31 | I92: =IFERROR(IF(VLOOKUP($H92,Récapitulatif!$B$14:$E$24,2,FALSE)=0,"",VLOOKUP(H92,Récapitulatif!$B$14:$E$24,2,FALSE)),"") ->  | J92: 0 | K92: 6.5
A93: 2022 | B93: 2022-04-01 | C93: =IFERROR(IF(VLOOKUP($B93,Récapitulatif!$B$64:$E$68,2,FALSE)=0,"",VLOOKUP($B93,Récapitulatif!$B$64:$E$68,2,FALSE)),"") ->  | D93: 0 | E93: -9.5 | G93: 2022 | H93: 2022-04-01 | I93: =IFERROR(IF(VLOOKUP($H93,Récapitulatif!$B$14:$E$24,2,FALSE)=0,"",VLOOKUP(H93,Récapitulatif!$B$14:$E$24,2,FALSE)),"") ->  | J93: 0 | K93: 9.5
A94: 2022 | B94: 2022-04-02 | C94: =IFERROR(IF(VLOOKUP($B94,Récapitulatif!$B$64:$E$68,2,FALSE)=0,"",VLOOKUP($B94,Récapitulatif!$B$64:$E$68,2,FALSE)),"") ->  | D94: 0 | E94: -9.5 | G94: 2022 | H94: 2022-04-02 | I94: =IFERROR(IF(VLOOKUP($H94,Récapitulatif!$B$14:$E$24,2,FALSE)=0,"",VLOOKUP(H94,Récapitulatif!$B$14:$E$24,2,FALSE)),"") ->  | J94: 0 | K94: 9.5
A95: 2022 | B95: 2022-04-03 | C95: =IFERROR(IF(VLOOKUP($B95,Récapitulatif!$B$64:$E$68,2,FALSE)=0,"",VLOOKUP($B95,Récapitulatif!$B$64:$E$68,2,FALSE)),"") ->  | D95: 0 | E95: -9.5 | G95: 2022 | H95: 2022-04-03 | I95: =IFERROR(IF(VLOOKUP($H95,Récapitulatif!$B$14:$E$24,2,FALSE)=0,"",VLOOKUP(H95,Récapitulatif!$B$14:$E$24,2,FALSE)),"") ->  | J95: 0 | K95: 9.5
A96: 2022 | B96: 2022-04-04 | C96: =IFERROR(IF(VLOOKUP($B96,Récapitulatif!$B$64:$E$68,2,FALSE)=0,"",VLOOKUP($B96,Récapitulatif!$B$64:$E$68,2,FALSE)),"") ->  | D96: 0 | E96: -9.5 | G96: 2022 | H96: 2022-04-04 | I96: =IFERROR(IF(VLOOKUP($H96,Récapitulatif!$B$14:$E$24,2,FALSE)=0,"",VLOOKUP(H96,Récapitulatif!$B$14:$E$24,2,FALSE)),"") ->  | J96: 0 | K96: 9.5
A97: 2022 | B97: 2022-04-05 | C97: =IFERROR(IF(VLOOKUP($B97,Récapitulatif!$B$64:$E$68,2,FALSE)=0,"",VLOOKUP($B97,Récapitulatif!$B$64:$E$68,2,FALSE)),"") ->  | D97: 0 | E97: -9.5 | G97: 2022 | H97: 2022-04-05 | I97: =IFERROR(IF(VLOOKUP($H97,Récapitulatif!$B$14:$E$24,2,FALSE)=0,"",VLOOKUP(H97,Récapitulatif!$B$14:$E$24,2,FALSE)),"") ->  | J97: 0 | K97: 9.5
A98: 2022 | B98: 2022-04-06 | C98: =IFERROR(IF(VLOOKUP($B98,Récapitulatif!$B$64:$E$68,2,FALSE)=0,"",VLOOKUP($B98,Récapitulatif!$B$64:$E$68,2,FALSE)),"") ->  | D98: 0 | E98: -9.5 | G98: 2022 | H98: 2022-04-06 | I98: =IFERROR(IF(VLOOKUP($H98,Récapitulatif!$B$14:$E$24,2,FALSE)=0,"",VLOOKUP(H98,Récapitulatif!$B$14:$E$24,2,FALSE)),"") ->  | J98: 0 | K98: 9.5
A99: 2022 | B99: 2022-04-07 | C99: =IFERROR(IF(VLOOKUP($B99,Récapitulatif!$B$64:$E$68,2,FALSE)=0,"",VLOOKUP($B99,Récapitulatif!$B$64:$E$68,2,FALSE)),"") ->  | D99: 0 | E99: -9.5 | G99: 2022 | H99: 2022-04-07 | I99: =IFERROR(IF(VLOOKUP($H99,Récapitulatif!$B$14:$E$24,2,FALSE)=0,"",VLOOKUP(H99,Récapitulatif!$B$14:$E$24,2,FALSE)),"") ->  | J99: 0 | K99: 9.5
A100: 2022 | B100: 2022-04-08 | C100: =IFERROR(IF(VLOOKUP($B100,Récapitulatif!$B$64:$E$68,2,FALSE)=0,"",VLOOKUP($B100,Récapitulatif!$B$64:$E$68,2,FALSE)),"") ->  | D100: 0 | E100: -9.5 | G100: 2022 | H100: 2022-04-08 | I100: =IFERROR(IF(VLOOKUP($H100,Récapitulatif!$B$14:$E$24,2,FALSE)=0,"",VLOOKUP(H100,Récapitulatif!$B$14:$E$24,2,FALSE)),"") ->  | J100: 0 | K100: 9.5
A101: 2022 | B101: 2022-04-09 | C101: =IFERROR(IF(VLOOKUP($B101,Récapitulatif!$B$64:$E$68,2,FALSE)=0,"",VLOOKUP($B101,Récapitulatif!$B$64:$E$68,2,FALSE)),"") ->  | D101: 0 | E101: -9.5 | G101: 2022 | H101: 2022-04-09 | I101: =IFERROR(IF(VLOOKUP($H101,Récapitulatif!$B$14:$E$24,2,FALSE)=0,"",VLOOKUP(H101,Récapitulatif!$B$14:$E$24,2,FALSE)),"") ->  | J101: 0 | K101: 9.5
A102: 2022 | B102: 2022-04-10 | C102: =IFERROR(IF(VLOOKUP($B102,Récapitulatif!$B$64:$E$68,2,FALSE)=0,"",VLOOKUP($B102,Récapitulatif!$B$64:$E$68,2,FALSE)),"") ->  | D102: 0 | E102: -9.5 | G102: 2022 | H102: 2022-04-10 | I102: =IFERROR(IF(VLOOKUP($H102,Récapitulatif!$B$14:$E$24,2,FALSE)=0,"",VLOOKUP(H102,Récapitulatif!$B$14:$E$24,2,FALSE)),"") ->  | J102: 0 | K102: 9.5
A103: 2022 | B103: 2022-04-11 | C103: =IFERROR(IF(VLOOKUP($B103,Récapitulatif!$B$64:$E$68,2,FALSE)=0,"",VLOOKUP($B103,Récapitulatif!$B$64:$E$68,2,FALSE)),"") ->  | D103: 0 | E103: -9.5 | G103: 2022 | H103: 2022-04-11 | I103: =IFERROR(IF(VLOOKUP($H103,Récapitulatif!$B$14:$E$24,2,FALSE)=0,"",VLOOKUP(H103,Récapitulatif!$B$14:$E$24,2,FALSE)),"") ->  | J103: 0 | K103: 9.5
A104: 2022 | B104: 2022-04-12 | C104: =IFERROR(IF(VLOOKUP($B104,Récapitulatif!$B$64:$E$68,2,FALSE)=0,"",VLOOKUP($B104,Récapitulatif!$B$64:$E$68,2,FALSE)),"") ->  | D104: 0 | E104: -9.5 | G104: 2022 | H104: 2022-04-12 | I104: =IFERROR(IF(VLOOKUP($H104,Récapitulatif!$B$14:$E$24,2,FALSE)=0,"",VLOOKUP(H104,Récapitulatif!$B$14:$E$24,2,FALSE)),"") ->  | J104: 0 | K104: 9.5
A105: 2022 | B105: 2022-04-13 | C105: =IFERROR(IF(VLOOKUP($B105,Récapitulatif!$B$64:$E$68,2,FALSE)=0,"",VLOOKUP($B105,Récapitulatif!$B$64:$E$68,2,FALSE)),"") ->  | D105: 0 | E105: -9.5 | G105: 2022 | H105: 2022-04-13 | I105: =IFERROR(IF(VLOOKUP($H105,Récapitulatif!$B$14:$E$24,2,FALSE)=0,"",VLOOKUP(H105,Récapitulatif!$B$14:$E$24,2,FALSE)),"") ->  | J105: 0 | K105: 9.5
A106: 2022 | B106: 2022-04-14 | C106: =IFERROR(IF(VLOOKUP($B106,Récapitulatif!$B$64:$E$68,2,FALSE)=0,"",VLOOKUP($B106,Récapitulatif!$B$64:$E$68,2,FALSE)),"") ->  | D106: 0 | E106: -9.5 | G106: 2022 | H106: 2022-04-14 | I106: =IFERROR(IF(VLOOKUP($H106,Récapitulatif!$B$14:$E$24,2,FALSE)=0,"",VLOOKUP(H106,Récapitulatif!$B$14:$E$24,2,FALSE)),"") ->  | J106: 0 | K106: 9.5
A107: 2022 | B107: 2022-04-15 | C107: =IFERROR(IF(VLOOKUP($B107,Récapitulatif!$B$64:$E$68,2,FALSE)=0,"",VLOOKUP($B107,Récapitulatif!$B$64:$E$68,2,FALSE)),"") ->  | D107: 0 | E107: -9.5 | G107: 2022 | H107: 2022-04-15 | I107: =IFERROR(IF(VLOOKUP($H107,Récapitulatif!$B$14:$E$24,2,FALSE)=0,"",VLOOKUP(H107,Récapitulatif!$B$14:$E$24,2,FALSE)),"") ->  | J107: 0 | K107: 9.5
A108: 2022 | B108: 2022-04-16 | C108: =IFERROR(IF(VLOOKUP($B108,Récapitulatif!$B$64:$E$68,2,FALSE)=0,"",VLOOKUP($B108,Récapitulatif!$B$64:$E$68,2,FALSE)),"") ->  | D108: 0 | E108: -9.5 | G108: 2022 | H108: 2022-04-16 | I108: =IFERROR(IF(VLOOKUP($H108,Récapitulatif!$B$14:$E$24,2,FALSE)=0,"",VLOOKUP(H108,Récapitulatif!$B$14:$E$24,2,FALSE)),"") ->  | J108: 0 | K108: 9.5
A109: 2022 | B109: 2022-04-17 | C109: =IFERROR(IF(VLOOKUP($B109,Récapitulatif!$B$64:$E$68,2,FALSE)=0,"",VLOOKUP($B109,Récapitulatif!$B$64:$E$68,2,FALSE)),"") ->  | D109: 0 | E109: -9.5 | G109: 2022 | H109: 2022-04-17 | I109: =IFERROR(IF(VLOOKUP($H109,Récapitulatif!$B$14:$E$24,2,FALSE)=0,"",VLOOKUP(H109,Récapitulatif!$B$14:$E$24,2,FALSE)),"") ->  | J109: 0 | K109: 9.5
A110: 2022 | B110: 2022-04-18 | C110: =IFERROR(IF(VLOOKUP($B110,Récapitulatif!$B$64:$E$68,2,FALSE)=0,"",VLOOKUP($B110,Récapitulatif!$B$64:$E$68,2,FALSE)),"") ->  | D110: 0 | E110: -9.5 | G110: 2022 | H110: 2022-04-18 | I110: =IFERROR(IF(VLOOKUP($H110,Récapitulatif!$B$14:$E$24,2,FALSE)=0,"",VLOOKUP(H110,Récapitulatif!$B$14:$E$24,2,FALSE)),"") ->  | J110: 0 | K110: 9.5
A111: 2022 | B111: 2022-04-19 | C111: =IFERROR(IF(VLOOKUP($B111,Récapitulatif!$B$64:$E$68,2,FALSE)=0,"",VLOOKUP($B111,Récapitulatif!$B$64:$E$68,2,FALSE)),"") ->  | D111: 0 | E111: -9.5 | G111: 2022 | H111: 2022-04-19 | I111: =IFERROR(IF(VLOOKUP($H111,Récapitulatif!$B$14:$E$24,2,FALSE)=0,"",VLOOKUP(H111,Récapitulatif!$B$14:$E$24,2,FALSE)),"") ->  | J111: 0 | K111: 9.5
A112: 2022 | B112: 2022-04-20 | C112: =IFERROR(IF(VLOOKUP($B112,Récapitulatif!$B$64:$E$68,2,FALSE)=0,"",VLOOKUP($B112,Récapitulatif!$B$64:$E$68,2,FALSE)),"") ->  | D112: 0 | E112: -9.5 | G112: 2022 | H112: 2022-04-20 | I112: =IFERROR(IF(VLOOKUP($H112,Récapitulatif!$B$14:$E$24,2,FALSE)=0,"",VLOOKUP(H112,Récapitulatif!$B$14:$E$24,2,FALSE)),"") ->  | J112: 0 | K112: 9.5
A113: 2022 | B113: 2022-04-21 | C113: =IFERROR(IF(VLOOKUP($B113,Récapitulatif!$B$64:$E$68,2,FALSE)=0,"",VLOOKUP($B113,Récapitulatif!$B$64:$E$68,2,FALSE)),"") ->  | D113: 0 | E113: -9.5 | G113: 2022 | H113: 2022-04-21 | I113: =IFERROR(IF(VLOOKUP($H113,Récapitulatif!$B$14:$E$24,2,FALSE)=0,"",VLOOKUP(H113,Récapitulatif!$B$14:$E$24,2,FALSE)),"") ->  | J113: 0 | K113: 9.5
A114: 2022 | B114: 2022-04-22 | C114: =IFERROR(IF(VLOOKUP($B114,Récapitulatif!$B$64:$E$68,2,FALSE)=0,"",VLOOKUP($B114,Récapitulatif!$B$64:$E$68,2,FALSE)),"") ->  | D114: 0 | E114: -9.5 | G114: 2022 | H114: 2022-04-22 | I114: =IFERROR(IF(VLOOKUP($H114,Récapitulatif!$B$14:$E$24,2,FALSE)=0,"",VLOOKUP(H114,Récapitulatif!$B$14:$E$24,2,FALSE)),"") ->  | J114: 0 | K114: 9.5
A115: 2022 | B115: 2022-04-23 | C115: =IFERROR(IF(VLOOKUP($B115,Récapitulatif!$B$64:$E$68,2,FALSE)=0,"",VLOOKUP($B115,Récapitulatif!$B$64:$E$68,2,FALSE)),"") ->  | D115: 0 | E115: -9.5 | G115: 2022 | H115: 2022-04-23 | I115: =IFERROR(IF(VLOOKUP($H115,Récapitulatif!$B$14:$E$24,2,FALSE)=0,"",VLOOKUP(H115,Récapitulatif!$B$14:$E$24,2,FALSE)),"") ->  | J115: 0 | K115: 9.5
A116: 2022 | B116: 2022-04-24 | C116: =IFERROR(IF(VLOOKUP($B116,Récapitulatif!$B$64:$E$68,2,FALSE)=0,"",VLOOKUP($B116,Récapitulatif!$B$64:$E$68,2,FALSE)),"") ->  | D116: 0 | E116: -9.5 | G116: 2022 | H116: 2022-04-24 | I116: =IFERROR(IF(VLOOKUP($H116,Récapitulatif!$B$14:$E$24,2,FALSE)=0,"",VLOOKUP(H116,Récapitulatif!$B$14:$E$24,2,FALSE)),"") ->  | J116: 0 | K116: 9.5
A117: 2022 | B117: 2022-04-25 | C117: =IFERROR(IF(VLOOKUP($B117,Récapitulatif!$B$64:$E$68,2,FALSE)=0,"",VLOOKUP($B117,Récapitulatif!$B$64:$E$68,2,FALSE)),"") ->  | D117: 0 | E117: -9.5 | G117: 2022 | H117: 2022-04-25 | I117: =IFERROR(IF(VLOOKUP($H117,Récapitulatif!$B$14:$E$24,2,FALSE)=0,"",VLOOKUP(H117,Récapitulatif!$B$14:$E$24,2,FALSE)),"") ->  | J117: 0 | K117: 9.5
A118: 2022 | B118: 2022-04-26 | C118: =IFERROR(IF(VLOOKUP($B118,Récapitulatif!$B$64:$E$68,2,FALSE)=0,"",VLOOKUP($B118,Récapitulatif!$B$64:$E$68,2,FALSE)),"") ->  | D118: 0 | E118: -9.5 | G118: 2022 | H118: 2022-04-26 | I118: =IFERROR(IF(VLOOKUP($H118,Récapitulatif!$B$14:$E$24,2,FALSE)=0,"",VLOOKUP(H118,Récapitulatif!$B$14:$E$24,2,FALSE)),"") ->  | J118: 0 | K118: 9.5
A119: 2022 | B119: 2022-04-27 | C119: =IFERROR(IF(VLOOKUP($B119,Récapitulatif!$B$64:$E$68,2,FALSE)=0,"",VLOOKUP($B119,Récapitulatif!$B$64:$E$68,2,FALSE)),"") ->  | D119: 0 | E119: -9.5 | G119: 2022 | H119: 2022-04-27 | I119: =IFERROR(IF(VLOOKUP($H119,Récapitulatif!$B$14:$E$24,2,FALSE)=0,"",VLOOKUP(H119,Récapitulatif!$B$14:$E$24,2,FALSE)),"") ->  | J119: 0 | K119: 9.5
A120: 2022 | B120: 2022-04-28 | C120: =IFERROR(IF(VLOOKUP($B120,Récapitulatif!$B$64:$E$68,2,FALSE)=0,"",VLOOKUP($B120,Récapitulatif!$B$64:$E$68,2,FALSE)),"") ->  | D120: 0 | E120: -9.5 | G120: 2022 | H120: 2022-04-28 | I120: =IFERROR(IF(VLOOKUP($H120,Récapitulatif!$B$14:$E$24,2,FALSE)=0,"",VLOOKUP(H120,Récapitulatif!$B$14:$E$24,2,FALSE)),"") ->  | J120: 0 | K120: 9.5
A121: 2022 | B121: 2022-04-29 | C121: =IFERROR(IF(VLOOKUP($B121,Récapitulatif!$B$64:$E$68,2,FALSE)=0,"",VLOOKUP($B121,Récapitulatif!$B$64:$E$68,2,FALSE)),"") ->  | D121: 0 | E121: -9.5 | G121: 2022 | H121: 2022-04-29 | I121: =IFERROR(IF(VLOOKUP($H121,Récapitulatif!$B$14:$E$24,2,FALSE)=0,"",VLOOKUP(H121,Récapitulatif!$B$14:$E$24,2,FALSE)),"") ->  | J121: 0 | K121: 9.5
A122: 2022 | B122: 2022-04-30 | C122: =IFERROR(IF(VLOOKUP($B122,Récapitulatif!$B$64:$E$68,2,FALSE)=0,"",VLOOKUP($B122,Récapitulatif!$B$64:$E$68,2,FALSE)),"") ->  | D122: 0 | E122: -9.5 | G122: 2022 | H122: 2022-04-30 | I122: =IFERROR(IF(VLOOKUP($H122,Récapitulatif!$B$14:$E$24,2,FALSE)=0,"",VLOOKUP(H122,Récapitulatif!$B$14:$E$24,2,FALSE)),"") ->  | J122: 0 | K122: 9.5
A123: 2022 | B123: 2022-05-01 | C123: =IFERROR(IF(VLOOKUP($B123,Récapitulatif!$B$64:$E$68,2,FALSE)=0,"",VLOOKUP($B123,Récapitulatif!$B$64:$E$68,2,FALSE)),"") ->  | D123: 0 | E123: -11.5 | G123: 2022 | H123: 2022-05-01 | I123: =IFERROR(IF(VLOOKUP($H123,Récapitulatif!$B$14:$E$24,2,FALSE)=0,"",VLOOKUP(H123,Récapitulatif!$B$14:$E$24,2,FALSE)),"") ->  | J123: 0 | K123: 11.5
A124: 2022 | B124: 2022-05-02 | C124: =IFERROR(IF(VLOOKUP($B124,Récapitulatif!$B$64:$E$68,2,FALSE)=0,"",VLOOKUP($B124,Récapitulatif!$B$64:$E$68,2,FALSE)),"") ->  | D124: 0 | E124: -11.5 | G124: 2022 | H124: 2022-05-02 | I124: =IFERROR(IF(VLOOKUP($H124,Récapitulatif!$B$14:$E$24,2,FALSE)=0,"",VLOOKUP(H124,Récapitulatif!$B$14:$E$24,2,FALSE)),"") ->  | J124: 0 | K124: 11.5
A125: 2022 | B125: 2022-05-03 | C125: =IFERROR(IF(VLOOKUP($B125,Récapitulatif!$B$64:$E$68,2,FALSE)=0,"",VLOOKUP($B125,Récapitulatif!$B$64:$E$68,2,FALSE)),"") ->  | D125: 0 | E125: -11.5 | G125: 2022 | H125: 2022-05-03 | I125: =IFERROR(IF(VLOOKUP($H125,Récapitulatif!$B$14:$E$24,2,FALSE)=0,"",VLOOKUP(H125,Récapitulatif!$B$14:$E$24,2,FALSE)),"") ->  | J125: 0 | K125: 11.5
A126: 2022 | B126: 2022-05-04 | C126: =IFERROR(IF(VLOOKUP($B126,Récapitulatif!$B$64:$E$68,2,FALSE)=0,"",VLOOKUP($B126,Récapitulatif!$B$64:$E$68,2,FALSE)),"") ->  | D126: 0 | E126: -11.5 | G126: 2022 | H126: 2022-05-04 | I126: =IFERROR(IF(VLOOKUP($H126,Récapitulatif!$B$14:$E$24,2,FALSE)=0,"",VLOOKUP(H126,Récapitulatif!$B$14:$E$24,2,FALSE)),"") ->  | J126: 0 | K126: 11.5
A127: 2022 | B127: 2022-05-05 | C127: =IFERROR(IF(VLOOKUP($B127,Récapitulatif!$B$64:$E$68,2,FALSE)=0,"",VLOOKUP($B127,Récapitulatif!$B$64:$E$68,2,FALSE)),"") ->  | D127: 0 | E127: -11.5 | G127: 2022 | H127: 2022-05-05 | I127: =IFERROR(IF(VLOOKUP($H127,Récapitulatif!$B$14:$E$24,2,FALSE)=0,"",VLOOKUP(H127,Récapitulatif!$B$14:$E$24,2,FALSE)),"") ->  | J127: 0 | K127: 11.5
A128: 2022 | B128: 2022-05-06 | C128: =IFERROR(IF(VLOOKUP($B128,Récapitulatif!$B$64:$E$68,2,FALSE)=0,"",VLOOKUP($B128,Récapitulatif!$B$64:$E$68,2,FALSE)),"") ->  | D128: 0 | E128: -11.5 | G128: 2022 | H128: 2022-05-06 | I128: =IFERROR(IF(VLOOKUP($H128,Récapitulatif!$B$14:$E$24,2,FALSE)=0,"",VLOOKUP(H128,Récapitulatif!$B$14:$E$24,2,FALSE)),"") ->  | J128: 0 | K128: 11.5
A129: 2022 | B129: 2022-05-07 | C129: =IFERROR(IF(VLOOKUP($B129,Récapitulatif!$B$64:$E$68,2,FALSE)=0,"",VLOOKUP($B129,Récapitulatif!$B$64:$E$68,2,FALSE)),"") ->  | D129: 0 | E129: -11.5 | G129: 2022 | H129: 2022-05-07 | I129: =IFERROR(IF(VLOOKUP($H129,Récapitulatif!$B$14:$E$24,2,FALSE)=0,"",VLOOKUP(H129,Récapitulatif!$B$14:$E$24,2,FALSE)),"") ->  | J129: 0 | K129: 11.5
A130: 2022 | B130: 2022-05-08 | C130: =IFERROR(IF(VLOOKUP($B130,Récapitulatif!$B$64:$E$68,2,FALSE)=0,"",VLOOKUP($B130,Récapitulatif!$B$64:$E$68,2,FALSE)),"") ->  | D130: 0 | E130: -11.5 | G130: 2022 | H130: 2022-05-08 | I130: =IFERROR(IF(VLOOKUP($H130,Récapitulatif!$B$14:$E$24,2,FALSE)=0,"",VLOOKUP(H130,Récapitulatif!$B$14:$E$24,2,FALSE)),"") ->  | J130: 0 | K130: 11.5
A131: 2022 | B131: 2022-05-09 | C131: =IFERROR(IF(VLOOKUP($B131,Récapitulatif!$B$64:$E$68,2,FALSE)=0,"",VLOOKUP($B131,Récapitulatif!$B$64:$E$68,2,FALSE)),"") ->  | D131: 0 | E131: -11.5 | G131: 2022 | H131: 2022-05-09 | I131: =IFERROR(IF(VLOOKUP($H131,Récapitulatif!$B$14:$E$24,2,FALSE)=0,"",VLOOKUP(H131,Récapitulatif!$B$14:$E$24,2,FALSE)),"") ->  | J131: 0 | K131: 11.5
A132: 2022 | B132: 2022-05-10 | C132: =IFERROR(IF(VLOOKUP($B132,Récapitulatif!$B$64:$E$68,2,FALSE)=0,"",VLOOKUP($B132,Récapitulatif!$B$64:$E$68,2,FALSE)),"") ->  | D132: =IF($C132="",0,$E132) -> 0 | E132: -11.5 | G132: 2022 | H132: 2022-05-10 | I132: =IFERROR(IF(VLOOKUP($H132,Récapitulatif!$B$14:$E$24,2,FALSE)=0,"",VLOOKUP(H132,Récapitulatif!$B$14:$E$24,2,FALSE)),"") ->  | J132: =IF($I132="",0,$K132) -> 0 | K132: 11.5
A133: =YEAR(B133) -> 2022 | B133: =B132+1 -> 2022-05-11 | C133: =IFERROR(IF(VLOOKUP($B133,Récapitulatif!$B$64:$E$68,2,FALSE)=0,"",VLOOKUP($B133,Récapitulatif!$B$64:$E$68,2,FALSE)),"") ->  | D133: 0 | E133: -11.5 | G133: =YEAR(H133) -> 2022 | H133: =H132+1 -> 2022-05-11 | I133: =IFERROR(IF(VLOOKUP($H133,Récapitulatif!$B$14:$E$24,2,FALSE)=0,"",VLOOKUP(H133,Récapitulatif!$B$14:$E$24,2,FALSE)),"") ->  | J133: 0 | K133: 11.5
A134: 2022 | B134: 2022-05-12 | C134: =IFERROR(IF(VLOOKUP($B134,Récapitulatif!$B$64:$E$68,2,FALSE)=0,"",VLOOKUP($B134,Récapitulatif!$B$64:$E$68,2,FALSE)),"") ->  | D134: 0 | E134: -11.5 | G134: 2022 | H134: 2022-05-12 | I134: =IFERROR(IF(VLOOKUP($H134,Récapitulatif!$B$14:$E$24,2,FALSE)=0,"",VLOOKUP(H134,Récapitulatif!$B$14:$E$24,2,FALSE)),"") ->  | J134: 0 | K134: 11.5
A135: 2022 | B135: 2022-05-13 | C135: =IFERROR(IF(VLOOKUP($B135,Récapitulatif!$B$64:$E$68,2,FALSE)=0,"",VLOOKUP($B135,Récapitulatif!$B$64:$E$68,2,FALSE)),"") ->  | D135: 0 | E135: -11.5 | G135: 2022 | H135: 2022-05-13 | I135: =IFERROR(IF(VLOOKUP($H135,Récapitulatif!$B$14:$E$24,2,FALSE)=0,"",VLOOKUP(H135,Récapitulatif!$B$14:$E$24,2,FALSE)),"") ->  | J135: 0 | K135: 11.5
A136: 2022 | B136: 2022-05-14 | C136: =IFERROR(IF(VLOOKUP($B136,Récapitulatif!$B$64:$E$68,2,FALSE)=0,"",VLOOKUP($B136,Récapitulatif!$B$64:$E$68,2,FALSE)),"") ->  | D136: 0 | E136: -11.5 | G136: 2022 | H136: 2022-05-14 | I136: =IFERROR(IF(VLOOKUP($H136,Récapitulatif!$B$14:$E$24,2,FALSE)=0,"",VLOOKUP(H136,Récapitulatif!$B$14:$E$24,2,FALSE)),"") ->  | J136: 0 | K136: 11.5
A137: 2022 | B137: 2022-05-15 | C137: =IFERROR(IF(VLOOKUP($B137,Récapitulatif!$B$64:$E$68,2,FALSE)=0,"",VLOOKUP($B137,Récapitulatif!$B$64:$E$68,2,FALSE)),"") ->  | D137: 0 | E137: -11.5 | G137: 2022 | H137: 2022-05-15 | I137: =IFERROR(IF(VLOOKUP($H137,Récapitulatif!$B$14:$E$24,2,FALSE)=0,"",VLOOKUP(H137,Récapitulatif!$B$14:$E$24,2,FALSE)),"") ->  | J137: 0 | K137: 11.5
A138: 2022 | B138: 2022-05-16 | C138: =IFERROR(IF(VLOOKUP($B138,Récapitulatif!$B$64:$E$68,2,FALSE)=0,"",VLOOKUP($B138,Récapitulatif!$B$64:$E$68,2,FALSE)),"") ->  | D138: 0 | E138: -11.5 | G138: 2022 | H138: 2022-05-16 | I138: =IFERROR(IF(VLOOKUP($H138,Récapitulatif!$B$14:$E$24,2,FALSE)=0,"",VLOOKUP(H138,Récapitulatif!$B$14:$E$24,2,FALSE)),"") ->  | J138: 0 | K138: 11.5
A139: 2022 | B139: 2022-05-17 | C139: =IFERROR(IF(VLOOKUP($B139,Récapitulatif!$B$64:$E$68,2,FALSE)=0,"",VLOOKUP($B139,Récapitulatif!$B$64:$E$68,2,FALSE)),"") ->  | D139: 0 | E139: -11.5 | G139: 2022 | H139: 2022-05-17 | I139: =IFERROR(IF(VLOOKUP($H139,Récapitulatif!$B$14:$E$24,2,FALSE)=0,"",VLOOKUP(H139,Récapitulatif!$B$14:$E$24,2,FALSE)),"") ->  | J139: 0 | K139: 11.5
A140: 2022 | B140: 2022-05-18 | C140: =IFERROR(IF(VLOOKUP($B140,Récapitulatif!$B$64:$E$68,2,FALSE)=0,"",VLOOKUP($B140,Récapitulatif!$B$64:$E$68,2,FALSE)),"") ->  | D140: 0 | E140: -11.5 | G140: 2022 | H140: 2022-05-18 | I140: =IFERROR(IF(VLOOKUP($H140,Récapitulatif!$B$14:$E$24,2,FALSE)=0,"",VLOOKUP(H140,Récapitulatif!$B$14:$E$24,2,FALSE)),"") ->  | J140: 0 | K140: 11.5
A141: 2022 | B141: 2022-05-19 | C141: =IFERROR(IF(VLOOKUP($B141,Récapitulatif!$B$64:$E$68,2,FALSE)=0,"",VLOOKUP($B141,Récapitulatif!$B$64:$E$68,2,FALSE)),"") ->  | D141: 0 | E141: -11.5 | G141: 2022 | H141: 2022-05-19 | I141: =IFERROR(IF(VLOOKUP($H141,Récapitulatif!$B$14:$E$24,2,FALSE)=0,"",VLOOKUP(H141,Récapitulatif!$B$14:$E$24,2,FALSE)),"") ->  | J141: 0 | K141: 11.5
A142: 2022 | B142: 2022-05-20 | C142: =IFERROR(IF(VLOOKUP($B142,Récapitulatif!$B$64:$E$68,2,FALSE)=0,"",VLOOKUP($B142,Récapitulatif!$B$64:$E$68,2,FALSE)),"") ->  | D142: 0 | E142: -11.5 | G142: 2022 | H142: 2022-05-20 | I142: =IFERROR(IF(VLOOKUP($H142,Récapitulatif!$B$14:$E$24,2,FALSE)=0,"",VLOOKUP(H142,Récapitulatif!$B$14:$E$24,2,FALSE)),"") ->  | J142: 0 | K142: 11.5
A143: 2022 | B143: 2022-05-21 | C143: =IFERROR(IF(VLOOKUP($B143,Récapitulatif!$B$64:$E$68,2,FALSE)=0,"",VLOOKUP($B143,Récapitulatif!$B$64:$E$68,2,FALSE)),"") ->  | D143: 0 | E143: -11.5 | G143: 2022 | H143: 2022-05-21 | I143: =IFERROR(IF(VLOOKUP($H143,Récapitulatif!$B$14:$E$24,2,FALSE)=0,"",VLOOKUP(H143,Récapitulatif!$B$14:$E$24,2,FALSE)),"") ->  | J143: 0 | K143: 11.5
A144: 2022 | B144: 2022-05-22 | C144: =IFERROR(IF(VLOOKUP($B144,Récapitulatif!$B$64:$E$68,2,FALSE)=0,"",VLOOKUP($B144,Récapitulatif!$B$64:$E$68,2,FALSE)),"") ->  | D144: 0 | E144: -11.5 | G144: 2022 | H144: 2022-05-22 | I144: =IFERROR(IF(VLOOKUP($H144,Récapitulatif!$B$14:$E$24,2,FALSE)=0,"",VLOOKUP(H144,Récapitulatif!$B$14:$E$24,2,FALSE)),"") ->  | J144: 0 | K144: 11.5
A145: 2022 | B145: 2022-05-23 | C145: =IFERROR(IF(VLOOKUP($B145,Récapitulatif!$B$64:$E$68,2,FALSE)=0,"",VLOOKUP($B145,Récapitulatif!$B$64:$E$68,2,FALSE)),"") ->  | D145: 0 | E145: -11.5 | G145: 2022 | H145: 2022-05-23 | I145: =IFERROR(IF(VLOOKUP($H145,Récapitulatif!$B$14:$E$24,2,FALSE)=0,"",VLOOKUP(H145,Récapitulatif!$B$14:$E$24,2,FALSE)),"") ->  | J145: 0 | K145: 11.5
A146: 2022 | B146: 2022-05-24 | C146: =IFERROR(IF(VLOOKUP($B146,Récapitulatif!$B$64:$E$68,2,FALSE)=0,"",VLOOKUP($B146,Récapitulatif!$B$64:$E$68,2,FALSE)),"") ->  | D146: 0 | E146: -11.5 | G146: 2022 | H146: 2022-05-24 | I146: =IFERROR(IF(VLOOKUP($H146,Récapitulatif!$B$14:$E$24,2,FALSE)=0,"",VLOOKUP(H146,Récapitulatif!$B$14:$E$24,2,FALSE)),"") ->  | J146: 0 | K146: 11.5
A147: 2022 | B147: 2022-05-25 | C147: =IFERROR(IF(VLOOKUP($B147,Récapitulatif!$B$64:$E$68,2,FALSE)=0,"",VLOOKUP($B147,Récapitulatif!$B$64:$E$68,2,FALSE)),"") ->  | D147: 0 | E147: -11.5 | G147: 2022 | H147: 2022-05-25 | I147: =IFERROR(IF(VLOOKUP($H147,Récapitulatif!$B$14:$E$24,2,FALSE)=0,"",VLOOKUP(H147,Récapitulatif!$B$14:$E$24,2,FALSE)),"") ->  | J147: 0 | K147: 11.5
A148: 2022 | B148: 2022-05-26 | C148: =IFERROR(IF(VLOOKUP($B148,Récapitulatif!$B$64:$E$68,2,FALSE)=0,"",VLOOKUP($B148,Récapitulatif!$B$64:$E$68,2,FALSE)),"") ->  | D148: 0 | E148: -11.5 | G148: 2022 | H148: 2022-05-26 | I148: =IFERROR(IF(VLOOKUP($H148,Récapitulatif!$B$14:$E$24,2,FALSE)=0,"",VLOOKUP(H148,Récapitulatif!$B$14:$E$24,2,FALSE)),"") ->  | J148: 0 | K148: 11.5
A149: 2022 | B149: 2022-05-27 | C149: =IFERROR(IF(VLOOKUP($B149,Récapitulatif!$B$64:$E$68,2,FALSE)=0,"",VLOOKUP($B149,Récapitulatif!$B$64:$E$68,2,FALSE)),"") ->  | D149: 0 | E149: -11.5 | G149: 2022 | H149: 2022-05-27 | I149: =IFERROR(IF(VLOOKUP($H149,Récapitulatif!$B$14:$E$24,2,FALSE)=0,"",VLOOKUP(H149,Récapitulatif!$B$14:$E$24,2,FALSE)),"") ->  | J149: 0 | K149: 11.5
A150: 2022 | B150: 2022-05-28 | C150: =IFERROR(IF(VLOOKUP($B150,Récapitulatif!$B$64:$E$68,2,FALSE)=0,"",VLOOKUP($B150,Récapitulatif!$B$64:$E$68,2,FALSE)),"") ->  | D150: 0 | E150: -11.5 | G150: 2022 | H150: 2022-05-28 | I150: =IFERROR(IF(VLOOKUP($H150,Récapitulatif!$B$14:$E$24,2,FALSE)=0,"",VLOOKUP(H150,Récapitulatif!$B$14:$E$24,2,FALSE)),"") ->  | J150: 0 | K150: 11.5
A151: 2022 | B151: 2022-05-29 | C151: =IFERROR(IF(VLOOKUP($B151,Récapitulatif!$B$64:$E$68,2,FALSE)=0,"",VLOOKUP($B151,Récapitulatif!$B$64:$E$68,2,FALSE)),"") ->  | D151: 0 | E151: -11.5 | G151: 2022 | H151: 2022-05-29 | I151: =IFERROR(IF(VLOOKUP($H151,Récapitulatif!$B$14:$E$24,2,FALSE)=0,"",VLOOKUP(H151,Récapitulatif!$B$14:$E$24,2,FALSE)),"") ->  | J151: 0 | K151: 11.5
A152: 2022 | B152: 2022-05-30 | C152: =IFERROR(IF(VLOOKUP($B152,Récapitulatif!$B$64:$E$68,2,FALSE)=0,"",VLOOKUP($B152,Récapitulatif!$B$64:$E$68,2,FALSE)),"") ->  | D152: 0 | E152: -11.5 | G152: 2022 | H152: 2022-05-30 | I152: =IFERROR(IF(VLOOKUP($H152,Récapitulatif!$B$14:$E$24,2,FALSE)=0,"",VLOOKUP(H152,Récapitulatif!$B$14:$E$24,2,FALSE)),"") ->  | J152: 0 | K152: 11.5
A153: 2022 | B153: 2022-05-31 | C153: =IFERROR(IF(VLOOKUP($B153,Récapitulatif!$B$64:$E$68,2,FALSE)=0,"",VLOOKUP($B153,Récapitulatif!$B$64:$E$68,2,FALSE)),"") ->  | D153: 0 | E153: -11.5 | G153: 2022 | H153: 2022-05-31 | I153: =IFERROR(IF(VLOOKUP($H153,Récapitulatif!$B$14:$E$24,2,FALSE)=0,"",VLOOKUP(H153,Récapitulatif!$B$14:$E$24,2,FALSE)),"") ->  | J153: 0 | K153: 11.5
A154: 2022 | B154: 2022-06-01 | C154: =IFERROR(IF(VLOOKUP($B154,Récapitulatif!$B$64:$E$68,2,FALSE)=0,"",VLOOKUP($B154,Récapitulatif!$B$64:$E$68,2,FALSE)),"") ->  | D154: 0 | E154: -4.5 | G154: 2022 | H154: 2022-06-01 | I154: =IFERROR(IF(VLOOKUP($H154,Récapitulatif!$B$14:$E$24,2,FALSE)=0,"",VLOOKUP(H154,Récapitulatif!$B$14:$E$24,2,FALSE)),"") ->  | J154: 0 | K154: 4.5
A155: 2022 | B155: 2022-06-02 | C155: =IFERROR(IF(VLOOKUP($B155,Récapitulatif!$B$64:$E$68,2,FALSE)=0,"",VLOOKUP($B155,Récapitulatif!$B$64:$E$68,2,FALSE)),"") ->  | D155: 0 | E155: -4.5 | G155: 2022 | H155: 2022-06-02 | I155: =IFERROR(IF(VLOOKUP($H155,Récapitulatif!$B$14:$E$24,2,FALSE)=0,"",VLOOKUP(H155,Récapitulatif!$B$14:$E$24,2,FALSE)),"") ->  | J155: 0 | K155: 4.5
A156: 2022 | B156: 2022-06-03 | C156: =IFERROR(IF(VLOOKUP($B156,Récapitulatif!$B$64:$E$68,2,FALSE)=0,"",VLOOKUP($B156,Récapitulatif!$B$64:$E$68,2,FALSE)),"") ->  | D156: 0 | E156: -4.5 | G156: 2022 | H156: 2022-06-03 | I156: =IFERROR(IF(VLOOKUP($H156,Récapitulatif!$B$14:$E$24,2,FALSE)=0,"",VLOOKUP(H156,Récapitulatif!$B$14:$E$24,2,FALSE)),"") ->  | J156: 0 | K156: 4.5
A157: 2022 | B157: 2022-06-04 | C157: =IFERROR(IF(VLOOKUP($B157,Récapitulatif!$B$64:$E$68,2,FALSE)=0,"",VLOOKUP($B157,Récapitulatif!$B$64:$E$68,2,FALSE)),"") ->  | D157: 0 | E157: -4.5 | G157: 2022 | H157: 2022-06-04 | I157: =IFERROR(IF(VLOOKUP($H157,Récapitulatif!$B$14:$E$24,2,FALSE)=0,"",VLOOKUP(H157,Récapitulatif!$B$14:$E$24,2,FALSE)),"") ->  | J157: 0 | K157: 4.5
A158: 2022 | B158: 2022-06-05 | C158: =IFERROR(IF(VLOOKUP($B158,Récapitulatif!$B$64:$E$68,2,FALSE)=0,"",VLOOKUP($B158,Récapitulatif!$B$64:$E$68,2,FALSE)),"") ->  | D158: 0 | E158: -4.5 | G158: 2022 | H158: 2022-06-05 | I158: =IFERROR(IF(VLOOKUP($H158,Récapitulatif!$B$14:$E$24,2,FALSE)=0,"",VLOOKUP(H158,Récapitulatif!$B$14:$E$24,2,FALSE)),"") ->  | J158: 0 | K158: 4.5
A159: 2022 | B159: 2022-06-06 | C159: =IFERROR(IF(VLOOKUP($B159,Récapitulatif!$B$64:$E$68,2,FALSE)=0,"",VLOOKUP($B159,Récapitulatif!$B$64:$E$68,2,FALSE)),"") ->  | D159: 0 | E159: -4.5 | G159: 2022 | H159: 2022-06-06 | I159: =IFERROR(IF(VLOOKUP($H159,Récapitulatif!$B$14:$E$24,2,FALSE)=0,"",VLOOKUP(H159,Récapitulatif!$B$14:$E$24,2,FALSE)),"") ->  | J159: 0 | K159: 4.5
A160: 2022 | B160: 2022-06-07 | C160: =IFERROR(IF(VLOOKUP($B160,Récapitulatif!$B$64:$E$68,2,FALSE)=0,"",VLOOKUP($B160,Récapitulatif!$B$64:$E$68,2,FALSE)),"") ->  | D160: 0 | E160: -4.5 | G160: 2022 | H160: 2022-06-07 | I160: =IFERROR(IF(VLOOKUP($H160,Récapitulatif!$B$14:$E$24,2,FALSE)=0,"",VLOOKUP(H160,Récapitulatif!$B$14:$E$24,2,FALSE)),"") ->  | J160: 0 | K160: 4.5
A161: 2022 | B161: 2022-06-08 | C161: =IFERROR(IF(VLOOKUP($B161,Récapitulatif!$B$64:$E$68,2,FALSE)=0,"",VLOOKUP($B161,Récapitulatif!$B$64:$E$68,2,FALSE)),"") ->  | D161: 0 | E161: -4.5 | G161: 2022 | H161: 2022-06-08 | I161: =IFERROR(IF(VLOOKUP($H161,Récapitulatif!$B$14:$E$24,2,FALSE)=0,"",VLOOKUP(H161,Récapitulatif!$B$14:$E$24,2,FALSE)),"") ->  | J161: 0 | K161: 4.5
A162: 2022 | B162: 2022-06-09 | C162: =IFERROR(IF(VLOOKUP($B162,Récapitulatif!$B$64:$E$68,2,FALSE)=0,"",VLOOKUP($B162,Récapitulatif!$B$64:$E$68,2,FALSE)),"") ->  | D162: 0 | E162: -4.5 | G162: 2022 | H162: 2022-06-09 | I162: =IFERROR(IF(VLOOKUP($H162,Récapitulatif!$B$14:$E$24,2,FALSE)=0,"",VLOOKUP(H162,Récapitulatif!$B$14:$E$24,2,FALSE)),"") ->  | J162: 0 | K162: 4.5
A163: 2022 | B163: 2022-06-10 | C163: =IFERROR(IF(VLOOKUP($B163,Récapitulatif!$B$64:$E$68,2,FALSE)=0,"",VLOOKUP($B163,Récapitulatif!$B$64:$E$68,2,FALSE)),"") ->  | D163: 0 | E163: -4.5 | G163: 2022 | H163: 2022-06-10 | I163: =IFERROR(IF(VLOOKUP($H163,Récapitulatif!$B$14:$E$24,2,FALSE)=0,"",VLOOKUP(H163,Récapitulatif!$B$14:$E$24,2,FALSE)),"") ->  | J163: 0 | K163: 4.5
A164: 2022 | B164: 2022-06-11 | C164: =IFERROR(IF(VLOOKUP($B164,Récapitulatif!$B$64:$E$68,2,FALSE)=0,"",VLOOKUP($B164,Récapitulatif!$B$64:$E$68,2,FALSE)),"") ->  | D164: 0 | E164: -4.5 | G164: 2022 | H164: 2022-06-11 | I164: =IFERROR(IF(VLOOKUP($H164,Récapitulatif!$B$14:$E$24,2,FALSE)=0,"",VLOOKUP(H164,Récapitulatif!$B$14:$E$24,2,FALSE)),"") ->  | J164: 0 | K164: 4.5
A165: 2022 | B165: 2022-06-12 | C165: =IFERROR(IF(VLOOKUP($B165,Récapitulatif!$B$64:$E$68,2,FALSE)=0,"",VLOOKUP($B165,Récapitulatif!$B$64:$E$68,2,FALSE)),"") ->  | D165: 0 | E165: -4.5 | G165: 2022 | H165: 2022-06-12 | I165: =IFERROR(IF(VLOOKUP($H165,Récapitulatif!$B$14:$E$24,2,FALSE)=0,"",VLOOKUP(H165,Récapitulatif!$B$14:$E$24,2,FALSE)),"") ->  | J165: 0 | K165: 4.5
A166: 2022 | B166: 2022-06-13 | C166: =IFERROR(IF(VLOOKUP($B166,Récapitulatif!$B$64:$E$68,2,FALSE)=0,"",VLOOKUP($B166,Récapitulatif!$B$64:$E$68,2,FALSE)),"") ->  | D166: 0 | E166: -4.5 | G166: 2022 | H166: 2022-06-13 | I166: =IFERROR(IF(VLOOKUP($H166,Récapitulatif!$B$14:$E$24,2,FALSE)=0,"",VLOOKUP(H166,Récapitulatif!$B$14:$E$24,2,FALSE)),"") ->  | J166: 0 | K166: 4.5
A167: 2022 | B167: 2022-06-14 | C167: =IFERROR(IF(VLOOKUP($B167,Récapitulatif!$B$64:$E$68,2,FALSE)=0,"",VLOOKUP($B167,Récapitulatif!$B$64:$E$68,2,FALSE)),"") ->  | D167: 0 | E167: -4.5 | G167: 2022 | H167: 2022-06-14 | I167: =IFERROR(IF(VLOOKUP($H167,Récapitulatif!$B$14:$E$24,2,FALSE)=0,"",VLOOKUP(H167,Récapitulatif!$B$14:$E$24,2,FALSE)),"") ->  | J167: 0 | K167: 4.5
A168: 2022 | B168: 2022-06-15 | C168: =IFERROR(IF(VLOOKUP($B168,Récapitulatif!$B$64:$E$68,2,FALSE)=0,"",VLOOKUP($B168,Récapitulatif!$B$64:$E$68,2,FALSE)),"") ->  | D168: 0 | E168: -4.5 | G168: 2022 | H168: 2022-06-15 | I168: =IFERROR(IF(VLOOKUP($H168,Récapitulatif!$B$14:$E$24,2,FALSE)=0,"",VLOOKUP(H168,Récapitulatif!$B$14:$E$24,2,FALSE)),"") ->  | J168: 0 | K168: 4.5
A169: 2022 | B169: 2022-06-16 | C169: =IFERROR(IF(VLOOKUP($B169,Récapitulatif!$B$64:$E$68,2,FALSE)=0,"",VLOOKUP($B169,Récapitulatif!$B$64:$E$68,2,FALSE)),"") ->  | D169: 0 | E169: -4.5 | G169: 2022 | H169: 2022-06-16 | I169: =IFERROR(IF(VLOOKUP($H169,Récapitulatif!$B$14:$E$24,2,FALSE)=0,"",VLOOKUP(H169,Récapitulatif!$B$14:$E$24,2,FALSE)),"") ->  | J169: 0 | K169: 4.5
A170: 2022 | B170: 2022-06-17 | C170: =IFERROR(IF(VLOOKUP($B170,Récapitulatif!$B$64:$E$68,2,FALSE)=0,"",VLOOKUP($B170,Récapitulatif!$B$64:$E$68,2,FALSE)),"") ->  | D170: 0 | E170: -4.5 | G170: 2022 | H170: 2022-06-17 | I170: =IFERROR(IF(VLOOKUP($H170,Récapitulatif!$B$14:$E$24,2,FALSE)=0,"",VLOOKUP(H170,Récapitulatif!$B$14:$E$24,2,FALSE)),"") ->  | J170: 0 | K170: 4.5
A171: 2022 | B171: 2022-06-18 | C171: =IFERROR(IF(VLOOKUP($B171,Récapitulatif!$B$64:$E$68,2,FALSE)=0,"",VLOOKUP($B171,Récapitulatif!$B$64:$E$68,2,FALSE)),"") ->  | D171: 0 | E171: -4.5 | G171: 2022 | H171: 2022-06-18 | I171: =IFERROR(IF(VLOOKUP($H171,Récapitulatif!$B$14:$E$24,2,FALSE)=0,"",VLOOKUP(H171,Récapitulatif!$B$14:$E$24,2,FALSE)),"") ->  | J171: 0 | K171: 4.5
A172: 2022 | B172: 2022-06-19 | C172: =IFERROR(IF(VLOOKUP($B172,Récapitulatif!$B$64:$E$68,2,FALSE)=0,"",VLOOKUP($B172,Récapitulatif!$B$64:$E$68,2,FALSE)),"") ->  | D172: 0 | E172: -4.5 | G172: 2022 | H172: 2022-06-19 | I172: =IFERROR(IF(VLOOKUP($H172,Récapitulatif!$B$14:$E$24,2,FALSE)=0,"",VLOOKUP(H172,Récapitulatif!$B$14:$E$24,2,FALSE)),"") ->  | J172: 0 | K172: 4.5
A173: 2022 | B173: 2022-06-20 | C173: =IFERROR(IF(VLOOKUP($B173,Récapitulatif!$B$64:$E$68,2,FALSE)=0,"",VLOOKUP($B173,Récapitulatif!$B$64:$E$68,2,FALSE)),"") ->  | D173: 0 | E173: -4.5 | G173: 2022 | H173: 2022-06-20 | I173: =IFERROR(IF(VLOOKUP($H173,Récapitulatif!$B$14:$E$24,2,FALSE)=0,"",VLOOKUP(H173,Récapitulatif!$B$14:$E$24,2,FALSE)),"") ->  | J173: 0 | K173: 4.5
A174: 2022 | B174: 2022-06-21 | C174: =IFERROR(IF(VLOOKUP($B174,Récapitulatif!$B$64:$E$68,2,FALSE)=0,"",VLOOKUP($B174,Récapitulatif!$B$64:$E$68,2,FALSE)),"") ->  | D174: 0 | E174: -4.5 | G174: 2022 | H174: 2022-06-21 | I174: =IFERROR(IF(VLOOKUP($H174,Récapitulatif!$B$14:$E$24,2,FALSE)=0,"",VLOOKUP(H174,Récapitulatif!$B$14:$E$24,2,FALSE)),"") ->  | J174: 0 | K174: 4.5
A175: 2022 | B175: 2022-06-22 | C175: =IFERROR(IF(VLOOKUP($B175,Récapitulatif!$B$64:$E$68,2,FALSE)=0,"",VLOOKUP($B175,Récapitulatif!$B$64:$E$68,2,FALSE)),"") ->  | D175: 0 | E175: -4.5 | G175: 2022 | H175: 2022-06-22 | I175: =IFERROR(IF(VLOOKUP($H175,Récapitulatif!$B$14:$E$24,2,FALSE)=0,"",VLOOKUP(H175,Récapitulatif!$B$14:$E$24,2,FALSE)),"") ->  | J175: 0 | K175: 4.5
A176: 2022 | B176: 2022-06-23 | C176: =IFERROR(IF(VLOOKUP($B176,Récapitulatif!$B$64:$E$68,2,FALSE)=0,"",VLOOKUP($B176,Récapitulatif!$B$64:$E$68,2,FALSE)),"") ->  | D176: 0 | E176: -4.5 | G176: 2022 | H176: 2022-06-23 | I176: =IFERROR(IF(VLOOKUP($H176,Récapitulatif!$B$14:$E$24,2,FALSE)=0,"",VLOOKUP(H176,Récapitulatif!$B$14:$E$24,2,FALSE)),"") ->  | J176: 0 | K176: 4.5
A177: 2022 | B177: 2022-06-24 | C177: =IFERROR(IF(VLOOKUP($B177,Récapitulatif!$B$64:$E$68,2,FALSE)=0,"",VLOOKUP($B177,Récapitulatif!$B$64:$E$68,2,FALSE)),"") ->  | D177: 0 | E177: -4.5 | G177: 2022 | H177: 2022-06-24 | I177: =IFERROR(IF(VLOOKUP($H177,Récapitulatif!$B$14:$E$24,2,FALSE)=0,"",VLOOKUP(H177,Récapitulatif!$B$14:$E$24,2,FALSE)),"") ->  | J177: 0 | K177: 4.5
A178: 2022 | B178: 2022-06-25 | C178: =IFERROR(IF(VLOOKUP($B178,Récapitulatif!$B$64:$E$68,2,FALSE)=0,"",VLOOKUP($B178,Récapitulatif!$B$64:$E$68,2,FALSE)),"") ->  | D178: 0 | E178: -4.5 | G178: 2022 | H178: 2022-06-25 | I178: =IFERROR(IF(VLOOKUP($H178,Récapitulatif!$B$14:$E$24,2,FALSE)=0,"",VLOOKUP(H178,Récapitulatif!$B$14:$E$24,2,FALSE)),"") ->  | J178: 0 | K178: 4.5
A179: 2022 | B179: 2022-06-26 | C179: =IFERROR(IF(VLOOKUP($B179,Récapitulatif!$B$64:$E$68,2,FALSE)=0,"",VLOOKUP($B179,Récapitulatif!$B$64:$E$68,2,FALSE)),"") ->  | D179: 0 | E179: -4.5 | G179: 2022 | H179: 2022-06-26 | I179: =IFERROR(IF(VLOOKUP($H179,Récapitulatif!$B$14:$E$24,2,FALSE)=0,"",VLOOKUP(H179,Récapitulatif!$B$14:$E$24,2,FALSE)),"") ->  | J179: 0 | K179: 4.5
A180: 2022 | B180: 2022-06-27 | C180: =IFERROR(IF(VLOOKUP($B180,Récapitulatif!$B$64:$E$68,2,FALSE)=0,"",VLOOKUP($B180,Récapitulatif!$B$64:$E$68,2,FALSE)),"") ->  | D180: 0 | E180: -4.5 | G180: 2022 | H180: 2022-06-27 | I180: =IFERROR(IF(VLOOKUP($H180,Récapitulatif!$B$14:$E$24,2,FALSE)=0,"",VLOOKUP(H180,Récapitulatif!$B$14:$E$24,2,FALSE)),"") ->  | J180: 0 | K180: 4.5
A181: 2022 | B181: 2022-06-28 | C181: =IFERROR(IF(VLOOKUP($B181,Récapitulatif!$B$64:$E$68,2,FALSE)=0,"",VLOOKUP($B181,Récapitulatif!$B$64:$E$68,2,FALSE)),"") ->  | D181: 0 | E181: -4.5 | G181: 2022 | H181: 2022-06-28 | I181: =IFERROR(IF(VLOOKUP($H181,Récapitulatif!$B$14:$E$24,2,FALSE)=0,"",VLOOKUP(H181,Récapitulatif!$B$14:$E$24,2,FALSE)),"") ->  | J181: 0 | K181: 4.5
A182: 2022 | B182: 2022-06-29 | C182: =IFERROR(IF(VLOOKUP($B182,Récapitulatif!$B$64:$E$68,2,FALSE)=0,"",VLOOKUP($B182,Récapitulatif!$B$64:$E$68,2,FALSE)),"") ->  | D182: 0 | E182: -4.5 | G182: 2022 | H182: 2022-06-29 | I182: =IFERROR(IF(VLOOKUP($H182,Récapitulatif!$B$14:$E$24,2,FALSE)=0,"",VLOOKUP(H182,Récapitulatif!$B$14:$E$24,2,FALSE)),"") ->  | J182: 0 | K182: 4.5
A183: 2022 | B183: 2022-06-30 | C183: =IFERROR(IF(VLOOKUP($B183,Récapitulatif!$B$64:$E$68,2,FALSE)=0,"",VLOOKUP($B183,Récapitulatif!$B$64:$E$68,2,FALSE)),"") ->  | D183: 0 | E183: -4.5 | G183: 2022 | H183: 2022-06-30 | I183: =IFERROR(IF(VLOOKUP($H183,Récapitulatif!$B$14:$E$24,2,FALSE)=0,"",VLOOKUP(H183,Récapitulatif!$B$14:$E$24,2,FALSE)),"") ->  | J183: 0 | K183: 4.5
A184: 2022 | B184: 2022-07-01 | C184: =IFERROR(IF(VLOOKUP($B184,Récapitulatif!$B$64:$E$68,2,FALSE)=0,"",VLOOKUP($B184,Récapitulatif!$B$64:$E$68,2,FALSE)),"") ->  | D184: 0 | E184: -8.5 | G184: 2022 | H184: 2022-07-01 | I184: =IFERROR(IF(VLOOKUP($H184,Récapitulatif!$B$14:$E$24,2,FALSE)=0,"",VLOOKUP(H184,Récapitulatif!$B$14:$E$24,2,FALSE)),"") ->  | J184: 0 | K184: 8.5
A185: 2022 | B185: 2022-07-02 | C185: =IFERROR(IF(VLOOKUP($B185,Récapitulatif!$B$64:$E$68,2,FALSE)=0,"",VLOOKUP($B185,Récapitulatif!$B$64:$E$68,2,FALSE)),"") ->  | D185: 0 | E185: -8.5 | G185: 2022 | H185: 2022-07-02 | I185: =IFERROR(IF(VLOOKUP($H185,Récapitulatif!$B$14:$E$24,2,FALSE)=0,"",VLOOKUP(H185,Récapitulatif!$B$14:$E$24,2,FALSE)),"") ->  | J185: 0 | K185: 8.5
A186: 2022 | B186: 2022-07-03 | C186: =IFERROR(IF(VLOOKUP($B186,Récapitulatif!$B$64:$E$68,2,FALSE)=0,"",VLOOKUP($B186,Récapitulatif!$B$64:$E$68,2,FALSE)),"") ->  | D186: 0 | E186: -8.5 | G186: 2022 | H186: 2022-07-03 | I186: =IFERROR(IF(VLOOKUP($H186,Récapitulatif!$B$14:$E$24,2,FALSE)=0,"",VLOOKUP(H186,Récapitulatif!$B$14:$E$24,2,FALSE)),"") ->  | J186: 0 | K186: 8.5
A187: 2022 | B187: 2022-07-04 | C187: =IFERROR(IF(VLOOKUP($B187,Récapitulatif!$B$64:$E$68,2,FALSE)=0,"",VLOOKUP($B187,Récapitulatif!$B$64:$E$68,2,FALSE)),"") ->  | D187: 0 | E187: -8.5 | G187: 2022 | H187: 2022-07-04 | I187: =IFERROR(IF(VLOOKUP($H187,Récapitulatif!$B$14:$E$24,2,FALSE)=0,"",VLOOKUP(H187,Récapitulatif!$B$14:$E$24,2,FALSE)),"") ->  | J187: 0 | K187: 8.5
A188: 2022 | B188: 2022-07-05 | C188: =IFERROR(IF(VLOOKUP($B188,Récapitulatif!$B$64:$E$68,2,FALSE)=0,"",VLOOKUP($B188,Récapitulatif!$B$64:$E$68,2,FALSE)),"") ->  | D188: 0 | E188: -8.5 | G188: 2022 | H188: 2022-07-05 | I188: =IFERROR(IF(VLOOKUP($H188,Récapitulatif!$B$14:$E$24,2,FALSE)=0,"",VLOOKUP(H188,Récapitulatif!$B$14:$E$24,2,FALSE)),"") ->  | J188: 0 | K188: 8.5
A189: 2022 | B189: 2022-07-06 | C189: =IFERROR(IF(VLOOKUP($B189,Récapitulatif!$B$64:$E$68,2,FALSE)=0,"",VLOOKUP($B189,Récapitulatif!$B$64:$E$68,2,FALSE)),"") ->  | D189: 0 | E189: -8.5 | G189: 2022 | H189: 2022-07-06 | I189: =IFERROR(IF(VLOOKUP($H189,Récapitulatif!$B$14:$E$24,2,FALSE)=0,"",VLOOKUP(H189,Récapitulatif!$B$14:$E$24,2,FALSE)),"") ->  | J189: 0 | K189: 8.5
A190: 2022 | B190: 2022-07-07 | C190: =IFERROR(IF(VLOOKUP($B190,Récapitulatif!$B$64:$E$68,2,FALSE)=0,"",VLOOKUP($B190,Récapitulatif!$B$64:$E$68,2,FALSE)),"") ->  | D190: 0 | E190: -8.5 | G190: 2022 | H190: 2022-07-07 | I190: =IFERROR(IF(VLOOKUP($H190,Récapitulatif!$B$14:$E$24,2,FALSE)=0,"",VLOOKUP(H190,Récapitulatif!$B$14:$E$24,2,FALSE)),"") ->  | J190: 0 | K190: 8.5
A191: 2022 | B191: 2022-07-08 | C191: =IFERROR(IF(VLOOKUP($B191,Récapitulatif!$B$64:$E$68,2,FALSE)=0,"",VLOOKUP($B191,Récapitulatif!$B$64:$E$68,2,FALSE)),"") ->  | D191: 0 | E191: -8.5 | G191: 2022 | H191: 2022-07-08 | I191: =IFERROR(IF(VLOOKUP($H191,Récapitulatif!$B$14:$E$24,2,FALSE)=0,"",VLOOKUP(H191,Récapitulatif!$B$14:$E$24,2,FALSE)),"") ->  | J191: 0 | K191: 8.5
A192: 2022 | B192: 2022-07-09 | C192: =IFERROR(IF(VLOOKUP($B192,Récapitulatif!$B$64:$E$68,2,FALSE)=0,"",VLOOKUP($B192,Récapitulatif!$B$64:$E$68,2,FALSE)),"") ->  | D192: 0 | E192: -8.5 | G192: 2022 | H192: 2022-07-09 | I192: =IFERROR(IF(VLOOKUP($H192,Récapitulatif!$B$14:$E$24,2,FALSE)=0,"",VLOOKUP(H192,Récapitulatif!$B$14:$E$24,2,FALSE)),"") ->  | J192: 0 | K192: 8.5
A193: 2022 | B193: 2022-07-10 | C193: =IFERROR(IF(VLOOKUP($B193,Récapitulatif!$B$64:$E$68,2,FALSE)=0,"",VLOOKUP($B193,Récapitulatif!$B$64:$E$68,2,FALSE)),"") ->  | D193: 0 | E193: -8.5 | G193: 2022 | H193: 2022-07-10 | I193: =IFERROR(IF(VLOOKUP($H193,Récapitulatif!$B$14:$E$24,2,FALSE)=0,"",VLOOKUP(H193,Récapitulatif!$B$14:$E$24,2,FALSE)),"") ->  | J193: 0 | K193: 8.5
A194: 2022 | B194: 2022-07-11 | C194: =IFERROR(IF(VLOOKUP($B194,Récapitulatif!$B$64:$E$68,2,FALSE)=0,"",VLOOKUP($B194,Récapitulatif!$B$64:$E$68,2,FALSE)),"") ->  | D194: 0 | E194: -8.5 | G194: 2022 | H194: 2022-07-11 | I194: =IFERROR(IF(VLOOKUP($H194,Récapitulatif!$B$14:$E$24,2,FALSE)=0,"",VLOOKUP(H194,Récapitulatif!$B$14:$E$24,2,FALSE)),"") ->  | J194: 0 | K194: 8.5
A195: 2022 | B195: 2022-07-12 | C195: =IFERROR(IF(VLOOKUP($B195,Récapitulatif!$B$64:$E$68,2,FALSE)=0,"",VLOOKUP($B195,Récapitulatif!$B$64:$E$68,2,FALSE)),"") ->  | D195: 0 | E195: -8.5 | G195: 2022 | H195: 2022-07-12 | I195: =IFERROR(IF(VLOOKUP($H195,Récapitulatif!$B$14:$E$24,2,FALSE)=0,"",VLOOKUP(H195,Récapitulatif!$B$14:$E$24,2,FALSE)),"") ->  | J195: 0 | K195: 8.5
A196: 2022 | B196: 2022-07-13 | C196: =IFERROR(IF(VLOOKUP($B196,Récapitulatif!$B$64:$E$68,2,FALSE)=0,"",VLOOKUP($B196,Récapitulatif!$B$64:$E$68,2,FALSE)),"") ->  | D196: =IF($C196="",0,$E196) -> 0 | E196: -8.5 | G196: 2022 | H196: 2022-07-13 | I196: =IFERROR(IF(VLOOKUP($H196,Récapitulatif!$B$14:$E$24,2,FALSE)=0,"",VLOOKUP(H196,Récapitulatif!$B$14:$E$24,2,FALSE)),"") ->  | J196: =IF($I196="",0,$K196) -> 0 | K196: 8.5
A197: =YEAR(B197) -> 2022 | B197: =B196+1 -> 2022-07-14 | C197: =IFERROR(IF(VLOOKUP($B197,Récapitulatif!$B$64:$E$68,2,FALSE)=0,"",VLOOKUP($B197,Récapitulatif!$B$64:$E$68,2,FALSE)),"") ->  | D197: 0 | E197: -8.5 | G197: =YEAR(H197) -> 2022 | H197: =H196+1 -> 2022-07-14 | I197: =IFERROR(IF(VLOOKUP($H197,Récapitulatif!$B$14:$E$24,2,FALSE)=0,"",VLOOKUP(H197,Récapitulatif!$B$14:$E$24,2,FALSE)),"") ->  | J197: 0 | K197: 8.5
A198: 2022 | B198: 2022-07-15 | C198: =IFERROR(IF(VLOOKUP($B198,Récapitulatif!$B$64:$E$68,2,FALSE)=0,"",VLOOKUP($B198,Récapitulatif!$B$64:$E$68,2,FALSE)),"") ->  | D198: 0 | E198: -8.5 | G198: 2022 | H198: 2022-07-15 | I198: =IFERROR(IF(VLOOKUP($H198,Récapitulatif!$B$14:$E$24,2,FALSE)=0,"",VLOOKUP(H198,Récapitulatif!$B$14:$E$24,2,FALSE)),"") ->  | J198: 0 | K198: 8.5
A199: 2022 | B199: 2022-07-16 | C199: =IFERROR(IF(VLOOKUP($B199,Récapitulatif!$B$64:$E$68,2,FALSE)=0,"",VLOOKUP($B199,Récapitulatif!$B$64:$E$68,2,FALSE)),"") ->  | D199: 0 | E199: -8.5 | G199: 2022 | H199: 2022-07-16 | I199: =IFERROR(IF(VLOOKUP($H199,Récapitulatif!$B$14:$E$24,2,FALSE)=0,"",VLOOKUP(H199,Récapitulatif!$B$14:$E$24,2,FALSE)),"") ->  | J199: 0 | K199: 8.5
A200: 2022 | B200: 2022-07-17 | C200: =IFERROR(IF(VLOOKUP($B200,Récapitulatif!$B$64:$E$68,2,FALSE)=0,"",VLOOKUP($B200,Récapitulatif!$B$64:$E$68,2,FALSE)),"") ->  | D200: 0 | E200: -8.5 | G200: 2022 | H200: 2022-07-17 | I200: =IFERROR(IF(VLOOKUP($H200,Récapitulatif!$B$14:$E$24,2,FALSE)=0,"",VLOOKUP(H200,Récapitulatif!$B$14:$E$24,2,FALSE)),"") ->  | J200: 0 | K200: 8.5
... 1268 more rows

Sheet Annexe
A2: Parcours des athlètes spécifique à chaque sport | H2: Système éducatif suisse
H19: Source: | I19: https://www.orientation.ch/
B21: Notice Planification de carrière | H21: Formation des talents sportifs

Sheet Hilfstabelle Alter (hidden)
A1: Jahr | B1: Datum
A2: ='Planification Sport'!B6 -> 2022 | B2: =DATE(A2,7,1) -> 2022-07-01
A3: ='Planification Sport'!B16 -> 2023 | B3: =DATE(A3,7,1) -> 2023-07-01
A4: ='Planification Sport'!B26 -> 2024 | B4: 2024-07-01
A5: ='Planification Sport'!B36 -> 2025 | B5: 2025-07-01
A6: ='Planification Sport'!B46 -> 2026 | B6: 2026-07-01
A7: ='Planification Sport'!B56 -> 2027 | B7: 2027-07-01
A8: ='Planification Sport'!B66 -> 2028 | B8: 2028-07-01
A9: ='Planification Sport'!B76 -> 2029 | B9: 2029-07-01
A10: ='Planification Sport'!B86 -> 2030 | B10: 2030-07-01
A11: ='Planification Sport'!B96 -> 2031 | B11: 2031-07-01
A12: ='Planification Sport'!B106 -> 2032 | B12: 2032-07-01
A13: ='Planification Sport'!#REF! -> 
A14: ='Planification Sport'!#REF! -> 
A15: ='Planification Sport'!#REF! -> 
A16: ='Planification Sport'!#REF! -> 
A17: ='Planification Sport'!#REF! -> 
A18: ='Planification Sport'!#REF! -> 
A19: ='Planification Sport'!#REF! -> 
A20: ='Planification Sport'!#REF! -> 
A21: ='Planification Sport'!#REF! -> 
A22: ='Planification Sport'!#REF! -> 

Sheet Hilfstabelle Sport Kategorien (hidden)
A1: Jahr | B1: Kategorie / Kader
A2: ='Planification Sport'!B6 -> 2022 | B2: ='Planification Sport'!$B$8 -> 0
A3: ='Planification Sport'!B16 -> 2023 | B3: ='Planification Sport'!$B$18 -> 0
A4: ='Planification Sport'!B26 -> 2024 | B4: ='Planification Sport'!$B$28 -> 0
A5: ='Planification Sport'!B36 -> 2025 | B5: ='Planification Sport'!$B$38 -> 0
A6: ='Planification Sport'!B46 -> 2026 | B6: ='Planification Sport'!$B$48 -> 0
A7: ='Planification Sport'!B56 -> 2027 | B7: ='Planification Sport'!$B$58 -> 0
A8: ='Planification Sport'!B66 -> 2028 | B8: ='Planification Sport'!$B$68 -> 0
A9: ='Planification Sport'!B76 -> 2029 | B9: ='Planification Sport'!$B$78 -> 0
A10: ='Planification Sport'!B86 -> 2030 | B10: ='Planification Sport'!$B$88 -> 0
A11: ='Planification Sport'!B96 -> 2031 | B11: ='Planification Sport'!$B$98 -> 0
A12: ='Planification Sport'!B106 -> 2032 | B12: ='Planification Sport'!$B$108 -> 0
A13: ='Planification Sport'!#REF! ->  | B13: ='Planification Sport'!#REF! -> 
A14: ='Planification Sport'!#REF! ->  | B14: ='Planification Sport'!#REF! -> 
A15: ='Planification Sport'!#REF! ->  | B15: ='Planification Sport'!#REF! -> 
A16: ='Planification Sport'!#REF! ->  | B16: ='Planification Sport'!#REF! -> 
A17: ='Planification Sport'!#REF! ->  | B17: ='Planification Sport'!#REF! -> 
A18: ='Planification Sport'!#REF! ->  | B18: ='Planification Sport'!#REF! -> 
A19: ='Planification Sport'!#REF! ->  | B19: ='Planification Sport'!#REF! -> 
A20: ='Planification Sport'!#REF! ->  | B20: ='Planification Sport'!#REF! -> 
A21: ='Planification Sport'!#REF! ->  | B21: ='Planification Sport'!#REF! -> 
A22: ='Planification Sport'!#REF! ->  | B22: ='Planification Sport'!#REF! -> 

Sheet Hilfstabelle Sport Saisonziele (hidden)
A1: Jahr | B1: Datum | C1: Meilenstein Bezeichnung | D1: Saisonziele
A2: ='Planification Sport'!$K$6 -> 2022 | B2: ='Planification Sport'!$K9 -> 00:00:00 | C2: ='Planification Sport'!$J9 -> But de la saison 1 | D2: ='Planification Sport'!L9 -> 0
A3: ='Planification Sport'!$K$6 -> 2022 | B3: ='Planification Sport'!$K10 -> 00:00:00 | C3: ='Planification Sport'!$J10 -> But de la saison 2 | D3: ='Planification Sport'!L10 -> 0
A4: ='Planification Sport'!$K$6 -> 2022 | B4: ='Planification Sport'!$K11 -> 00:00:00 | C4: ='Planification Sport'!$J11 -> But de la saison 3 | D4: ='Planification Sport'!L11 -> 0
A5: ='Planification Sport'!$K$6 -> 2022 | B5: ='Planification Sport'!$K12 -> 00:00:00 | C5: ='Planification Sport'!$J12 -> But de la saison 4 | D5: ='Planification Sport'!L12 -> 0
A6: ='Planification Sport'!$K$6 -> 2022 | B6: ='Planification Sport'!$K13 -> 00:00:00 | C6: ='Planification Sport'!$J13 -> But de la saison 5 | D6: ='Planification Sport'!L13 -> 0
A7: ='Planification Sport'!$K$6 -> 2022 | B7: ='Planification Sport'!$K14 -> 00:00:00 | C7: ='Planification Sport'!$J14 -> Service militaire debut | D7: ='Planification Sport'!L14 -> 0
A8: ='Planification Sport'!$K$6 -> 2022 | B8: ='Planification Sport'!$K15 -> 00:00:00 | C8: ='Planification Sport'!$J15 -> Service militaire fin | D8: ='Planification Sport'!L15 -> 0
A9: ='Planification Sport'!$K$16 -> 2023 | B9: ='Planification Sport'!$K19 -> 00:00:00 | C9: ='Planification Sport'!$J19 -> But de la saison 1 | D9: ='Planification Sport'!L19 -> 0
A10: ='Planification Sport'!$K$16 -> 2023 | B10: ='Planification Sport'!$K20 -> 00:00:00 | C10: ='Planification Sport'!$J20 -> But de la saison 2 | D10: ='Planification Sport'!L20 -> 0
A11: ='Planification Sport'!$K$16 -> 2023 | B11: ='Planification Sport'!$K21 -> 00:00:00 | C11: ='Planification Sport'!$J21 -> But de la saison 3 | D11: ='Planification Sport'!L21 -> 0
A12: ='Planification Sport'!$K$16 -> 2023 | B12: ='Planification Sport'!$K22 -> 00:00:00 | C12: ='Planification Sport'!$J22 -> But de la saison 4 | D12: ='Planification Sport'!L22 -> 0
A13: ='Planification Sport'!$K$16 -> 2023 | B13: ='Planification Sport'!$K23 -> 00:00:00 | C13: ='Planification Sport'!$J23 -> But de la saison 5 | D13: ='Planification Sport'!L23 -> 0
A14: ='Planification Sport'!$K$16 -> 2023 | B14: ='Planification Sport'!$K24 -> 00:00:00 | C14: ='Planification Sport'!$J24 -> Service militaire debut | D14: ='Planification Sport'!L24 -> 0
A15: ='Planification Sport'!$K$16 -> 2023 | B15: ='Planification Sport'!$K25 -> 00:00:00 | C15: ='Planification Sport'!$J25 -> Service militaire fin | D15: ='Planification Sport'!L25 -> 0
A16: ='Planification Sport'!$K$26 -> 2024 | B16: ='Planification Sport'!$K29 -> 00:00:00 | C16: ='Planification Sport'!$J29 -> But de la saison 1 | D16: ='Planification Sport'!L29 -> 0
A17: ='Planification Sport'!$K$26 -> 2024 | B17: ='Planification Sport'!$K30 -> 00:00:00 | C17: ='Planification Sport'!$J30 -> But de la saison 2 | D17: ='Planification Sport'!L30 -> 0
A18: ='Planification Sport'!$K$26 -> 2024 | B18: ='Planification Sport'!$K31 -> 00:00:00 | C18: ='Planification Sport'!$J31 -> But de la saison 3 | D18: ='Planification Sport'!L31 -> 0
A19: ='Planification Sport'!$K$26 -> 2024 | B19: ='Planification Sport'!$K32 -> 00:00:00 | C19: ='Planification Sport'!$J32 -> But de la saison 4 | D19: ='Planification Sport'!L32 -> 0
A20: ='Planification Sport'!$K$26 -> 2024 | B20: ='Planification Sport'!$K33 -> 00:00:00 | C20: ='Planification Sport'!$J33 -> But de la saison 5 | D20: ='Planification Sport'!L33 -> 0
A21: ='Planification Sport'!$K$26 -> 2024 | B21: ='Planification Sport'!$K34 -> 00:00:00 | C21: ='Planification Sport'!$J34 -> Service militaire debut | D21: ='Planification Sport'!L34 -> 0
A22: ='Planification Sport'!$K$26 -> 2024 | B22: ='Planification Sport'!$K35 -> 00:00:00 | C22: ='Planification Sport'!$J35 -> Service militaire fin | D22: ='Planification Sport'!L35 -> 0
A23: ='Planification Sport'!$K$36 -> 2025 | B23: ='Planification Sport'!$K39 -> 00:00:00 | C23: ='Planification Sport'!$J39 -> But de la saison 1 | D23: ='Planification Sport'!L39 -> 0
A24: ='Planification Sport'!$K$36 -> 2025 | B24: ='Planification Sport'!$K40 -> 00:00:00 | C24: ='Planification Sport'!$J40 -> But de la saison 2 | D24: ='Planification Sport'!L40 -> 0
A25: ='Planification Sport'!$K$36 -> 2025 | B25: ='Planification Sport'!$K41 -> 00:00:00 | C25: ='Planification Sport'!$J41 -> But de la saison 3 | D25: ='Planification Sport'!L41 -> 0
A26: ='Planification Sport'!$K$36 -> 2025 | B26: ='Planification Sport'!$K42 -> 00:00:00 | C26: ='Planification Sport'!$J42 -> But de la saison 4 | D26: ='Planification Sport'!L42 -> 0
A27: ='Planification Sport'!$K$36 -> 2025 | B27: ='Planification Sport'!$K43 -> 00:00:00 | C27: ='Planification Sport'!$J43 -> But de la saison 5 | D27: ='Planification Sport'!L43 -> 0
A28: ='Planification Sport'!$K$36 -> 2025 | B28: ='Planification Sport'!$K44 -> 00:00:00 | C28: ='Planification Sport'!$J44 -> Service militaire debut | D28: ='Planification Sport'!L44 -> 0
A29: ='Planification Sport'!$K$36 -> 2025 | B29: ='Planification Sport'!$K45 -> 00:00:00 | C29: ='Planification Sport'!$J45 -> Service militaire fin | D29: ='Planification Sport'!L45 -> 0
A30: ='Planification Sport'!$K$46 -> 2026 | B30: ='Planification Sport'!$K49 -> 00:00:00 | C30: ='Planification Sport'!$J49 -> But de la saison 1 | D30: ='Planification Sport'!L49 -> 0
A31: ='Planification Sport'!$K$46 -> 2026 | B31: ='Planification Sport'!$K50 -> 00:00:00 | C31: ='Planification Sport'!$J50 -> But de la saison 2 | D31: ='Planification Sport'!L50 -> 0
A32: ='Planification Sport'!$K$46 -> 2026 | B32: ='Planification Sport'!$K51 -> 00:00:00 | C32: ='Planification Sport'!$J51 -> But de la saison 3 | D32: ='Planification Sport'!L51 -> 0
A33: ='Planification Sport'!$K$46 -> 2026 | B33: ='Planification Sport'!$K52 -> 00:00:00 | C33: ='Planification Sport'!$J52 -> But de la saison 4 | D33: ='Planification Sport'!L52 -> 0
A34: ='Planification Sport'!$K$46 -> 2026 | B34: ='Planification Sport'!$K53 -> 00:00:00 | C34: ='Planification Sport'!$J53 -> But de la saison 5 | D34: ='Planification Sport'!L53 -> 0
A35: ='Planification Sport'!$K$46 -> 2026 | B35: ='Planification Sport'!$K54 -> 00:00:00 | C35: ='Planification Sport'!$J54 -> Service militaire debut | D35: ='Planification Sport'!L54 -> 0
A36: ='Planification Sport'!$K$46 -> 2026 | B36: ='Planification Sport'!$K55 -> 00:00:00 | C36: ='Planification Sport'!$J55 -> Service militaire fin | D36: ='Planification Sport'!L55 -> 0
A37: ='Planification Sport'!$K$56 -> 2027 | B37: ='Planification Sport'!$K59 -> 00:00:00 | C37: ='Planification Sport'!$J59 -> But de la saison 1 | D37: ='Planification Sport'!L59 -> 0
A38: ='Planification Sport'!$K$56 -> 2027 | B38: ='Planification Sport'!$K60 -> 00:00:00 | C38: ='Planification Sport'!$J60 -> But de la saison 2 | D38: ='Planification Sport'!L60 -> 0
A39: ='Planification Sport'!$K$56 -> 2027 | B39: ='Planification Sport'!$K61 -> 00:00:00 | C39: ='Planification Sport'!$J61 -> But de la saison 3 | D39: ='Planification Sport'!L61 -> 0
A40: ='Planification Sport'!$K$56 -> 2027 | B40: ='Planification Sport'!$K62 -> 00:00:00 | C40: ='Planification Sport'!$J62 -> But de la saison 4 | D40: ='Planification Sport'!L62 -> 0
A41: ='Planification Sport'!$K$56 -> 2027 | B41: ='Planification Sport'!$K63 -> 00:00:00 | C41: ='Planification Sport'!$J63 -> But de la saison 5 | D41: ='Planification Sport'!L63 -> 0
A42: ='Planification Sport'!$K$56 -> 2027 | B42: ='Planification Sport'!$K64 -> 00:00:00 | C42: ='Planification Sport'!$J64 -> Service militaire debut | D42: ='Planification Sport'!L64 -> 0
A43: ='Planification Sport'!$K$56 -> 2027 | B43: ='Planification Sport'!$K65 -> 00:00:00 | C43: ='Planification Sport'!$J65 -> Service militaire fin | D43: ='Planification Sport'!L65 -> 0
A44: ='Planification Sport'!$K$66 -> 2028 | B44: ='Planification Sport'!$K69 -> 00:00:00 | C44: ='Planification Sport'!$J69 -> But de la saison 1 | D44: ='Planification Sport'!L69 -> 0
A45: ='Planification Sport'!$K$66 -> 2028 | B45: ='Planification Sport'!$K70 -> 00:00:00 | C45: ='Planification Sport'!$J70 -> But de la saison 2 | D45: ='Planification Sport'!L70 -> 0
A46: ='Planification Sport'!$K$66 -> 2028 | B46: ='Planification Sport'!$K71 -> 00:00:00 | C46: ='Planification Sport'!$J71 -> But de la saison 3 | D46: ='Planification Sport'!L71 -> 0
A47: ='Planification Sport'!$K$66 -> 2028 | B47: ='Planification Sport'!$K72 -> 00:00:00 | C47: ='Planification Sport'!$J72 -> But de la saison 4 | D47: ='Planification Sport'!L72 -> 0
A48: ='Planification Sport'!$K$66 -> 2028 | B48: ='Planification Sport'!$K73 -> 00:00:00 | C48: ='Planification Sport'!$J73 -> But de la saison 5 | D48: ='Planification Sport'!L73 -> 0
A49: ='Planification Sport'!$K$66 -> 2028 | B49: ='Planification Sport'!$K74 -> 00:00:00 | C49: ='Planification Sport'!$J74 -> Service militaire debut | D49: ='Planification Sport'!L74 -> 0
A50: ='Planification Sport'!$K$66 -> 2028 | B50: ='Planification Sport'!$K75 -> 00:00:00 | C50: ='Planification Sport'!$J75 -> Service militaire fin | D50: ='Planification Sport'!L75 -> 0
A51: ='Planification Sport'!$K$76 -> 2029 | B51: ='Planification Sport'!$K79 -> 00:00:00 | C51: ='Planification Sport'!$J79 -> But de la saison 1 | D51: ='Planification Sport'!L79 -> 0
A52: ='Planification Sport'!$K$76 -> 2029 | B52: ='Planification Sport'!$K80 -> 00:00:00 | C52: ='Planification Sport'!$J80 -> But de la saison 2 | D52: ='Planification Sport'!L80 -> 0
A53: ='Planification Sport'!$K$76 -> 2029 | B53: ='Planification Sport'!$K81 -> 00:00:00 | C53: ='Planification Sport'!$J81 -> But de la saison 3 | D53: ='Planification Sport'!L81 -> 0
A54: ='Planification Sport'!$K$76 -> 2029 | B54: ='Planification Sport'!$K82 -> 00:00:00 | C54: ='Planification Sport'!$J82 -> But de la saison 4 | D54: ='Planification Sport'!L82 -> 0
A55: ='Planification Sport'!$K$76 -> 2029 | B55: ='Planification Sport'!$K83 -> 00:00:00 | C55: ='Planification Sport'!$J83 -> But de la saison 5 | D55: ='Planification Sport'!L83 -> 0
A56: ='Planification Sport'!$K$76 -> 2029 | B56: ='Planification Sport'!$K84 -> 00:00:00 | C56: ='Planification Sport'!$J84 -> Service militaire debut | D56: ='Planification Sport'!L84 -> 0
A57: ='Planification Sport'!$K$76 -> 2029 | B57: ='Planification Sport'!$K85 -> 00:00:00 | C57: ='Planification Sport'!$J85 -> Service militaire fin | D57: ='Planification Sport'!L85 -> 0
A58: ='Planification Sport'!$K$86 -> 2030 | B58: ='Planification Sport'!$K89 -> 00:00:00 | C58: ='Planification Sport'!$J89 -> But de la saison 1 | D58: ='Planification Sport'!L89 -> 0
A59: ='Planification Sport'!$K$86 -> 2030 | B59: ='Planification Sport'!$K90 -> 00:00:00 | C59: ='Planification Sport'!$J90 -> But de la saison 2 | D59: ='Planification Sport'!L90 -> 0
A60: ='Planification Sport'!$K$86 -> 2030 | B60: ='Planification Sport'!$K91 -> 00:00:00 | C60: ='Planification Sport'!$J91 -> But de la saison 3 | D60: ='Planification Sport'!L91 -> 0
A61: ='Planification Sport'!$K$86 -> 2030 | B61: ='Planification Sport'!$K92 -> 00:00:00 | C61: ='Planification Sport'!$J92 -> But de la saison 4 | D61: ='Planification Sport'!L92 -> 0
A62: ='Planification Sport'!$K$86 -> 2030 | B62: ='Planification Sport'!$K93 -> 00:00:00 | C62: ='Planification Sport'!$J93 -> But de la saison 5 | D62: ='Planification Sport'!L93 -> 0
A63: ='Planification Sport'!$K$86 -> 2030 | B63: ='Planification Sport'!$K94 -> 00:00:00 | C63: ='Planification Sport'!$J94 -> Service militaire debut | D63: ='Planification Sport'!L94 -> 0
A64: ='Planification Sport'!$K$86 -> 2030 | B64: ='Planification Sport'!$K95 -> 00:00:00 | C64: ='Planification Sport'!$J95 -> Service militaire fin | D64: ='Planification Sport'!L95 -> 0
A65: ='Planification Sport'!$K$96 -> 2031 | B65: ='Planification Sport'!$K99 -> 00:00:00 | C65: ='Planification Sport'!$J99 -> But de la saison 1 | D65: ='Planification Sport'!L99 -> 0
A66: ='Planification Sport'!$K$96 -> 2031 | B66: ='Planification Sport'!$K100 -> 00:00:00 | C66: ='Planification Sport'!$J100 -> But de la saison 2 | D66: ='Planification Sport'!L100 -> 0
A67: ='Planification Sport'!$K$96 -> 2031 | B67: ='Planification Sport'!$K101 -> 00:00:00 | C67: ='Planification Sport'!$J101 -> But de la saison 3 | D67: ='Planification Sport'!L101 -> 0
A68: ='Planification Sport'!$K$96 -> 2031 | B68: ='Planification Sport'!$K102 -> 00:00:00 | C68: ='Planification Sport'!$J102 -> But de la saison 4 | D68: ='Planification Sport'!L102 -> 0
A69: ='Planification Sport'!$K$96 -> 2031 | B69: ='Planification Sport'!$K103 -> 00:00:00 | C69: ='Planification Sport'!$J103 -> But de la saison 5 | D69: ='Planification Sport'!L103 -> 0
A70: ='Planification Sport'!$K$96 -> 2031 | B70: ='Planification Sport'!$K104 -> 00:00:00 | C70: ='Planification Sport'!$J104 -> Service militaire debut | D70: ='Planification Sport'!L104 -> 0
A71: ='Planification Sport'!$K$96 -> 2031 | B71: ='Planification Sport'!$K105 -> 00:00:00 | C71: ='Planification Sport'!$J105 -> Service militaire fin | D71: ='Planification Sport'!L105 -> 0
A72: ='Planification Sport'!$K$106 -> 2032 | B72: ='Planification Sport'!$K109 -> 00:00:00 | C72: ='Planification Sport'!$J109 -> But de la saison 1 | D72: ='Planification Sport'!L109 -> 0
A73: ='Planification Sport'!$K$106 -> 2032 | B73: ='Planification Sport'!$K110 -> 00:00:00 | C73: ='Planification Sport'!$J110 -> But de la saison 2 | D73: ='Planification Sport'!L110 -> 0
A74: ='Planification Sport'!$K$106 -> 2032 | B74: ='Planification Sport'!$K111 -> 00:00:00 | C74: ='Planification Sport'!$J111 -> But de la saison 3 | D74: ='Planification Sport'!L111 -> 0
A75: ='Planification Sport'!$K$106 -> 2032 | B75: ='Planification Sport'!$K112 -> 00:00:00 | C75: ='Planification Sport'!$J112 -> But de la saison 4 | D75: ='Planification Sport'!L112 -> 0
A76: ='Planification Sport'!$K$106 -> 2032 | B76: ='Planification Sport'!$K113 -> 00:00:00 | C76: ='Planification Sport'!$J113 -> But de la saison 5 | D76: ='Planification Sport'!L113 -> 0
A77: ='Planification Sport'!$K$106 -> 2032 | B77: ='Planification Sport'!$K114 -> 00:00:00 | C77: ='Planification Sport'!$J114 -> Service militaire debut | D77: ='Planification Sport'!L114 -> 0
A78: ='Planification Sport'!$K$106 -> 2032 | B78: ='Planification Sport'!$K115 -> 00:00:00 | C78: ='Planification Sport'!$J115 -> Service militaire fin | D78: ='Planification Sport'!L115 -> 0
A79: ='Planification Sport'!#REF! ->  | B79: ='Planification Sport'!#REF! ->  | C79: ='Planification Sport'!#REF! ->  | D79: ='Planification Sport'!#REF! -> 
A80: ='Planification Sport'!#REF! ->  | B80: ='Planification Sport'!#REF! ->  | C80: ='Planification Sport'!#REF! ->  | D80: ='Planification Sport'!#REF! -> 
A81: ='Planification Sport'!#REF! ->  | B81: ='Planification Sport'!#REF! ->  | C81: ='Planification Sport'!#REF! ->  | D81: ='Planification Sport'!#REF! -> 
A82: ='Planification Sport'!#REF! ->  | B82: ='Planification Sport'!#REF! ->  | C82: ='Planification Sport'!#REF! ->  | D82: ='Planification Sport'!#REF! -> 
A83: ='Planification Sport'!#REF! ->  | B83: ='Planification Sport'!#REF! ->  | C83: ='Planification Sport'!#REF! ->  | D83: ='Planification Sport'!#REF! -> 
A84: ='Planification Sport'!#REF! ->  | B84: ='Planification Sport'!#REF! ->  | C84: ='Planification Sport'!#REF! ->  | D84: ='Planification Sport'!#REF! -> 
A85: ='Planification Sport'!#REF! ->  | B85: ='Planification Sport'!#REF! ->  | C85: ='Planification Sport'!#REF! ->  | D85: ='Planification Sport'!#REF! -> 
A86: ='Planification Sport'!#REF! ->  | B86: ='Planification Sport'!#REF! ->  | C86: ='Planification Sport'!#REF! ->  | D86: ='Planification Sport'!#REF! -> 
A87: ='Planification Sport'!#REF! ->  | B87: ='Planification Sport'!#REF! ->  | C87: ='Planification Sport'!#REF! ->  | D87: ='Planification Sport'!#REF! -> 
A88: ='Planification Sport'!#REF! ->  | B88: ='Planification Sport'!#REF! ->  | C88: ='Planification Sport'!#REF! ->  | D88: ='Planification Sport'!#REF! -> 
A89: ='Planification Sport'!#REF! ->  | B89: ='Planification Sport'!#REF! ->  | C89: ='Planification Sport'!#REF! ->  | D89: ='Planification Sport'!#REF! -> 
A90: ='Planification Sport'!#REF! ->  | B90: ='Planification Sport'!#REF! ->  | C90: ='Planification Sport'!#REF! ->  | D90: ='Planification Sport'!#REF! -> 
A91: ='Planification Sport'!#REF! ->  | B91: ='Planification Sport'!#REF! ->  | C91: ='Planification Sport'!#REF! ->  | D91: ='Planification Sport'!#REF! -> 
A92: ='Planification Sport'!#REF! ->  | B92: ='Planification Sport'!#REF! ->  | C92: ='Planification Sport'!#REF! ->  | D92: ='Planification Sport'!#REF! -> 
A93: ='Planification Sport'!#REF! ->  | B93: ='Planification Sport'!#REF! ->  | C93: ='Planification Sport'!#REF! ->  | D93: ='Planification Sport'!#REF! -> 
A94: ='Planification Sport'!#REF! ->  | B94: ='Planification Sport'!#REF! ->  | C94: ='Planification Sport'!#REF! ->  | D94: ='Planification Sport'!#REF! -> 
A95: ='Planification Sport'!#REF! ->  | B95: ='Planification Sport'!#REF! ->  | C95: ='Planification Sport'!#REF! ->  | D95: ='Planification Sport'!#REF! -> 
A96: ='Planification Sport'!#REF! ->  | B96: ='Planification Sport'!#REF! ->  | C96: ='Planification Sport'!#REF! ->  | D96: ='Planification Sport'!#REF! -> 
A97: ='Planification Sport'!#REF! ->  | B97: ='Planification Sport'!#REF! ->  | C97: ='Planification Sport'!#REF! ->  | D97: ='Planification Sport'!#REF! -> 
A98: ='Planification Sport'!#REF! ->  | B98: ='Planification Sport'!#REF! ->  | C98: ='Planification Sport'!#REF! ->  | D98: ='Planification Sport'!#REF! -> 
A99: ='Planification Sport'!#REF! ->  | B99: ='Planification Sport'!#REF! ->  | C99: ='Planification Sport'!#REF! ->  | D99: ='Planification Sport'!#REF! -> 
A100: ='Planification Sport'!#REF! ->  | B100: ='Planification Sport'!#REF! ->  | C100: ='Planification Sport'!#REF! ->  | D100: ='Planification Sport'!#REF! -> 
A101: ='Planification Sport'!#REF! ->  | B101: ='Planification Sport'!#REF! ->  | C101: ='Planification Sport'!#REF! ->  | D101: ='Planification Sport'!#REF! -> 
A102: ='Planification Sport'!#REF! ->  | B102: ='Planification Sport'!#REF! ->  | C102: ='Planification Sport'!#REF! ->  | D102: ='Planification Sport'!#REF! -> 
A103: ='Planification Sport'!#REF! ->  | B103: ='Planification Sport'!#REF! ->  | C103: ='Planification Sport'!#REF! ->  | D103: ='Planification Sport'!#REF! -> 
A104: ='Planification Sport'!#REF! ->  | B104: ='Planification Sport'!#REF! ->  | C104: ='Planification Sport'!#REF! ->  | D104: ='Planification Sport'!#REF! -> 
A105: ='Planification Sport'!#REF! ->  | B105: ='Planification Sport'!#REF! ->  | C105: ='Planification Sport'!#REF! ->  | D105: ='Planification Sport'!#REF! -> 
A106: ='Planification Sport'!#REF! ->  | B106: ='Planification Sport'!#REF! ->  | C106: ='Planification Sport'!#REF! ->  | D106: ='Planification Sport'!#REF! -> 
A107: ='Planification Sport'!#REF! ->  | B107: ='Planification Sport'!#REF! ->  | C107: ='Planification Sport'!#REF! ->  | D107: ='Planification Sport'!#REF! -> 
A108: ='Planification Sport'!#REF! ->  | B108: ='Planification Sport'!#REF! ->  | C108: ='Planification Sport'!#REF! ->  | D108: ='Planification Sport'!#REF! -> 
A109: ='Planification Sport'!#REF! ->  | B109: ='Planification Sport'!#REF! ->  | C109: ='Planification Sport'!#REF! ->  | D109: ='Planification Sport'!#REF! -> 
A110: ='Planification Sport'!#REF! ->  | B110: ='Planification Sport'!#REF! ->  | C110: ='Planification Sport'!#REF! ->  | D110: ='Planification Sport'!#REF! -> 
A111: ='Planification Sport'!#REF! ->  | B111: ='Planification Sport'!#REF! ->  | C111: ='Planification Sport'!#REF! ->  | D111: ='Planification Sport'!#REF! -> 
A112: ='Planification Sport'!#REF! ->  | B112: ='Planification Sport'!#REF! ->  | C112: ='Planification Sport'!#REF! ->  | D112: ='Planification Sport'!#REF! -> 
A113: ='Planification Sport'!#REF! ->  | B113: ='Planification Sport'!#REF! ->  | C113: ='Planification Sport'!#REF! ->  | D113: ='Planification Sport'!#REF! -> 
A114: ='Planification Sport'!#REF! ->  | B114: ='Planification Sport'!#REF! ->  | C114: ='Planification Sport'!#REF! ->  | D114: ='Planification Sport'!#REF! -> 
A115: ='Planification Sport'!#REF! ->  | B115: ='Planification Sport'!#REF! ->  | C115: ='Planification Sport'!#REF! ->  | D115: ='Planification Sport'!#REF! -> 
A116: ='Planification Sport'!#REF! ->  | B116: ='Planification Sport'!#REF! ->  | C116: ='Planification Sport'!#REF! ->  | D116: ='Planification Sport'!#REF! -> 
A117: ='Planification Sport'!#REF! ->  | B117: ='Planification Sport'!#REF! ->  | C117: ='Planification Sport'!#REF! ->  | D117: ='Planification Sport'!#REF! -> 
A118: ='Planification Sport'!#REF! ->  | B118: ='Planification Sport'!#REF! ->  | C118: ='Planification Sport'!#REF! ->  | D118: ='Planification Sport'!#REF! -> 
A119: ='Planification Sport'!#REF! ->  | B119: ='Planification Sport'!#REF! ->  | C119: ='Planification Sport'!#REF! ->  | D119: ='Planification Sport'!#REF! -> 
A120: ='Planification Sport'!#REF! ->  | B120: ='Planification Sport'!#REF! ->  | C120: ='Planification Sport'!#REF! ->  | D120: ='Planification Sport'!#REF! -> 
A121: ='Planification Sport'!#REF! ->  | B121: ='Planification Sport'!#REF! ->  | C121: ='Planification Sport'!#REF! ->  | D121: ='Planification Sport'!#REF! -> 
A122: ='Planification Sport'!#REF! ->  | B122: ='Planification Sport'!#REF! ->  | C122: ='Planification Sport'!#REF! ->  | D122: ='Planification Sport'!#REF! -> 
A123: ='Planification Sport'!#REF! ->  | B123: ='Planification Sport'!#REF! ->  | C123: ='Planification Sport'!#REF! ->  | D123: ='Planification Sport'!#REF! -> 
A124: ='Planification Sport'!#REF! ->  | B124: ='Planification Sport'!#REF! ->  | C124: ='Planification Sport'!#REF! ->  | D124: ='Planification Sport'!#REF! -> 
A125: ='Planification Sport'!#REF! ->  | B125: ='Planification Sport'!#REF! ->  | C125: ='Planification Sport'!#REF! ->  | D125: ='Planification Sport'!#REF! -> 
A126: ='Planification Sport'!#REF! ->  | B126: ='Planification Sport'!#REF! ->  | C126: ='Planification Sport'!#REF! ->  | D126: ='Planification Sport'!#REF! -> 
A127: ='Planification Sport'!#REF! ->  | B127: ='Planification Sport'!#REF! ->  | C127: ='Planification Sport'!#REF! ->  | D127: ='Planification Sport'!#REF! -> 
A128: ='Planification Sport'!#REF! ->  | B128: ='Planification Sport'!#REF! ->  | C128: ='Planification Sport'!#REF! ->  | D128: ='Planification Sport'!#REF! -> 
A129: ='Planification Sport'!#REF! ->  | B129: ='Planification Sport'!#REF! ->  | C129: ='Planification Sport'!#REF! ->  | D129: ='Planification Sport'!#REF! -> 
A130: ='Planification Sport'!#REF! ->  | B130: ='Planification Sport'!#REF! ->  | C130: ='Planification Sport'!#REF! ->  | D130: ='Planification Sport'!#REF! -> 
A131: ='Planification Sport'!#REF! ->  | B131: ='Planification Sport'!#REF! ->  | C131: ='Planification Sport'!#REF! ->  | D131: ='Planification Sport'!#REF! -> 
A132: ='Planification Sport'!#REF! ->  | B132: ='Planification Sport'!#REF! ->  | C132: ='Planification Sport'!#REF! ->  | D132: ='Planification Sport'!#REF! -> 
A133: ='Planification Sport'!#REF! ->  | B133: ='Planification Sport'!#REF! ->  | C133: ='Planification Sport'!#REF! ->  | D133: ='Planification Sport'!#REF! -> 
A134: ='Planification Sport'!#REF! ->  | B134: ='Planification Sport'!#REF! ->  | C134: ='Planification Sport'!#REF! ->  | D134: ='Planification Sport'!#REF! -> 
A135: ='Planification Sport'!#REF! ->  | B135: ='Planification Sport'!#REF! ->  | C135: ='Planification Sport'!#REF! ->  | D135: ='Planification Sport'!#REF! -> 
A136: ='Planification Sport'!#REF! ->  | B136: ='Planification Sport'!#REF! ->  | C136: ='Planification Sport'!#REF! ->  | D136: ='Planification Sport'!#REF! -> 
A137: ='Planification Sport'!#REF! ->  | B137: ='Planification Sport'!#REF! ->  | C137: ='Planification Sport'!#REF! ->  | D137: ='Planification Sport'!#REF! -> 
A138: ='Planification Sport'!#REF! ->  | B138: ='Planification Sport'!#REF! ->  | C138: ='Planification Sport'!#REF! ->  | D138: ='Planification Sport'!#REF! -> 
A139: ='Planification Sport'!#REF! ->  | B139: ='Planification Sport'!#REF! ->  | C139: ='Planification Sport'!#REF! ->  | D139: ='Planification Sport'!#REF! -> 
A140: ='Planification Sport'!#REF! ->  | B140: ='Planification Sport'!#REF! ->  | C140: ='Planification Sport'!#REF! ->  | D140: ='Planification Sport'!#REF! -> 
A141: ='Planification Sport'!#REF! ->  | B141: ='Planification Sport'!#REF! ->  | C141: ='Planification Sport'!#REF! ->  | D141: ='Planification Sport'!#REF! -> 
A142: ='Planification Sport'!#REF! ->  | B142: ='Planification Sport'!#REF! ->  | C142: ='Planification Sport'!#REF! ->  | D142: ='Planification Sport'!#REF! -> 
A143: ='Planification Sport'!#REF! ->  | B143: ='Planification Sport'!#REF! ->  | C143: ='Planification Sport'!#REF! ->  | D143: ='Planification Sport'!#REF! -> 
A144: ='Planification Sport'!#REF! ->  | B144: ='Planification Sport'!#REF! ->  | C144: ='Planification Sport'!#REF! ->  | D144: ='Planification Sport'!#REF! -> 
A145: ='Planification Sport'!#REF! ->  | B145: ='Planification Sport'!#REF! ->  | C145: ='Planification Sport'!#REF! ->  | D145: ='Planification Sport'!#REF! -> 
A146: ='Planification Sport'!#REF! ->  | B146: ='Planification Sport'!#REF! ->  | C146: ='Planification Sport'!#REF! ->  | D146: ='Planification Sport'!#REF! -> 
A147: ='Planification Sport'!#REF! ->  | B147: ='Planification Sport'!#REF! ->  | C147: ='Planification Sport'!#REF! ->  | D147: ='Planification Sport'!#REF! -> 
A148: ='Planification Sport'!#REF! ->  | B148: ='Planification Sport'!#REF! ->  | C148: ='Planification Sport'!#REF! ->  | D148: ='Planification Sport'!#REF! -> 

Sheet Hilfstabelle Sport Grobplan (hidden)
A1: Jahr | B1: Beschreibung Einheit/Umfang/Schwerpunkt | C1: Einheiten/Umfang/Schwerpunkt
A2: ='Planification Sport'!$B$6 -> 2022 | B2: ='Planification Sport'!$Q8 -> Unités d’entraînement par semaine | C2: ='Planification Sport'!$R8 -> 0
A3: ='Planification Sport'!$B$6 -> 2022 | B3: ='Planification Sport'!$Q10 -> Volume d’entraînement (h/semaine) | C3: ='Planification Sport'!$R10 -> 0
A4: ='Planification Sport'!$B$6 -> 2022 | B4: ='Planification Sport'!$Q12 -> Points principaux d’entraînement | C4: ='Planification Sport'!$R12 -> 0
A5: ='Planification Sport'!$B$16 -> 2023 | B5: ='Planification Sport'!$Q18 -> Unités d’entraînement par semaine | C5: ='Planification Sport'!$R18 -> 0
A6: ='Planification Sport'!$B$16 -> 2023 | B6: ='Planification Sport'!$Q20 -> Volume d’entraînement (h/semaine) | C6: ='Planification Sport'!$R20 -> 0
A7: ='Planification Sport'!$B$16 -> 2023 | B7: ='Planification Sport'!$Q22 -> Points principaux d’entraînement | C7: ='Planification Sport'!$R22 -> 0
A8: ='Planification Sport'!$B$26 -> 2024 | B8: ='Planification Sport'!$Q28 -> Unités d’entraînement par semaine | C8: ='Planification Sport'!$R28 -> 0
A9: ='Planification Sport'!$B$26 -> 2024 | B9: ='Planification Sport'!$Q30 -> Volume d’entraînement (h/semaine) | C9: ='Planification Sport'!$R30 -> 0
A10: ='Planification Sport'!$B$26 -> 2024 | B10: ='Planification Sport'!$Q32 -> Points principaux d’entraînement | C10: ='Planification Sport'!$R32 -> 0
A11: ='Planification Sport'!$B$36 -> 2025 | B11: ='Planification Sport'!$Q38 -> Unités d’entraînement par semaine | C11: ='Planification Sport'!$R38 -> 0
A12: ='Planification Sport'!$B$36 -> 2025 | B12: ='Planification Sport'!$Q40 -> Volume d’entraînement (h/semaine) | C12: ='Planification Sport'!$R40 -> 0
A13: ='Planification Sport'!$B$36 -> 2025 | B13: ='Planification Sport'!$Q42 -> Points principaux d’entraînement | C13: ='Planification Sport'!$R42 -> 0
A14: ='Planification Sport'!$B$46 -> 2026 | B14: ='Planification Sport'!$Q48 -> Unités d’entraînement par semaine | C14: ='Planification Sport'!$R48 -> 0
A15: ='Planification Sport'!$B$46 -> 2026 | B15: ='Planification Sport'!$Q50 -> Volume d’entraînement (h/semaine) | C15: ='Planification Sport'!$R50 -> 0
A16: ='Planification Sport'!$B$46 -> 2026 | B16: ='Planification Sport'!$Q52 -> Points principaux d’entraînement | C16: ='Planification Sport'!$R52 -> 0
A17: ='Planification Sport'!$B$56 -> 2027 | B17: ='Planification Sport'!$Q58 -> Unités d’entraînement par semaine | C17: ='Planification Sport'!$R58 -> 0
A18: ='Planification Sport'!$B$56 -> 2027 | B18: ='Planification Sport'!$Q60 -> Volume d’entraînement (h/semaine) | C18: ='Planification Sport'!$R60 -> 0
A19: ='Planification Sport'!$B$56 -> 2027 | B19: ='Planification Sport'!$Q62 -> Points principaux d’entraînement | C19: ='Planification Sport'!$R62 -> 0
A20: ='Planification Sport'!$B$66 -> 2028 | B20: ='Planification Sport'!$Q68 -> Unités d’entraînement par semaine | C20: ='Planification Sport'!$R68 -> 0
A21: ='Planification Sport'!$B$66 -> 2028 | B21: ='Planification Sport'!$Q70 -> Volume d’entraînement (h/semaine) | C21: ='Planification Sport'!$R70 -> 0
A22: ='Planification Sport'!$B$66 -> 2028 | B22: ='Planification Sport'!$Q72 -> Points principaux d’entraînement | C22: ='Planification Sport'!$R72 -> 0
A23: ='Planification Sport'!$B$76 -> 2029 | B23: ='Planification Sport'!$Q78 -> Unités d’entraînement par semaine | C23: ='Planification Sport'!$R78 -> 0
A24: ='Planification Sport'!$B$76 -> 2029 | B24: ='Planification Sport'!$Q80 -> Volume d’entraînement (h/semaine) | C24: ='Planification Sport'!$R80 -> 0
A25: ='Planification Sport'!$B$76 -> 2029 | B25: ='Planification Sport'!$Q82 -> Points principaux d’entraînement | C25: ='Planification Sport'!$R82 -> 0
A26: ='Planification Sport'!$B$86 -> 2030 | B26: ='Planification Sport'!$Q88 -> Unités d’entraînement par semaine | C26: ='Planification Sport'!$R88 -> 0
A27: ='Planification Sport'!$B$86 -> 2030 | B27: ='Planification Sport'!$Q90 -> Volume d’entraînement (h/semaine) | C27: ='Planification Sport'!$R90 -> 0
A28: ='Planification Sport'!$B$86 -> 2030 | B28: ='Planification Sport'!$Q92 -> Points principaux d’entraînement | C28: ='Planification Sport'!$R92 -> 0
A29: ='Planification Sport'!$B$96 -> 2031 | B29: ='Planification Sport'!$Q98 -> Unités d’entraînement par semaine | C29: ='Planification Sport'!$R98 -> 0
A30: ='Planification Sport'!$B$96 -> 2031 | B30: ='Planification Sport'!$Q100 -> Volume d’entraînement (h/semaine) | C30: ='Planification Sport'!$R100 -> 0
A31: ='Planification Sport'!$B$96 -> 2031 | B31: ='Planification Sport'!$Q102 -> Points principaux d’entraînement | C31: ='Planification Sport'!$R102 -> 0
A32: ='Planification Sport'!$B$106 -> 2032 | B32: ='Planification Sport'!$Q108 -> Unités d’entraînement par semaine | C32: ='Planification Sport'!$R108 -> 0
A33: ='Planification Sport'!$B$106 -> 2032 | B33: ='Planification Sport'!$Q110 -> Volume d’entraînement (h/semaine) | C33: ='Planification Sport'!$R110 -> 0
A34: ='Planification Sport'!$B$106 -> 2032 | B34: ='Planification Sport'!$Q112 -> Points principaux d’entraînement | C34: ='Planification Sport'!$R112 -> 0
A35: ='Planification Sport'!#REF! ->  | B35: ='Planification Sport'!#REF! ->  | C35: ='Planification Sport'!#REF! -> 
A36: ='Planification Sport'!#REF! ->  | B36: ='Planification Sport'!#REF! ->  | C36: ='Planification Sport'!#REF! -> 
A37: ='Planification Sport'!#REF! ->  | B37: ='Planification Sport'!#REF! ->  | C37: ='Planification Sport'!#REF! -> 
A38: ='Planification Sport'!#REF! ->  | B38: ='Planification Sport'!#REF! ->  | C38: ='Planification Sport'!#REF! -> 
A39: ='Planification Sport'!#REF! ->  | B39: ='Planification Sport'!#REF! ->  | C39: ='Planification Sport'!#REF! -> 
A40: ='Planification Sport'!#REF! ->  | B40: ='Planification Sport'!#REF! ->  | C40: ='Planification Sport'!#REF! -> 
A41: ='Planification Sport'!#REF! ->  | B41: ='Planification Sport'!#REF! ->  | C41: ='Planification Sport'!#REF! -> 
A42: ='Planification Sport'!#REF! ->  | B42: ='Planification Sport'!#REF! ->  | C42: ='Planification Sport'!#REF! -> 
A43: ='Planification Sport'!#REF! ->  | B43: ='Planification Sport'!#REF! ->  | C43: ='Planification Sport'!#REF! -> 
A44: ='Planification Sport'!#REF! ->  | B44: ='Planification Sport'!#REF! ->  | C44: ='Planification Sport'!#REF! -> 
A45: ='Planification Sport'!#REF! ->  | B45: ='Planification Sport'!#REF! ->  | C45: ='Planification Sport'!#REF! -> 
A46: ='Planification Sport'!#REF! ->  | B46: ='Planification Sport'!#REF! ->  | C46: ='Planification Sport'!#REF! -> 
A47: ='Planification Sport'!#REF! ->  | B47: ='Planification Sport'!#REF! ->  | C47: ='Planification Sport'!#REF! -> 
A48: ='Planification Sport'!#REF! ->  | B48: ='Planification Sport'!#REF! ->  | C48: ='Planification Sport'!#REF! -> 
A49: ='Planification Sport'!#REF! ->  | B49: ='Planification Sport'!#REF! ->  | C49: ='Planification Sport'!#REF! -> 
A50: ='Planification Sport'!#REF! ->  | B50: ='Planification Sport'!#REF! ->  | C50: ='Planification Sport'!#REF! -> 
A51: ='Planification Sport'!#REF! ->  | B51: ='Planification Sport'!#REF! ->  | C51: ='Planification Sport'!#REF! -> 
A52: ='Planification Sport'!#REF! ->  | B52: ='Planification Sport'!#REF! ->  | C52: ='Planification Sport'!#REF! -> 
A53: ='Planification Sport'!#REF! ->  | B53: ='Planification Sport'!#REF! ->  | C53: ='Planification Sport'!#REF! -> 
A54: ='Planification Sport'!#REF! ->  | B54: ='Planification Sport'!#REF! ->  | C54: ='Planification Sport'!#REF! -> 
A55: ='Planification Sport'!#REF! ->  | B55: ='Planification Sport'!#REF! ->  | C55: ='Planification Sport'!#REF! -> 
A56: ='Planification Sport'!#REF! ->  | B56: ='Planification Sport'!#REF! ->  | C56: ='Planification Sport'!#REF! -> 
A57: ='Planification Sport'!#REF! ->  | B57: ='Planification Sport'!#REF! ->  | C57: ='Planification Sport'!#REF! -> 
A58: ='Planification Sport'!#REF! ->  | B58: ='Planification Sport'!#REF! ->  | C58: ='Planification Sport'!#REF! -> 
A59: ='Planification Sport'!#REF! ->  | B59: ='Planification Sport'!#REF! ->  | C59: ='Planification Sport'!#REF! -> 
A60: ='Planification Sport'!#REF! ->  | B60: ='Planification Sport'!#REF! ->  | C60: ='Planification Sport'!#REF! -> 
A61: ='Planification Sport'!#REF! ->  | B61: ='Planification Sport'!#REF! ->  | C61: ='Planification Sport'!#REF! -> 
A62: ='Planification Sport'!#REF! ->  | B62: ='Planification Sport'!#REF! ->  | C62: ='Planification Sport'!#REF! -> 
A63: ='Planification Sport'!#REF! ->  | B63: ='Planification Sport'!#REF! ->  | C63: ='Planification Sport'!#REF! -> 
A64: ='Planification Sport'!#REF! ->  | B64: ='Planification Sport'!#REF! ->  | C64: ='Planification Sport'!#REF! -> 

Sheet Hilfstabelle Schule Ausbildung (hidden)
A1: Jahr | B1: Ausbildung
A2: ='Planification Formation'!$K$6 -> 2022 | B2: ='Planification Formation'!$B8 -> 0
A3: ='Planification Formation'!$K$14 -> 2023 | B3: ='Planification Formation'!$B16 -> 0
A4: ='Planification Formation'!$K$22 -> 2024 | B4: ='Planification Formation'!$B24 -> 0
A5: ='Planification Formation'!$K$30 -> 2025 | B5: ='Planification Formation'!$B32 -> 0
A6: ='Planification Formation'!$K$38 -> 2026 | B6: ='Planification Formation'!$B40 -> 0
A7: ='Planification Formation'!$K$46 -> 2027 | B7: ='Planification Formation'!$B48 -> 0
A8: ='Planification Formation'!$K$54 -> 2028 | B8: ='Planification Formation'!$B56 -> 0
A9: ='Planification Formation'!$K$62 -> 2029 | B9: ='Planification Formation'!$B64 -> 0
A10: ='Planification Formation'!$K$70 -> 2030 | B10: ='Planification Formation'!$B72 -> 0
A11: ='Planification Formation'!$K$78 -> 2031 | B11: ='Planification Formation'!$B80 -> 0
A12: ='Planification Formation'!$K$86 -> 2032 | B12: ='Planification Formation'!$B88 -> 0
A13: ='Planification Formation'!#REF! ->  | B13: ='Planification Formation'!#REF! -> 
A14: ='Planification Formation'!#REF! ->  | B14: ='Planification Formation'!#REF! -> 
A15: ='Planification Formation'!#REF! ->  | B15: ='Planification Formation'!#REF! -> 
A16: ='Planification Formation'!#REF! ->  | B16: ='Planification Formation'!#REF! -> 
A17: ='Planification Formation'!#REF! ->  | B17: ='Planification Formation'!#REF! -> 
A18: ='Planification Formation'!#REF! ->  | B18: ='Planification Formation'!#REF! -> 
A19: ='Planification Formation'!#REF! ->  | B19: ='Planification Formation'!#REF! -> 
A20: ='Planification Formation'!#REF! ->  | B20: ='Planification Formation'!#REF! -> 
A21: ='Planification Formation'!#REF! ->  | B21: ='Planification Formation'!#REF! -> 
A22: ='Planification Formation'!#REF! ->  | B22: ='Planification Formation'!#REF! -> 

Sheet Hilfstabelle Schule Meilenstein (hidden)
A1: Jahr | B1: Datum | C1: Meilenstein Bezeichnung | D1: Meilenstein
A2: ='Planification Formation'!$K$6 -> 2022 | B2: ='Planification Formation'!$K9 -> 00:00:00 | C2: ='Planification Formation'!$J9 -> Echéance 1 | D2: ='Planification Formation'!$L9 -> 0
A3: ='Planification Formation'!$K$6 -> 2022 | B3: ='Planification Formation'!$K10 -> 00:00:00 | C3: ='Planification Formation'!$J10 -> Echéance 2 | D3: ='Planification Formation'!$L10 -> 0
A4: ='Planification Formation'!$K$6 -> 2022 | B4: ='Planification Formation'!$K11 -> 00:00:00 | C4: ='Planification Formation'!$J11 -> Echéance 3 | D4: ='Planification Formation'!$L11 -> 0
A5: ='Planification Formation'!$K$6 -> 2022 | B5: ='Planification Formation'!$K12 -> 00:00:00 | C5: ='Planification Formation'!$J12 -> Echéance 4 | D5: ='Planification Formation'!$L12 -> 0
A6: ='Planification Formation'!$K$6 -> 2022 | B6: ='Planification Formation'!$K13 -> 00:00:00 | C6: ='Planification Formation'!$J13 -> Echéance 5 | D6: ='Planification Formation'!$L13 -> 0
A7: ='Planification Formation'!$K$14 -> 2023 | B7: ='Planification Formation'!$K17 -> 00:00:00 | C7: ='Planification Formation'!$J17 -> Echéance 1 | D7: ='Planification Formation'!$L17 -> 0
A8: ='Planification Formation'!$K$14 -> 2023 | B8: ='Planification Formation'!$K18 -> 00:00:00 | C8: ='Planification Formation'!$J18 -> Echéance 2 | D8: ='Planification Formation'!$L18 -> 0
A9: ='Planification Formation'!$K$14 -> 2023 | B9: ='Planification Formation'!$K19 -> 00:00:00 | C9: ='Planification Formation'!$J19 -> Echéance 3 | D9: ='Planification Formation'!$L19 -> 0
A10: ='Planification Formation'!$K$14 -> 2023 | B10: ='Planification Formation'!$K20 -> 00:00:00 | C10: ='Planification Formation'!$J20 -> Echéance 4 | D10: ='Planification Formation'!$L20 -> 0
A11: ='Planification Formation'!$K$14 -> 2023 | B11: ='Planification Formation'!$K21 -> 00:00:00 | C11: ='Planification Formation'!$J21 -> Echéance 5 | D11: ='Planification Formation'!$L21 -> 0
A12: ='Planification Formation'!$K$22 -> 2024 | B12: ='Planification Formation'!$K25 -> 00:00:00 | C12: ='Planification Formation'!$J25 -> Echéance 1 | D12: ='Planification Formation'!$L25 -> 0
A13: ='Planification Formation'!$K$22 -> 2024 | B13: ='Planification Formation'!$K26 -> 00:00:00 | C13: ='Planification Formation'!$J26 -> Echéance 2 | D13: ='Planification Formation'!$L26 -> 0
A14: ='Planification Formation'!$K$22 -> 2024 | B14: ='Planification Formation'!$K27 -> 00:00:00 | C14: ='Planification Formation'!$J27 -> Echéance 3 | D14: ='Planification Formation'!$L27 -> 0
A15: ='Planification Formation'!$K$22 -> 2024 | B15: ='Planification Formation'!$K28 -> 00:00:00 | C15: ='Planification Formation'!$J28 -> Echéance 4 | D15: ='Planification Formation'!$L28 -> 0
A16: ='Planification Formation'!$K$22 -> 2024 | B16: ='Planification Formation'!$K29 -> 00:00:00 | C16: ='Planification Formation'!$J29 -> Echéance 5 | D16: ='Planification Formation'!$L29 -> 0
A17: ='Planification Formation'!$K$30 -> 2025 | B17: ='Planification Formation'!$K33 -> 00:00:00 | C17: ='Planification Formation'!$J33 -> Echéance 1 | D17: ='Planification Formation'!$L33 -> 0
A18: ='Planification Formation'!$K$30 -> 2025 | B18: ='Planification Formation'!$K34 -> 00:00:00 | C18: ='Planification Formation'!$J34 -> Echéance 2 | D18: ='Planification Formation'!$L34 -> 0
A19: ='Planification Formation'!$K$30 -> 2025 | B19: ='Planification Formation'!$K35 -> 00:00:00 | C19: ='Planification Formation'!$J35 -> Echéance 3 | D19: ='Planification Formation'!$L35 -> 0
A20: ='Planification Formation'!$K$30 -> 2025 | B20: ='Planification Formation'!$K36 -> 00:00:00 | C20: ='Planification Formation'!$J36 -> Echéance 4 | D20: ='Planification Formation'!$L36 -> 0
A21: ='Planification Formation'!$K$30 -> 2025 | B21: ='Planification Formation'!$K37 -> 00:00:00 | C21: ='Planification Formation'!$J37 -> Echéance 5 | D21: ='Planification Formation'!$L37 -> 0
A22: ='Planification Formation'!$K$38 -> 2026 | B22: ='Planification Formation'!$K41 -> 00:00:00 | C22: ='Planification Formation'!$J41 -> Echéance 1 | D22: ='Planification Formation'!$L41 -> 0
A23: ='Planification Formation'!$K$38 -> 2026 | B23: ='Planification Formation'!$K42 -> 00:00:00 | C23: ='Planification Formation'!$J42 -> Echéance 2 | D23: ='Planification Formation'!$L42 -> 0
A24: ='Planification Formation'!$K$38 -> 2026 | B24: ='Planification Formation'!$K43 -> 00:00:00 | C24: ='Planification Formation'!$J43 -> Echéance 3 | D24: ='Planification Formation'!$L43 -> 0
A25: ='Planification Formation'!$K$38 -> 2026 | B25: ='Planification Formation'!$K44 -> 00:00:00 | C25: ='Planification Formation'!$J44 -> Echéance 4 | D25: ='Planification Formation'!$L44 -> 0
A26: ='Planification Formation'!$K$38 -> 2026 | B26: ='Planification Formation'!$K45 -> 00:00:00 | C26: ='Planification Formation'!$J45 -> Echéance 5 | D26: ='Planification Formation'!$L45 -> 0
A27: ='Planification Formation'!$K$46 -> 2027 | B27: ='Planification Formation'!$K49 -> 00:00:00 | C27: ='Planification Formation'!$J49 -> Echéance 1 | D27: ='Planification Formation'!$L49 -> 0
A28: ='Planification Formation'!$K$46 -> 2027 | B28: ='Planification Formation'!$K50 -> 00:00:00 | C28: ='Planification Formation'!$J50 -> Echéance 2 | D28: ='Planification Formation'!$L50 -> 0
A29: ='Planification Formation'!$K$46 -> 2027 | B29: ='Planification Formation'!$K51 -> 00:00:00 | C29: ='Planification Formation'!$J51 -> Echéance 3 | D29: ='Planification Formation'!$L51 -> 0
A30: ='Planification Formation'!$K$46 -> 2027 | B30: ='Planification Formation'!$K52 -> 00:00:00 | C30: ='Planification Formation'!$J52 -> Echéance 4 | D30: ='Planification Formation'!$L52 -> 0
A31: ='Planification Formation'!$K$46 -> 2027 | B31: ='Planification Formation'!$K53 -> 00:00:00 | C31: ='Planification Formation'!$J53 -> Echéance 5 | D31: ='Planification Formation'!$L53 -> 0
A32: ='Planification Formation'!$K$54 -> 2028 | B32: ='Planification Formation'!$K57 -> 00:00:00 | C32: ='Planification Formation'!$J57 -> Echéance 1 | D32: ='Planification Formation'!$L57 -> 0
A33: ='Planification Formation'!$K$54 -> 2028 | B33: ='Planification Formation'!$K58 -> 00:00:00 | C33: ='Planification Formation'!$J58 -> Echéance 2 | D33: ='Planification Formation'!$L58 -> 0
A34: ='Planification Formation'!$K$54 -> 2028 | B34: ='Planification Formation'!$K59 -> 00:00:00 | C34: ='Planification Formation'!$J59 -> Echéance 3 | D34: ='Planification Formation'!$L59 -> 0
A35: ='Planification Formation'!$K$54 -> 2028 | B35: ='Planification Formation'!$K60 -> 00:00:00 | C35: ='Planification Formation'!$J60 -> Echéance 4 | D35: ='Planification Formation'!$L60 -> 0
A36: ='Planification Formation'!$K$54 -> 2028 | B36: ='Planification Formation'!$K61 -> 00:00:00 | C36: ='Planification Formation'!$J61 -> Echéance 5 | D36: ='Planification Formation'!$L61 -> 0
A37: ='Planification Formation'!$K$62 -> 2029 | B37: ='Planification Formation'!$K65 -> 00:00:00 | C37: ='Planification Formation'!$J65 -> Echéance 1 | D37: ='Planification Formation'!$L65 -> 0
A38: ='Planification Formation'!$K$62 -> 2029 | B38: ='Planification Formation'!$K66 -> 00:00:00 | C38: ='Planification Formation'!$J66 -> Echéance 2 | D38: ='Planification Formation'!$L66 -> 0
A39: ='Planification Formation'!$K$62 -> 2029 | B39: ='Planification Formation'!$K67 -> 00:00:00 | C39: ='Planification Formation'!$J67 -> Echéance 3 | D39: ='Planification Formation'!$L67 -> 0
A40: ='Planification Formation'!$K$62 -> 2029 | B40: ='Planification Formation'!$K68 -> 00:00:00 | C40: ='Planification Formation'!$J68 -> Echéance 4 | D40: ='Planification Formation'!$L68 -> 0
A41: ='Planification Formation'!$K$62 -> 2029 | B41: ='Planification Formation'!$K69 -> 00:00:00 | C41: ='Planification Formation'!$J69 -> Echéance 5 | D41: ='Planification Formation'!$L69 -> 0
A42: ='Planification Formation'!$K$70 -> 2030 | B42: ='Planification Formation'!$K73 -> 00:00:00 | C42: ='Planification Formation'!$J73 -> Echéance 1 | D42: ='Planification Formation'!$L73 -> 0
A43: ='Planification Formation'!$K$70 -> 2030 | B43: ='Planification Formation'!$K74 -> 00:00:00 | C43: ='Planification Formation'!$J74 -> Echéance 2 | D43: ='Planification Formation'!$L74 -> 0
A44: ='Planification Formation'!$K$70 -> 2030 | B44: ='Planification Formation'!$K75 -> 00:00:00 | C44: ='Planification Formation'!$J75 -> Echéance 3 | D44: ='Planification Formation'!$L75 -> 0
A45: ='Planification Formation'!$K$70 -> 2030 | B45: ='Planification Formation'!$K76 -> 00:00:00 | C45: ='Planification Formation'!$J76 -> Echéance 4 | D45: ='Planification Formation'!$L76 -> 0
A46: ='Planification Formation'!$K$70 -> 2030 | B46: ='Planification Formation'!$K77 -> 00:00:00 | C46: ='Planification Formation'!$J77 -> Echéance 5 | D46: ='Planification Formation'!$L77 -> 0
A47: ='Planification Formation'!$K$78 -> 2031 | B47: ='Planification Formation'!$K81 -> 00:00:00 | C47: ='Planification Formation'!$J81 -> Echéance 1 | D47: ='Planification Formation'!$L81 -> 0
A48: ='Planification Formation'!$K$78 -> 2031 | B48: ='Planification Formation'!$K82 -> 00:00:00 | C48: ='Planification Formation'!$J82 -> Echéance 2 | D48: ='Planification Formation'!$L82 -> 0
A49: ='Planification Formation'!$K$78 -> 2031 | B49: ='Planification Formation'!$K83 -> 00:00:00 | C49: ='Planification Formation'!$J83 -> Echéance 3 | D49: ='Planification Formation'!$L83 -> 0
A50: ='Planification Formation'!$K$78 -> 2031 | B50: ='Planification Formation'!$K84 -> 00:00:00 | C50: ='Planification Formation'!$J84 -> Echéance 4 | D50: ='Planification Formation'!$L84 -> 0
A51: ='Planification Formation'!$K$78 -> 2031 | B51: ='Planification Formation'!$K85 -> 00:00:00 | C51: ='Planification Formation'!$J85 -> Echéance 5 | D51: ='Planification Formation'!$L85 -> 0
A52: ='Planification Formation'!$K$86 -> 2032 | B52: ='Planification Formation'!$K89 -> 00:00:00 | C52: ='Planification Formation'!$J89 -> Echéance 1 | D52: ='Planification Formation'!$L89 -> 0
A53: ='Planification Formation'!$K$86 -> 2032 | B53: ='Planification Formation'!$K90 -> 00:00:00 | C53: ='Planification Formation'!$J90 -> Echéance 2 | D53: ='Planification Formation'!$L90 -> 0
A54: ='Planification Formation'!$K$86 -> 2032 | B54: ='Planification Formation'!$K91 -> 00:00:00 | C54: ='Planification Formation'!$J91 -> Echéance 3 | D54: ='Planification Formation'!$L91 -> 0
A55: ='Planification Formation'!$K$86 -> 2032 | B55: ='Planification Formation'!$K92 -> 00:00:00 | C55: ='Planification Formation'!$J92 -> Echéance 4 | D55: ='Planification Formation'!$L92 -> 0
A56: ='Planification Formation'!$K$86 -> 2032 | B56: ='Planification Formation'!$K93 -> 00:00:00 | C56: ='Planification Formation'!$J93 -> Echéance 5 | D56: ='Planification Formation'!$L93 -> 0
A57: ='Planification Formation'!#REF! ->  | B57: ='Planification Formation'!#REF! ->  | C57: ='Planification Formation'!#REF! ->  | D57: ='Planification Formation'!#REF! -> 
A58: ='Planification Formation'!#REF! ->  | B58: ='Planification Formation'!#REF! ->  | C58: ='Planification Formation'!#REF! ->  | D58: ='Planification Formation'!#REF! -> 
A59: ='Planification Formation'!#REF! ->  | B59: ='Planification Formation'!#REF! ->  | C59: ='Planification Formation'!#REF! ->  | D59: ='Planification Formation'!#REF! -> 
A60: ='Planification Formation'!#REF! ->  | B60: ='Planification Formation'!#REF! ->  | C60: ='Planification Formation'!#REF! ->  | D60: ='Planification Formation'!#REF! -> 
A61: ='Planification Formation'!#REF! ->  | B61: ='Planification Formation'!#REF! ->  | C61: ='Planification Formation'!#REF! ->  | D61: ='Planification Formation'!#REF! -> 
A62: ='Planification Formation'!#REF! ->  | B62: ='Planification Formation'!#REF! ->  | C62: ='Planification Formation'!#REF! ->  | D62: ='Planification Formation'!#REF! -> 
A63: ='Planification Formation'!#REF! ->  | B63: ='Planification Formation'!#REF! ->  | C63: ='Planification Formation'!#REF! ->  | D63: ='Planification Formation'!#REF! -> 
A64: ='Planification Formation'!#REF! ->  | B64: ='Planification Formation'!#REF! ->  | C64: ='Planification Formation'!#REF! ->  | D64: ='Planification Formation'!#REF! -> 
A65: ='Planification Formation'!#REF! ->  | B65: ='Planification Formation'!#REF! ->  | C65: ='Planification Formation'!#REF! ->  | D65: ='Planification Formation'!#REF! -> 
A66: ='Planification Formation'!#REF! ->  | B66: ='Planification Formation'!#REF! ->  | C66: ='Planification Formation'!#REF! ->  | D66: ='Planification Formation'!#REF! -> 
A67: ='Planification Formation'!#REF! ->  | B67: ='Planification Formation'!#REF! ->  | C67: ='Planification Formation'!#REF! ->  | D67: ='Planification Formation'!#REF! -> 
A68: ='Planification Formation'!#REF! ->  | B68: ='Planification Formation'!#REF! ->  | C68: ='Planification Formation'!#REF! ->  | D68: ='Planification Formation'!#REF! -> 
A69: ='Planification Formation'!#REF! ->  | B69: ='Planification Formation'!#REF! ->  | C69: ='Planification Formation'!#REF! ->  | D69: ='Planification Formation'!#REF! -> 
A70: ='Planification Formation'!#REF! ->  | B70: ='Planification Formation'!#REF! ->  | C70: ='Planification Formation'!#REF! ->  | D70: ='Planification Formation'!#REF! -> 
A71: ='Planification Formation'!#REF! ->  | B71: ='Planification Formation'!#REF! ->  | C71: ='Planification Formation'!#REF! ->  | D71: ='Planification Formation'!#REF! -> 
A72: ='Planification Formation'!#REF! ->  | B72: ='Planification Formation'!#REF! ->  | C72: ='Planification Formation'!#REF! ->  | D72: ='Planification Formation'!#REF! -> 
A73: ='Planification Formation'!#REF! ->  | B73: ='Planification Formation'!#REF! ->  | C73: ='Planification Formation'!#REF! ->  | D73: ='Planification Formation'!#REF! -> 
A74: ='Planification Formation'!#REF! ->  | B74: ='Planification Formation'!#REF! ->  | C74: ='Planification Formation'!#REF! ->  | D74: ='Planification Formation'!#REF! -> 
A75: ='Planification Formation'!#REF! ->  | B75: ='Planification Formation'!#REF! ->  | C75: ='Planification Formation'!#REF! ->  | D75: ='Planification Formation'!#REF! -> 
A76: ='Planification Formation'!#REF! ->  | B76: ='Planification Formation'!#REF! ->  | C76: ='Planification Formation'!#REF! ->  | D76: ='Planification Formation'!#REF! -> 
A77: ='Planification Formation'!#REF! ->  | B77: ='Planification Formation'!#REF! ->  | C77: ='Planification Formation'!#REF! ->  | D77: ='Planification Formation'!#REF! -> 
A78: ='Planification Formation'!#REF! ->  | B78: ='Planification Formation'!#REF! ->  | C78: ='Planification Formation'!#REF! ->  | D78: ='Planification Formation'!#REF! -> 
A79: ='Planification Formation'!#REF! ->  | B79: ='Planification Formation'!#REF! ->  | C79: ='Planification Formation'!#REF! ->  | D79: ='Planification Formation'!#REF! -> 
A80: ='Planification Formation'!#REF! ->  | B80: ='Planification Formation'!#REF! ->  | C80: ='Planification Formation'!#REF! ->  | D80: ='Planification Formation'!#REF! -> 
A81: ='Planification Formation'!#REF! ->  | B81: ='Planification Formation'!#REF! ->  | C81: ='Planification Formation'!#REF! ->  | D81: ='Planification Formation'!#REF! -> 
A82: ='Planification Formation'!#REF! ->  | B82: ='Planification Formation'!#REF! ->  | C82: ='Planification Formation'!#REF! ->  | D82: ='Planification Formation'!#REF! -> 
A83: ='Planification Formation'!#REF! ->  | B83: ='Planification Formation'!#REF! ->  | C83: ='Planification Formation'!#REF! ->  | D83: ='Planification Formation'!#REF! -> 
A84: ='Planification Formation'!#REF! ->  | B84: ='Planification Formation'!#REF! ->  | C84: ='Planification Formation'!#REF! ->  | D84: ='Planification Formation'!#REF! -> 
A85: ='Planification Formation'!#REF! ->  | B85: ='Planification Formation'!#REF! ->  | C85: ='Planification Formation'!#REF! ->  | D85: ='Planification Formation'!#REF! -> 
A86: ='Planification Formation'!#REF! ->  | B86: ='Planification Formation'!#REF! ->  | C86: ='Planification Formation'!#REF! ->  | D86: ='Planification Formation'!#REF! -> 
A87: ='Planification Formation'!#REF! ->  | B87: ='Planification Formation'!#REF! ->  | C87: ='Planification Formation'!#REF! ->  | D87: ='Planification Formation'!#REF! -> 
A88: ='Planification Formation'!#REF! ->  | B88: ='Planification Formation'!#REF! ->  | C88: ='Planification Formation'!#REF! ->  | D88: ='Planification Formation'!#REF! -> 
A89: ='Planification Formation'!#REF! ->  | B89: ='Planification Formation'!#REF! ->  | C89: ='Planification Formation'!#REF! ->  | D89: ='Planification Formation'!#REF! -> 
A90: ='Planification Formation'!#REF! ->  | B90: ='Planification Formation'!#REF! ->  | C90: ='Planification Formation'!#REF! ->  | D90: ='Planification Formation'!#REF! -> 
A91: ='Planification Formation'!#REF! ->  | B91: ='Planification Formation'!#REF! ->  | C91: ='Planification Formation'!#REF! ->  | D91: ='Planification Formation'!#REF! -> 
A92: ='Planification Formation'!#REF! ->  | B92: ='Planification Formation'!#REF! ->  | C92: ='Planification Formation'!#REF! ->  | D92: ='Planification Formation'!#REF! -> 
A93: ='Planification Formation'!#REF! ->  | B93: ='Planification Formation'!#REF! ->  | C93: ='Planification Formation'!#REF! ->  | D93: ='Planification Formation'!#REF! -> 
A94: ='Planification Formation'!#REF! ->  | B94: ='Planification Formation'!#REF! ->  | C94: ='Planification Formation'!#REF! ->  | D94: ='Planification Formation'!#REF! -> 
A95: ='Planification Formation'!#REF! ->  | B95: ='Planification Formation'!#REF! ->  | C95: ='Planification Formation'!#REF! ->  | D95: ='Planification Formation'!#REF! -> 
A96: ='Planification Formation'!#REF! ->  | B96: ='Planification Formation'!#REF! ->  | C96: ='Planification Formation'!#REF! ->  | D96: ='Planification Formation'!#REF! -> 
A97: ='Planification Formation'!#REF! ->  | B97: ='Planification Formation'!#REF! ->  | C97: ='Planification Formation'!#REF! ->  | D97: ='Planification Formation'!#REF! -> 
A98: ='Planification Formation'!#REF! ->  | B98: ='Planification Formation'!#REF! ->  | C98: ='Planification Formation'!#REF! ->  | D98: ='Planification Formation'!#REF! -> 
A99: ='Planification Formation'!#REF! ->  | B99: ='Planification Formation'!#REF! ->  | C99: ='Planification Formation'!#REF! ->  | D99: ='Planification Formation'!#REF! -> 
A100: ='Planification Formation'!#REF! ->  | B100: ='Planification Formation'!#REF! ->  | C100: ='Planification Formation'!#REF! ->  | D100: ='Planification Formation'!#REF! -> 
A101: ='Planification Formation'!#REF! ->  | B101: ='Planification Formation'!#REF! ->  | C101: ='Planification Formation'!#REF! ->  | D101: ='Planification Formation'!#REF! -> 
A102: ='Planification Formation'!#REF! ->  | B102: ='Planification Formation'!#REF! ->  | C102: ='Planification Formation'!#REF! ->  | D102: ='Planification Formation'!#REF! -> 
A103: ='Planification Formation'!#REF! ->  | B103: ='Planification Formation'!#REF! ->  | C103: ='Planification Formation'!#REF! ->  | D103: ='Planification Formation'!#REF! -> 
A104: ='Planification Formation'!#REF! ->  | B104: ='Planification Formation'!#REF! ->  | C104: ='Planification Formation'!#REF! ->  | D104: ='Planification Formation'!#REF! -> 
A105: ='Planification Formation'!#REF! ->  | B105: ='Planification Formation'!#REF! ->  | C105: ='Planification Formation'!#REF! ->  | D105: ='Planification Formation'!#REF! -> 
A106: ='Planification Formation'!#REF! ->  | B106: ='Planification Formation'!#REF! ->  | C106: ='Planification Formation'!#REF! ->  | D106: ='Planification Formation'!#REF! -> 

Sheet Feuil1 (hidden)
